{"text_format":"1","workbook":"xlsx","n_sheets":8,"sheets":["NO_Table Parameter","NO_참조테이블","NO_아이템 검색","EquipItem","EquipTabSort","CharacterPartsLimit","Feature","EquipItemString"],"not_rendered":{"charts":0,"images":0,"macros":1,"external_links":1,"defined_names":1,"comments":0,"pivot_tables":0},"unopened":[],"bounds":{"document_bytes":16777216,"sheet_cells":100000,"rows_first":2000,"rows_last":500,"rows_between":2000,"halvings":0,"cell_chars":16384,"cell_head_chars":4096},"cells_cut":0,"cells_raw":0,"read":"whole","date_system":"1900"}

{"sheet":"NO_Table Parameter","index":0,"n_rows":30,"n_cols":20,"rows_kept":30,"cut":false,"hidden":false,"merged":[]}
[null,null,null,null,null,null,"EEquipItemCategory",null,null,"EEquipItemType",null,null,"EPriceType",null,null,"EFeatureType",null,null,"EEquipLimitType"]
[null,null,null,null,null,null,"ID","enum",null,"ID","enum",null,"ID","enum",null,"ID","enum",null,"ID","enum"]
[null,null,null,null,null,null,1,"머리",null,1,"헤어",null,1,"골드",null,1,"격식",null,1,"남녀 공용"]
[null,null,null,null,null,null,2,"얼굴",null,2,"머리 (후드)",null,2,"무료 주얼",null,2,"심플",null,2,"남자만 착용 가능"]
[null,null,null,null,null,null,3,"눈",null,3,"머리 (위)",null,3,"유료 주얼",null,3,"소녀",null,3,"여자만 착용 가능"]
[null,null,null,null,null,null,4,"귀",null,4,"머리 (뒤)",null,4,"주얼",null,4,"시원"]
[null,null,null,null,null,null,5,"목",null,5,"머리 (공중)",null,5,"하트",null,5,"따뜻"]
[null,null,null,null,null,null,6,"몸",null,6,"화장",null,6,"위시",null,6,"큐티"]
[null,null,null,null,null,null,7,"등",null,7,"얼굴 장식",null,7,"패션",null,7,"발랄"]
[null,null,null,null,null,null,8,"어깨",null,8,"피부 장식",null,8,"피스",null,8,"청순"]
[null,null,null,null,null,null,9,"손",null,9,"이마 장식",null,9,"기빙",null,9,"화려"]
[null,null,null,null,null,null,10,"발",null,10,"렌즈",null,null,null,null,10,"우아"]
[null,null,null,null,null,null,null,null,null,11,"눈 장식"]
[null,null,null,null,null,null,null,null,null,12,"목"]
[null,null,null,null,null,null,null,null,null,13,"귀모양"]
[null,null,null,null,null,null,null,null,null,14,"귀걸이"]
[null,null,null,null,null,null,null,null,null,15,"상의"]
[null,null,null,null,null,null,null,null,null,16,"하의"]
[null,null,null,null,null,null,null,null,null,17,"태닝"]
[null,null,null,null,null,null,null,null,null,18,"꼬리"]
[null,null,null,null,null,null,null,null,null,19,"등"]
[null,null,null,null,null,null,null,null,null,20,"배경"]
[null,null,null,null,null,null,null,null,null,21,"골반 (왼)"]
[null,null,null,null,null,null,null,null,null,22,"골반 (오)"]
[null,null,null,null,null,null,null,null,null,23,"어깨 (왼)"]
[null,null,null,null,null,null,null,null,null,24,"어깨 (오)"]
[null,null,null,null,null,null,null,null,null,25,"손 (왼)"]
[null,null,null,null,null,null,null,null,null,26,"손 (오)"]
[null,null,null,null,null,null,null,null,null,27,"바닥"]
[null,null,null,null,null,null,null,null,null,28,"신발"]

{"sheet":"NO_참조테이블","index":1,"n_rows":514,"n_cols":9,"rows_kept":514,"cut":false,"hidden":false,"merged":[]}
[null,null,null,null,"[PF_ItemData.xlsm]Item!Key","[PF_ItemData.xlsm]Item!ItemNameText",null,"[PF_EnumTypeData.xlsm]EAnimationType!Key","[PF_EnumTypeData.xlsm]EAnimationType!Value"]
[null,null,null,null,"Key","ItemNameText",null,"Key","Value"]
[null,null,null,null,"int","string",null,"int","string"]
[null,null,null,null,"All","All",null,"Client","Client"]
[null,null,null,null,"아이템 ID","아이템명",null,"열거형 숫자","열거형 이름"]
[null,null,null,null,1,"(임시) 기본 바닥",null,0,"None"]
["※ 데이터 입력 시작하시기 전에 ",null,null,null,2,"브라운 키친 벽 선반",null,1,"farm_stand01"]
["꼭 데이터 불러와주세요!",null,null,null,3,"(임시) 카펫",null,2,"farm_stand02"]
[null,null,null,null,4,"(임시) 테이블",null,3,"farm_stand03"]
["※ 버튼 누른 후 관련 팝업창이 뜰",null,null,null,5,"(임시) 의자",null,4,"farm_idle01"]
["경우, 모두 [X 버튼] 눌러주세요!",null,null,null,6,"(임시) 소품",null,5,"farm_idle02"]
[null,null,null,null,7,"(임시) 수상 가구",null,6,"farm_idle03"]
[null,null,null,null,8,"(임시) 울타리",null,7,"farm_start01"]
[null,null,null,null,9,"(임시) 공중 벽 가구",null,8,"farm_gathering"]
[null,null,null,null,10,"(임시) 야외 바닥재",null,9,"farm_selecting01"]
[null,null,null,null,11,"(임시) 벽지",null,10,"farm_selecting02"]
[null,null,null,null,12,"(임시) 바닥재",null,11,"grow01"]
[null,null,null,null,13,"(임시) 시럽",null,12,"stand01"]
[null,null,null,null,14,"보드라운 복숭아빛 물감",null,13,"happy01"]
[null,null,null,null,15,"시크릿북: 민트 배쓰룸 수건대",null,14,"excited01"]
[null,null,null,null,16,"(임시) 스티커1",null,15,"lol01"]
[null,null,null,null,17,"옐로우 팝핑 스티커",null,16,"hi01"]
[null,null,null,null,18,"(임시) 스티커3",null,17,"hello01"]
[null,null,null,null,19,"(임시) 음식",null,18,"clap01"]
[null,null,null,null,20,"아이템 상자 (확률형)",null,19,"love01"]
[null,null,null,null,21,"일반 드릴",null,20,"peaceful01"]
[null,null,null,null,22,"스페셜 드릴",null,21,"dance01"]
[null,null,null,null,23,"밭",null,22,"shock01"]
[null,null,null,null,24,"밀",null,23,"sad01"]
[null,null,null,null,25,"편백나무",null,24,"cry01"]
[null,null,null,null,26,"편백나무 자재",null,25,"mad01"]
[null,null,null,null,27,"감자",null,26,"tired01"]
[null,null,null,null,28,"젖소",null,27,"worry01"]
[null,null,null,null,29,"우유",null,28,"question01"]
[null,null,null,null,30,"고무나무",null,29,"brag01"]
[null,null,null,null,31,"고무 원액",null,30,"shy01"]
[null,null,null,null,32,"옥수수",null,31,"sulky01"]
[null,null,null,null,33,"라임나무",null,32,"expected01"]
[null,null,null,null,34,"라임",null,33,"scared01"]
[null,null,null,null,35,"닭",null,34,"walk01"]
[null,null,null,null,36,"달걀",null,35,"cheerup01"]
[null,null,null,null,37,"콩",null,36,"lonely01"]
[null,null,null,null,38,"닥나무",null,37,"awkward01"]
[null,null,null,null,39,"닥나무 자재",null,38,"noidea01"]
[null,null,null,null,40,"목화",null,39,"realize01"]
[null,null,null,null,41,"개나리",null,40,"heartbreak01"]
[null,null,null,null,42,"해바라기",null,41,"nod01"]
[null,null,null,null,43,"코스모스",null,42,"noway01"]
[null,null,null,null,44,"포인세티아",null,43,"giveme01"]
[null,null,null,null,45,"꿀벌",null,44,"hungry01"]
[null,null,null,null,46,"꿀",null,45,"sigh01"]
[null,null,null,null,47,"사과나무",null,46,"spark01"]
[null,null,null,null,48,"사과",null,47,"congratulations01"]
[null,null,null,null,49,"당근",null,48,"surprise01"]
[null,null,null,null,50,"양",null,49,"lookaround01"]
[null,null,null,null,51,"양털",null,50,"change_cloth01"]
[null,null,null,null,52,"복숭아 나무",null,51,"change_hair01"]
[null,null,null,null,53,"복숭아",null,52,"change_eye01"]
[null,null,null,null,54,"마그네슘",null,53,"change_accessories01"]
[null,null,null,null,55,"광천수",null,54,"change_shoes01"]
[null,null,null,null,56,"고구마",null,55,"plantseed01"]
[null,null,null,null,57,"사슴",null,56,"planttree01"]
[null,null,null,null,58,"사슴 뿔",null,57,"plantelse01"]
[null,null,null,null,59,"석탄",null,58,"waterplants01"]
[null,null,null,null,60,"단풍나무",null,59,"logging01"]
[null,null,null,null,61,"단풍나무 자재",null,60,"shakingtree01"]
[null,null,null,null,62,"사탕수수",null,61,"waitseed01"]
[null,null,null,null,63,"자갈",null,62,"waittree01"]
[null,null,null,null,64,"흙",null,63,"waitelse01"]
[null,null,null,null,65,"흰 대리석",null,64,"mine01"]
[null,null,null,null,66,"양파",null,65,"mine02"]
[null,null,null,null,67,"바나나 나무",null,66,"minewalk01"]
[null,null,null,null,68,"바나나",null,67,"hold01"]
[null,null,null,null,69,"달팽이",null,68,"hold02"]
[null,null,null,null,70,"점액",null,69,"sit01"]
[null,null,null,null,71,"철판",null,70,"sit02"]
[null,null,null,null,72,"검은 대리석",null,71,"sithorse01"]
[null,null,null,null,73,"소나무",null,72,"sithorse02"]
[null,null,null,null,74,"소나무 자재",null,73,"liedown01"]
[null,null,null,null,75,"아보카도 나무",null,74,"liedown02"]
[null,null,null,null,76,"아보카도",null,75,"eat01"]
[null,null,null,null,77,"구리",null,76,"read01"]
[null,null,null,null,78,"토끼",null,77,"bornfire01"]
[null,null,null,null,79,"토끼털",null,78,"bath01"]
[null,null,null,null,80,"석회석",null,79,"teatime01"]
[null,null,null,null,81,"딸기",null,80,"cook01"]
[null,null,null,null,82,"은 덩어리",null,81,"clean01"]
[null,null,null,null,83,"파인애플",null,82,"makeup01"]
[null,null,null,null,84,"말",null,83,"craft_cook01"]
[null,null,null,null,85,"말털",null,84,"craft_wood01"]
[null,null,null,null,86,"올리브 나무",null,85,"craft_metal01"]
[null,null,null,null,87,"올리브",null,86,"craft_sewing01"]
[null,null,null,null,88,"금 덩어리",null,87,"craft_pottery01"]
[null,null,null,null,89,"양상추",null,88,"craft_event01"]
[null,null,null,null,90,"커피 나무",null,89,"harvest01"]
[null,null,null,null,91,"커피 콩",null,90,"waitanimal01"]
[null,null,null,null,92,"아연",null,91,"pickup01"]
[null,null,null,null,93,"참나무",null,92,"searchbush01"]
[null,null,null,null,94,"도토리",null,93,"pushwagon01"]
[null,null,null,null,95,"파피루스",null,94,"serarchmine01"]
[null,null,null,null,96,"오리",null,95,"usedrill01"]
[null,null,null,null,97,"황금알",null,96,"craft_leather01"]
[null,null,null,null,98,"백금",null,97,"craft_science01"]
[null,null,null,null,99,"호두나무",null,98,"talk01"]
[null,null,null,null,100,"호두",null,99,"change_makeup01"]
[null,null,null,null,101,"아몬드 나무",null,100,"sithorse03"]
[null,null,null,null,102,"아몬드",null,101,"worry02"]
[null,null,null,null,103,"빛나는 수정",null,102,"change_cloth02"]
[null,null,null,null,104,"씨앗",null,103,"change_accessories02"]
[null,null,null,null,105,"장미",null,104,"change_floor01"]
[null,null,null,null,106,"가시 덤불",null,105,"sit03"]
[null,null,null,null,107,"잔가지",null,106,"sit04"]
[null,null,null,null,108,"돌맹이",null,107,"sit06"]
[null,null,null,null,109,"살짝 뻗친 중단발",null,108,"bug01"]
[null,null,null,null,110,"기본 의상",null,109,"walk02"]
[null,null,null,null,111,"채굴 바닥",null,110,"sithorse04"]
[null,null,null,null,112,"수레",null,111,"hairsalon01"]
[null,null,null,null,113,"황토",null,112,"logging02"]
[null,null,null,null,114,"잡초",null,113," drowse01"]
[null,null,null,null,115,"근사한 저택",null,114,"humming01"]
[null,null,null,null,116,"광산 바위",null,115,"lookatsky01"]
[null,null,null,null,117,"(임시) 태닝 아이템",null,116,"logging03"]
[null,null,null,null,118,"백마",null,117,"farm_growup"]
[null,null,null,null,119,"시크릿북: 민트 배쓰룸 의자",null,118,"farm_walk01"]
[null,null,null,null,120,"시크릿북: 민트 배쓰룸 파티션",null,119,"farm_walk02"]
[null,null,null,null,121,"시크릿북: 민트 배쓰룸 난로",null,120,"farm_starting_pushwagon01"]
[null,null,null,null,122,"시크릿북: 민트 배쓰룸 발 받침대",null,121,"farm_farming"]
[null,null,null,null,123,"화이트 서랍장",null,122,"farm_gathering_start"]
[null,null,null,null,124,"초록색 눈동자",null,123,"farm_gathering_loop"]
[null,null,null,null,125,"붉은색 눈동자",null,124,"farm_gathering_touchEnd"]
[null,null,null,null,126,"슈크림 인디고",null,125,"move_car"]
[null,null,null,null,127,"(임시) 스페셜 수상 가구"]
[null,null,null,null,128,"(임시) 스페셜 소품"]
[null,null,null,null,129,"(임시) 스페셜 울타리"]
[null,null,null,null,4038,"초록색 의자"]
[null,null,null,null,4070,"남색 서랍장"]
[null,null,null,null,4218,"밴치"]
[null,null,null,null,4252,"파티션"]
[null,null,null,null,4938,"빨간 소파"]
[null,null,null,null,5666,"딸기 의자"]
[null,null,null,null,130,"(임시) 스티커4"]
[null,null,null,null,131,"(임시) 스티커5"]
[null,null,null,null,132,"(임시) 스티커6"]
[null,null,null,null,133,"라이트 분홍 스티커"]
[null,null,null,null,134,"(임시) 유료 가구"]
[null,null,null,null,135,"(임시) 페인트"]
[null,null,null,null,136,"턱1"]
[null,null,null,null,137,"턱2"]
[null,null,null,null,138,"턱3"]
[null,null,null,null,7639,"(임시) 오리배"]
[null,null,null,null,7670,"(임시) 장난감 배"]
[null,null,null,null,200969,"(임시) 샹들리에"]
[null,null,null,null,201242,"(임시) 구름"]
[null,null,null,null,201436,"(임시) 초승달"]
[null,null,null,null,6056,"스위티 랑데뷰 바 테이블"]
[null,null,null,null,139,"드릴 전용 바위"]
[null,null,null,null,4208,"벽돌 벽지"]
[null,null,null,null,4220,"기본 침대"]
[null,null,null,null,6204,"고급 대리석 바닥재"]
[null,null,null,null,201,"평범한 작업대"]
[null,null,null,null,202,"평범한 작업대"]
[null,null,null,null,203,"주방 조리대"]
[null,null,null,null,204,"주방 조리대"]
[null,null,null,null,205,"특별한 작업대"]
[null,null,null,null,206,"특별한 작업대"]
[null,null,null,null,140,"파스텔 스카이 블루빛 물감"]
[null,null,null,null,141,"초록빛 5색 랜덤 물감"]
[null,null,null,null,142,"분홍빛 5색 랜덤 물감"]
[null,null,null,null,143,"심플한 티셔츠"]
[null,null,null,null,144,"심플한 롱티셔츠"]
[null,null,null,null,145,"깔끔한 로퍼"]
[null,null,null,null,146,"기본 악세서리"]
[null,null,null,null,148,"베이직 9부 바지"]
[null,null,null,null,149,"베이직 미니스커트"]
[null,null,null,null,150,"태닝 아이템 2"]
[null,null,null,null,151,"태닝 아이템 3"]
[null,null,null,null,1000000,"밤하늘 귀걸이"]
[null,null,null,null,1000001,"밤하늘 요정의 귀"]
[null,null,null,null,1000002,"밤하늘 날개"]
[null,null,null,null,1000003,"밤하늘의 별"]
[null,null,null,null,1000004,"밤하늘 왕관"]
[null,null,null,null,1000005,"밤하늘 뿔"]
[null,null,null,null,1000006,"밤하늘 쵸커"]
[null,null,null,null,1000007,"밤하늘의 달"]
[null,null,null,null,1000008,"밤하늘 미니백"]
[null,null,null,null,1000009,"밤하늘 지팡이"]
[null,null,null,null,1000010,"밤하늘 오른쪽 망토"]
[null,null,null,null,1000011,"밤하늘 왼쪽 망토"]
[null,null,null,null,1000012,"밤하늘 눈물"]
[null,null,null,null,1000013,"밤하늘 체인"]
[null,null,null,null,1000014,"빗질 안 한 짧은 머리"]
[null,null,null,null,1000015,"밤하늘의 꽃잎"]
[null,null,null,null,1000016,"귀여운 얼굴"]
[null,null,null,null,152,"로지 캔디빛 물감"]
[null,null,null,null,153,"트루 퍼플빛 물감"]
[null,null,null,null,154,"봄 내음 진달래빛 물감"]
[null,null,null,null,155,"태닝 아이템 4"]
[null,null,null,null,1000017,"파란색 렌즈"]
[null,null,null,null,1000018,"오드아이 렌즈"]
[null,null,null,null,156,"기본 자동차"]
[null,null,null,null,157,"기본 자전거"]
[null,null,null,null,158,"기본 말"]
[null,null,null,null,159,"기본 킥보드"]
[null,null,null,null,160,"임시 도시 하우스 프랍"]
[null,null,null,null,161,"임시 시골 하우스 프랍"]
[null,null,null,null,162,"임시 유럽풍 하우스 프랍"]
[null,null,null,null,163,"임시 휴양지 하우스 프랍"]
[null,null,null,null,1000019,"자연스러운 웨이브펌"]
[null,null,null,null,1000020,"차분한 얼굴"]
[null,null,null,null,1000021,"초롱초롱한 얼굴"]
[null,null,null,null,164,"유럽풍 궁전"]
[null,null,null,null,165,"심플한 운동화"]
[null,null,null,null,1000022,"정리 안된 단발 머리"]
[null,null,null,null,1000023,"브라운 렌즈"]
[null,null,null,null,1000024,"핑크 퍼플 라일락 렌즈"]
[null,null,null,null,1000025,"심플한 긴팔 니트"]
[null,null,null,null,1000026,"심플한 반바지"]
[null,null,null,null,1000027,"심플한 화이트 벨크로 운동화"]
[null,null,null,null,1000028,"정리 안된 묶음 머리"]
[null,null,null,null,1000029,"정리 안된 브릿지 묶음 머리 "]
[null,null,null,null,1000030,"심플한 스트라이트 니트"]
[null,null,null,null,1000031,"심플한 청바지"]
[null,null,null,null,1000032,"심플한 검은색 캔버스화"]
[null,null,null,null,1000033,"밤하늘 드레스"]
[null,null,null,null,1000034,"밤하늘 스트랩 펌프스"]
[null,null,null,null,1000035,"정리 안된 웨이브 헤어"]
[null,null,null,null,1000036,"심플한 리본 원피스"]
[null,null,null,null,1000037,"심플한 리본 샌들"]
[null,null,null,null,166,"아이템 상자 (선택형)"]
[null,null,null,null,167,"아이템 상자 (고정형)"]
[null,null,null,null,1000038,"어깨에 닿는 레게머리"]
[null,null,null,null,1000039,"보송보송 곱슬머리"]
[null,null,null,null,1000040,"심플한 가르마 짧은 머리"]
[null,null,null,null,1000041,"심플한 긴팔 셔츠"]
[null,null,null,null,1000042,"심플한 정장 바지"]
[null,null,null,null,1000043,"심플한 검정 정장 구두"]
[null,null,null,null,168,"건설중인 하우스 프랍"]
[null,null,null,null,1000044,"살짝 뻗친 중단발"]
[null,null,null,null,1000045,"심플 곰돌이 티셔츠"]
[null,null,null,null,1000046,"개나리 플랫 슈즈"]
[null,null,null,null,1000047,"빗질 안 한 짧은 머리"]
[null,null,null,null,1000048,"심플 브이넥 티셔츠"]
[null,null,null,null,1000049,"동글동글한 얼굴"]
[null,null,null,null,1000050,"장난꾸러기 얼굴"]
[null,null,null,null,169,"트로피칼 파라다이스 하우스"]
[null,null,null,null,100000,"펫 하우스"]
[null,null,null,null,1000051,"바이올렛 페어리 원피스"]
[null,null,null,null,1000052,"바이올렛 페어리 파스텔 슈즈"]
[null,null,null,null,1000053,"바이올렛 페어리 땋은 머리"]
[null,null,null,null,1000054,"바이올렛 페어리 나비핀"]
[null,null,null,null,1000055,"바이올렛 페어리 아우라"]
[null,null,null,null,1000056,"바이올렛 페어리 플라워"]
[null,null,null,null,1000057,"바이올렛 페어리 미니백"]
[null,null,null,null,1000058,"바이올렛 페어리 이어링"]
[null,null,null,null,1000059,"바이올렛 페어리 리본"]
[null,null,null,null,1000060,"바이올렛 페어리 네이비 슈즈"]
[null,null,null,null,1000061,"바이올렛 메이크업 얼굴"]
[null,null,null,null,1000062,"핑크 페어리 리본"]
[null,null,null,null,1000063,"봄바람 양갈래 땋은머리"]
[null,null,null,null,1000064,"봄바람 니트 가디건 원피스"]
[null,null,null,null,1000065,"봄바람 메리제인 슈즈"]
[null,null,null,null,1000066,"봄바람 동글 화이트 크로스백"]
[null,null,null,null,1000067,"봄바람 가르마 헤어"]
[null,null,null,null,1000068,"봄바람 니트 가디건"]
[null,null,null,null,1000069,"봄바람 체크 반바지"]
[null,null,null,null,1000070,"봄바람 가죽 로퍼"]
[null,null,null,null,1000071,"찰랑 여름 보브컷 헤어"]
[null,null,null,null,1000072,"찰랑 여름 프릴 나시"]
[null,null,null,null,1000073,"찰랑 여름 밴딩 숏팬츠"]
[null,null,null,null,1000074,"찰랑 여름 매듭 슬리퍼"]
[null,null,null,null,1000075,"찰랑 여름 리프펌 헤어"]
[null,null,null,null,1000076,"찰랑 여름 면셔츠"]
[null,null,null,null,1000077,"찰랑 여름 밴딩 하프팬츠"]
[null,null,null,null,1000078,"찰랑 여름 스포츠백"]
[null,null,null,null,1000079,"또렷한 얼굴"]
[null,null,null,null,1000080,"자신만만한 얼굴"]
[null,null,null,null,1000081,"부드러운 얼굴"]
[null,null,null,null,1000082,"샤프한 얼굴"]
[null,null,null,null,1000083,"엉뚱한 얼굴"]
[null,null,null,null,1000084,"재밌는 얼굴"]
[null,null,null,null,1000085,"차분한 얼굴"]
[null,null,null,null,1000086,"진지한 얼굴"]
[null,null,null,null,100001,"쟁반 위 새콤 양념통"]
[null,null,null,null,100002,"쟁반 위 매콤 양념통"]
[null,null,null,null,100003,"벽걸이 조리도구 세트"]
[null,null,null,null,100004,"레드 매트 머랭 보울"]
[null,null,null,null,100005,"냄비 2종 세트"]
[null,null,null,null,100006,"도마 위 양파"]
[null,null,null,null,100007,"물고기 쿠션과 고양이"]
[null,null,null,null,100008,"오므라이스 메뉴판"]
[null,null,null,null,100009,"그린우드 미니 컵보드"]
[null,null,null,null,100010,"그린우드 미니 찬장"]
[null,null,null,null,100011,"골든 플레이트 랙"]
[null,null,null,null,100012,"민트 플레이트 랙"]
[null,null,null,null,100013,"그린우드 스무디 테이블"]
[null,null,null,null,100014,"웰빙 야채 바구니"]
[null,null,null,null,100015,"내츄럴 커튼 미니 창문"]
[null,null,null,null,100016,"살짝 열린 내츄럴 커튼 미니 창문"]
[null,null,null,null,100017,"반쯤 열린 우든 도어"]
[null,null,null,null,100018,"미니 웰빙 가드닝 테이블"]
[null,null,null,null,100019,"그리너리 배색 냉장고"]
[null,null,null,null,100020,"그린우드 벽걸이 환풍구"]
[null,null,null,null,100021,"따끈따끈 대형 오븐"]
[null,null,null,null,100022,"옐로우 매트 키친 테이블"]
[null,null,null,null,100023,"베이지 원목 장식장"]
[null,null,null,null,100024,"브라운 원목 장식장"]
[null,null,null,null,100025,"옐로 베이지 오븐 겸 버너"]
[null,null,null,null,100026,"주방용 베이지 대형 싱크대"]
[null,null,null,null,100027,"내츄럴 그린 리프 패턴 벽지"]
[null,null,null,null,100028,"내츄럴 우드 바닥"]
[null,null,null,null,100029,"브라이트 오렌지 그라데이션 벽지"]
[null,null,null,null,100030,"브라이트 오렌지 사각 패턴 바닥"]
[null,null,null,null,1000087,"소프트 어텀 펌 단발 헤어"]
[null,null,null,null,1000088,"소프트 어텀 아가일 니트 원피스"]
[null,null,null,null,1000089,"소프트 어텀 레더 부츠"]
[null,null,null,null,1000090,"소프트 어텀 가르마펌 헤어"]
[null,null,null,null,1000091,"소프트 어텀 캐주얼 블레이저"]
[null,null,null,null,1000092,"소프트 어텀 슬랙스"]
[null,null,null,null,1000093,"소프트 어텀 화이트 로퍼"]
[null,null,null,null,1000094,"소프트 어텀 니트 목도리"]
[null,null,null,null,100031,"갈색 조랑말"]
[null,null,null,null,100032,"까만 조랑말"]
[null,null,null,null,1000095,"포근 겨울 미디웨이브 헤어"]
[null,null,null,null,1000096,"포근 겨울 케이프 숏코트"]
[null,null,null,null,1000097,"포근 겨울 울 스커트"]
[null,null,null,null,1000098,"포근 겨울 레더 워커"]
[null,null,null,null,1000099,"포근 겨울 댄디컷 헤어"]
[null,null,null,null,1000100,"포근 겨울 롱코트"]
[null,null,null,null,1000101,"포근 겨울 울 팬츠"]
[null,null,null,null,1000102,"포근 겨울 귀마개"]
[null,null,null,null,170,"스노우 바이올렛"]
[null,null,null,null,171,"로지 베이지"]
[null,null,null,null,172,"크림 베이지"]
[null,null,null,null,173,"그레이쉬 오렌지"]
[null,null,null,null,174,"차분한 민트"]
[null,null,null,null,175,"세피아"]
[null,null,null,null,176,"초코 브라운"]
[null,null,null,null,207,"특별한 작업대"]
[null,null,null,null,208,"특별한 작업대"]
[null,null,null,null,211,"토마토"]
[null,null,null,null,212,"박하 잎"]
[null,null,null,null,213,"포도"]
[null,null,null,null,218,"카카오 열매"]
[null,null,null,null,219,"시나몬"]
[null,null,null,null,222,"정제된 물"]
[null,null,null,null,232,"정제된 석유"]
[null,null,null,null,234,"루비"]
[null,null,null,null,235,"페리도트"]
[null,null,null,null,236,"사파이어"]
[null,null,null,null,237,"오닉스"]
[null,null,null,null,238,"다이아몬드"]
[null,null,null,null,239,"크리소베릴"]
[null,null,null,null,242,"황금달걀"]
[null,null,null,null,244,"밀랍"]
[null,null,null,null,245,"탈각한 뿔"]
[null,null,null,null,246,"알파카 털"]
[null,null,null,null,247,"뽕잎"]
[null,null,null,null,248,"오리 깃털"]
[null,null,null,null,249,"유리"]
[null,null,null,null,250,"편백나무 판자"]
[null,null,null,null,261,"노란 페인트"]
[null,null,null,null,262,"향신료"]
[null,null,null,null,263,"라임 즙"]
[null,null,null,null,264,"천"]
[null,null,null,null,265,"필라멘트"]
[null,null,null,null,266,"점토"]
[null,null,null,null,267,"동판"]
[null,null,null,null,268,"아스팔트"]
[null,null,null,null,269,"단풍나무 막대"]
[null,null,null,null,270,"시멘트"]
[null,null,null,null,271,"섬유"]
[null,null,null,null,272,"울"]
[null,null,null,null,273,"깃털 뜨개실"]
[null,null,null,null,274,"설탕"]
[null,null,null,null,275,"베개"]
[null,null,null,null,276,"소나무 막대"]
[null,null,null,null,277,"벽돌"]
[null,null,null,null,278,"털실"]
[null,null,null,null,279,"이불"]
[null,null,null,null,280,"푸른 페인트"]
[null,null,null,null,281,"노란 염료"]
[null,null,null,null,282,"푸른 염료"]
[null,null,null,null,283,"닥나무 막대"]
[null,null,null,null,284,"닥나무 판자"]
[null,null,null,null,251,"철 막대기"]
[null,null,null,null,252,"스테인리스"]
[null,null,null,null,253,"실"]
[null,null,null,null,254,"대리석"]
[null,null,null,null,255,"편백나무 막대"]
[null,null,null,null,256,"금괴"]
[null,null,null,null,257,"은괴"]
[null,null,null,null,258,"소나무 판자"]
[null,null,null,null,259,"강철 (못)"]
[null,null,null,null,260,"단풍나무 판자"]
[null,null,null,null,100033,"옐로우 양"]
[null,null,null,null,100034,"바이올렛 양"]
[null,null,null,null,100035,"브라운 젖소"]
[null,null,null,null,100036,"민트색 젖소"]
[null,null,null,null,100037,"옐로우 닭"]
[null,null,null,null,100038,"핑크 닭"]
[null,null,null,null,147,"블로썸 코티지"]
[null,null,null,null,285,"철판 의뢰서"]
[null,null,null,null,286,"구리 의뢰서"]
[null,null,null,null,287,"석회석 의뢰서"]
[null,null,null,null,288,"은 덩어리 의뢰서"]
[null,null,null,null,289,"금 덩어리 의뢰서"]
[null,null,null,null,290,"마그네슘 의뢰서"]
[null,null,null,null,291,"석탄 의뢰서"]
[null,null,null,null,292,"아연 의뢰서"]
[null,null,null,null,100069,"초록 잎 사슴"]
[null,null,null,null,100070,"알파카"]
[null,null,null,null,100071,"핑크 알파카"]
[null,null,null,null,100072,"블루 알파카"]
[null,null,null,null,100073,"카카오 나무"]
[null,null,null,null,100074,"시나몬 나무"]
[null,null,null,null,100068,"꽃 사슴"]
[null,null,null,null,100075,"정제된 물 바닥"]
[null,null,null,null,100076,"자갈 바닥"]
[null,null,null,null,100077,"흙 바닥"]
[null,null,null,null,100078,"철판 바닥"]
[null,null,null,null,100079,"정제된 석유 바닥"]
[null,null,null,null,100080,"백합 화분"]
[null,null,null,null,100081,"리사이클링 존"]
[null,null,null,null,100082,"의류 수거함"]
[null,null,null,null,100083,"옐로 홈파티 케이크"]
[null,null,null,null,100084,"핑크 홈파티 케이크"]
[null,null,null,null,100085,"블루 홈파티 케이크"]
[null,null,null,null,100086,"기본 자동차"]
[null,null,null,null,100087,"펄 글라이더 자동차"]
[null,null,null,null,293,"옐로 코지하우스"]
[null,null,null,null,294,"브라운 코지하우스"]
[null,null,null,null,295,"몰"]
[null,null,null,null,296,"부티크"]
[null,null,null,null,297,"미용실"]
[null,null,null,null,999998,"편백나무"]
[null,null,null,null,100051501,"러블리 스프링 원피스"]
[null,null,null,null,100052802,"러블리 스프링 레이스 슈즈"]
[null,null,null,null,100051503,"러블리 스프링 니트"]
[null,null,null,null,100051604,"러블리 스프링 니트 반바지"]
[null,null,null,null,100052805,"러블리 스프링 단화"]
[null,null,null,null,100050106,"러블리 스프링 웨이브 묶음 헤어"]
[null,null,null,null,100050107,"러블리 스프링 숏 헤어"]
[null,null,null,null,100021501,"마쉬멜로우 세일러 원피스"]
[null,null,null,null,100022802,"마쉬멜로우 세일러 리본 구두"]
[null,null,null,null,100021503,"마쉬멜로우 세일러 리본 셔츠"]
[null,null,null,null,100021604,"마쉬멜로우 세일러 리본 반바지"]
[null,null,null,null,100022805,"마쉬멜로우 세일러 블랙 슈즈"]
[null,null,null,null,100020106,"마쉬멜로우 세일러 트윈 테일 헤어"]
[null,null,null,null,100020107,"마쉬멜로우 세일러 숏 펌 헤어"]
[null,null,null,null,100020308,"마쉬멜로우 세일러 리본 모자"]
[null,null,null,null,100021409,"마쉬멜로우 세일러 블루 리본 이어링"]
[null,null,null,null,100021410,"마쉬멜로우 세일러 옐로 리본 이어링"]
[null,null,null,null,100022411,"마쉬멜로우 세일러 리본 가방"]
[null,null,null,null,100020312,"마쉬멜로우 세일러 블루 컵"]
[null,null,null,null,100020313,"마쉬멜로우 세일러 옐로 컵"]
[null,null,null,null,100022614,"마쉬멜로우 세일러 소풍 바구니"]
[null,null,null,null,100022615,"마쉬멜로우 세일러 구름 쿠션"]
[null,null,null,null,100022616,"마쉬멜로우 세일러 2단 아이스크림"]
[null,null,null,null,10400001,"매트 키친 테이블 (헬로키티)"]
[null,null,null,null,10400002,"매트 키친 테이블 (시나모롤)"]
[null,null,null,null,10400003,"매트 키친 테이블 (폼폼푸린)"]
[null,null,null,null,10400004,"매트 키친 테이블 (쿠로미)"]
[null,null,null,null,10400005,"매트 키친 테이블 (마이 멜로디)"]
[null,null,null,null,10400006,"매트 키친 테이블 (포차코)"]
[null,null,null,null,10400007,"매트 키친 테이블 (리틀트윈스타)"]
[null,null,null,null,10400008,"매트 키친 테이블 (한교동)"]
[null,null,null,null,10400009,"매트 키친 테이블 (케로케로케로피)"]
[null,null,null,null,10400010,"매트 키친 테이블 (배드바츠마루)"]
[null,null,null,null,10400011,"매트 키친 테이블 (아히루노페클)"]
[null,null,null,null,10400012,"매트 키친 테이블 (턱시도샘)"]
[null,null,null,null,10400013,"매트 키친 테이블 (마이스윗피아노)"]
[null,null,null,null,10400014,"매트 키친 테이블 (구데타마)"]
[null,null,null,null,10500001,"커튼 미니 창문 (헬로키티)"]
[null,null,null,null,10500002,"커튼 미니 창문 (시나모롤)"]
[null,null,null,null,10500003,"커튼 미니 창문 (폼폼푸린)"]
[null,null,null,null,10500004,"커튼 미니 창문 (쿠로미)"]
[null,null,null,null,10500005,"커튼 미니 창문 (마이 멜로디)"]
[null,null,null,null,10500006,"커튼 미니 창문 (포차코)"]
[null,null,null,null,10500007,"커튼 미니 창문 (리틀트윈스타)"]
[null,null,null,null,10500008,"커튼 미니 창문 (한교동)"]
[null,null,null,null,10500009,"커튼 미니 창문 (케로케로케로피)"]
[null,null,null,null,10500010,"커튼 미니 창문 (배드바츠마루)"]
[null,null,null,null,10500011,"커튼 미니 창문 (아히루노페클)"]
[null,null,null,null,10500012,"커튼 미니 창문 (턱시도샘)"]
[null,null,null,null,10500013,"커튼 미니 창문 (마이스윗피아노)"]
[null,null,null,null,10500014,"커튼 미니 창문 (구데타마)"]
[null,null,null,null,10500015,"열린 커튼 미니 창문 (헬로키티)"]
[null,null,null,null,10500016,"열린 커튼 미니 창문 (시나모롤)"]
[null,null,null,null,10500017,"열린 커튼 미니 창문 (폼폼푸린)"]
[null,null,null,null,10500018,"열린 커튼 미니 창문 (쿠로미)"]
[null,null,null,null,10500019,"열린 커튼 미니 창문 (마이 멜로디)"]
[null,null,null,null,10500020,"열린 커튼 미니 창문 (포차코)"]
[null,null,null,null,10500021,"열린 커튼 미니 창문 (리틀트윈스타)"]
[null,null,null,null,10500022,"열린 커튼 미니 창문 (한교동)"]
[null,null,null,null,10500023,"열린 커튼 미니 창문 (케로케로케로피)"]
[null,null,null,null,10500024,"열린 커튼 미니 창문 (배드바츠마루)"]
[null,null,null,null,10500025,"열린 커튼 미니 창문 (아히루노페클)"]
[null,null,null,null,10500026,"열린 커튼 미니 창문 (턱시도샘)"]
[null,null,null,null,10500027,"열린 커튼 미니 창문 (마이스윗피아노)"]
[null,null,null,null,10500028,"열린 커튼 미니 창문 (구데타마)"]
[null,null,null,null,10500029,"메뉴판 (헬로키티)"]
[null,null,null,null,10500030,"메뉴판 (시나모롤)"]
[null,null,null,null,10500031,"메뉴판 (폼폼푸린)"]
[null,null,null,null,10500032,"메뉴판 (쿠로미)"]
[null,null,null,null,10500033,"메뉴판 (마이 멜로디)"]
[null,null,null,null,10500034,"메뉴판 (포차코)"]
[null,null,null,null,10500035,"메뉴판 (리틀트윈스타)"]
[null,null,null,null,10500036,"메뉴판 (한교동)"]
[null,null,null,null,10500037,"메뉴판 (케로케로케로피)"]
[null,null,null,null,10500038,"메뉴판 (배드바츠마루)"]
[null,null,null,null,10500039,"메뉴판 (아히루노페클)"]
[null,null,null,null,10500040,"메뉴판 (턱시도샘)"]
[null,null,null,null,10500041,"메뉴판 (마이스윗피아노)"]
[null,null,null,null,10500042,"메뉴판 (구데타마)"]

{"sheet":"NO_아이템 검색","index":2,"n_rows":23,"n_cols":22,"rows_kept":23,"cut":false,"hidden":false,"merged":[]}
[]
[null,"*속성별 아이템 개수 검색하기",null,null,null,null,null,null,null,null,null,"*현재까지 메인1 속성의 개수"]
[null,null,null,null,null,null,null,null,null,null,null,"속성","격식","심플","섹시","시원","따뜻","큐티","발랄","청순","화려","우아"]
[null,"아이템 종류","메인1","메인2",null,null,null,null,null,"개수",null,"개수",{"$f":"COUNTIF(EquipItem!$S:$S,'NO_아이템 검색'!M3)","v":9},{"$f":"COUNTIF(EquipItem!$S:$S,'NO_아이템 검색'!N3)","v":84},{"$f":"COUNTIF(EquipItem!$S:$S,'NO_아이템 검색'!O3)","v":0},{"$f":"COUNTIF(EquipItem!$S:$S,'NO_아이템 검색'!P3)","v":6},{"$f":"COUNTIF(EquipItem!$S:$S,'NO_아이템 검색'!Q3)","v":0},{"$f":"COUNTIF(EquipItem!$S:$S,'NO_아이템 검색'!R3)","v":16},{"$f":"COUNTIF(EquipItem!$S:$S,'NO_아이템 검색'!S3)","v":5},{"$f":"COUNTIF(EquipItem!$S:$S,'NO_아이템 검색'!T3)","v":0},{"$f":"COUNTIF(EquipItem!$S:$S,'NO_아이템 검색'!U3)","v":3},{"$f":"COUNTIF(EquipItem!$S:$S,'NO_아이템 검색'!V3)","v":0}]
[null,"헤어","격식","발랄",null,null,null,null,null,{"$f":"COUNTIFS(EquipItem!$F:$F,'NO_아이템 검색'!B5,EquipItem!$S:$S,'NO_아이템 검색'!C5,EquipItem!$U:$U,'NO_아이템 검색'!D5)&\"개\"","v":"0개"}]
[]
[null,"아이템 종류","메인1","메인2","서브1",null,null,null,null,"개수"]
[null,"헤어","심플","발랄","심플",null,null,null,null,{"$f":"COUNTIFS(EquipItem!$F:$F,'NO_아이템 검색'!B8,EquipItem!$S:$S,'NO_아이템 검색'!C8,EquipItem!$U:$U,'NO_아이템 검색'!D8,EquipItem!$W:$W,'NO_아이템 검색'!E8)&\"개\"","v":"20개"}]
[]
[null,"아이템 종류","메인1","메인2","서브1","서브2",null,null,null,"개수"]
[null,"헤어","심플","발랄","심플","청순",null,null,null,{"$f":"COUNTIFS(EquipItem!$F:$F,'NO_아이템 검색'!B11,EquipItem!$S:$S,'NO_아이템 검색'!C11,EquipItem!$U:$U,'NO_아이템 검색'!D11,EquipItem!$W:$W,'NO_아이템 검색'!E11,EquipItem!$Y:$Y,'NO_아이템 검색'!F11)&\"개\"","v":"20개"}]
[]
[null,"아이템 종류","메인1","메인2","서브1","서브2","서브3",null,null,"개수"]
[null,"헤어","심플","발랄","심플","청순","발랄",null,null,{"$f":"COUNTIFS(EquipItem!$F:$F,'NO_아이템 검색'!B14,EquipItem!$S:$S,'NO_아이템 검색'!C14,EquipItem!$U:$U,'NO_아이템 검색'!D14,EquipItem!$W:$W,'NO_아이템 검색'!E14,EquipItem!$Y:$Y,'NO_아이템 검색'!F14,EquipItem!$AA:$AA,'NO_아이템 검색'!G14)&\"개\"","v":"20개"}]
[]
[null,"아이템 종류","메인1","메인2","서브1","서브2","서브3","서브4",null,"개수"]
[null,"헤어","심플","발랄","심플","청순","발랄","시원",null,{"$f":"COUNTIFS(EquipItem!$F:$F,'NO_아이템 검색'!B17,EquipItem!$S:$S,'NO_아이템 검색'!C17,EquipItem!$U:$U,'NO_아이템 검색'!D17,EquipItem!$W:$W,'NO_아이템 검색'!E17,EquipItem!$Y:$Y,'NO_아이템 검색'!F17,EquipItem!$AA:$AA,'NO_아이템 검색'!G17,EquipItem!$AC:$AC,'NO_아이템 검색'!H17)&\"개\"","v":"20개"}]
[]
[null,"아이템 종류","메인1","메인2","서브1","서브2","서브3","서브4","서브5","개수"]
[null,"헤어","심플","발랄","심플","청순","발랄","시원","따뜻",{"$f":"COUNTIFS(EquipItem!$F:$F,'NO_아이템 검색'!B20,EquipItem!$S:$S,'NO_아이템 검색'!C20,EquipItem!$U:$U,'NO_아이템 검색'!D20,EquipItem!$W:$W,'NO_아이템 검색'!E20,EquipItem!$Y:$Y,'NO_아이템 검색'!F20,EquipItem!$AA:$AA,'NO_아이템 검색'!G20,EquipItem!$AC:$AC,'NO_아이템 검색'!H20,EquipItem!$AE:$AE,'NO_아이템 검색'!I20)&\"개\"","v":"20개"}]
[]
[null,"※ 아이템 기획 시 사용해 주세요."]
[null,"※ 한 아이템에 같은 속성이 중복되지 않도록 한다. (단, 메인 1개 서브 1개는 OK)"]

{"sheet":"EquipItem","index":3,"n_rows":139,"n_cols":43,"rows_kept":139,"cut":false,"hidden":false,"merged":[]}
["ServiceType","Key","#ItemName","#EquipItemCategory","EquipItemCategory","#EquipItemType","EquipItemType","SkinName","#EquipLimitType","EquipLimitType","IsDye","IsColor1","Color1ID","IsColor2","Color2ID","IsColor3","Color3ID","FabricGroupID","#MainFeature1","MainFeature1","#MainFeature2","MainFeature2","#SubFeature1","SubFeature1","#SubFeature2","SubFeatur2","#SubFeature3","SubFeature3","#SubFeature4","SubFeature4","#SubFeature5","SubFeature5","PartsGroupID","IsFittingRoom","IsDummyEpuip","IsAnim","#AnimName","AnimID","SpecialEffectID_F","SpecialEffectID_B","OpenTime","#LiveDate","UpdateVersion"]
["string","int","none","none","EEquipItemCategory","none","EEquipItemType","string","none","EEquipLimitType","bool","bool","int","bool","int","bool","int","int[]","none","EFeatureType","none","EFeatureType","none","EFeatureType","none","EFeatureType","none","EFeatureType","none","EFeatureType","none","EFeatureType","int","bool","bool","bool","none","EAnimationType","string","string","datetime","none","int"]
["All","All","All","Client","Client","Client","All","Client","Client","Client","Client","All","All","All","All","All","All","All","All","All","All","All","All","All","All","All","All","All","All","All","All","All","All","Client","All","All","Client","Client","Client","Client","All","Client","All"]
["서비스 타입","캐릭터 착용 아이템 ID","캐릭터 착용 아이템명","#아이템 카테고리","아이템 카테고리","#아이템 종류","아이템 종류","스킨네임 ID","#남녀 착용 제한 종류","남녀 착용 제한 종류","염색 가능 여부","파트1 염색 가능 여부","컬러1","파트2 염색 가능 여부","컬러B","파트3 염색 가능 여부","컬러C","물감 그룹 ID","#메인 속성1","메인 속성1","#메인 속성2","메인 속성2","#서브 속성1","서브 속성1","#서브 속성2","서브 속성2","#서브 속성3","서브 속성3","#서브 속성4","서브 속성4","#서브 속성5","서브 속성5","파츠 제한 그룹 ID","피팅룸 추가 여부","마네킹 장착 여부","애니메이션 여부","#애니메이션명","애니메이션 ID","전용 모션 이펙트 F ID","전용 모션 이펙트 B ID","오픈 시간","출시 일자","업데이트 버전"]
["DEV",109,{"$f":"INDEX(NO_참조테이블!$F:$F,MATCH(B5,NO_참조테이블!$E:$E,0))","v":"살짝 뻗친 중단발"},"머리",{"$f":"INDEX('NO_Table Parameter'!$G$3:$G$1048576,MATCH(EquipItem!D5,'NO_Table Parameter'!$H$3:$H$1048576,0))","v":1},"헤어",{"$f":"INDEX('NO_Table Parameter'!$J:$J,MATCH(EquipItem!F5,'NO_Table Parameter'!$K:$K,0))","v":1},"hair_109","남녀 공용",{"$f":"INDEX('NO_Table Parameter'!S:S,MATCH(EquipItem!I5,'NO_Table Parameter'!T:T,0))","v":1},0,1,104,0,null,0,null,null,"심플",{"$f":"INDEX('NO_Table Parameter'!$P:$P,MATCH(S5,'NO_Table Parameter'!$Q:$Q,0))","v":2},"발랄",{"$f":"INDEX('NO_Table Parameter'!$P:$P,MATCH(U5,'NO_Table Parameter'!$Q:$Q,0))","v":7},"심플",{"$f":"INDEX('NO_Table Parameter'!$P:$P,MATCH(W5,'NO_Table Parameter'!$Q:$Q,0))","v":2},"청순",{"$f":"INDEX('NO_Table Parameter'!$P:$P,MATCH(Y5,'NO_Table Parameter'!$Q:$Q,0))","v":8},"발랄",{"$f":"INDEX('NO_Table Parameter'!$P:$P,MATCH(AA5,'NO_Table Parameter'!$Q:$Q,0))","v":7},"시원",{"$f":"INDEX('NO_Table Parameter'!$P:$P,MATCH(AC5,'NO_Table Parameter'!$Q:$Q,0))","v":4},"따뜻",{"$f":"INDEX('NO_Table Parameter'!$P:$P,MATCH(AE5,'NO_Table Parameter'!$Q:$Q,0))","v":5},null,1,1,1,"change_hair01",{"$f":"INDEX(NO_참조테이블!H:H,MATCH(EquipItem!AK5,NO_참조테이블!I:I,0))","v":51},null,null,"2023-03-02T05:50:10 +09:00","2022-09-29",1]
["DEV",110,{"$f":"INDEX(NO_참조테이블!$F:$F,MATCH(B6,NO_참조테이블!$E:$E,0))","v":"기본 의상"},"몸",{"$f":"INDEX('NO_Table Parameter'!$G$3:$G$1048576,MATCH(EquipItem!D6,'NO_Table Parameter'!$H$3:$H$1048576,0))","v":6},"상의",{"$f":"INDEX('NO_Table Parameter'!$J:$J,MATCH(EquipItem!F6,'NO_Table Parameter'!$K:$K,0))","v":15},null,"남녀 공용",{"$f":"INDEX('NO_Table Parameter'!S:S,MATCH(EquipItem!I6,'NO_Table Parameter'!T:T,0))","v":1},1,1,29,1,78,0,null,"1|2","발랄",{"$f":"INDEX('NO_Table Parameter'!$P:$P,MATCH(S6,'NO_Table Parameter'!$Q:$Q,0))","v":7},"시원",{"$f":"INDEX('NO_Table Parameter'!$P:$P,MATCH(U6,'NO_Table Parameter'!$Q:$Q,0))","v":4},"청순",{"$f":"INDEX('NO_Table Parameter'!$P:$P,MATCH(W6,'NO_Table Parameter'!$Q:$Q,0))","v":8},"시원",{"$f":"INDEX('NO_Table Parameter'!$P:$P,MATCH(Y6,'NO_Table Parameter'!$Q:$Q,0))","v":4},"심플",{"$f":"INDEX('NO_Table Parameter'!$P:$P,MATCH(AA6,'NO_Table Parameter'!$Q:$Q,0))","v":2},"큐티",{"$f":"INDEX('NO_Table Parameter'!$P:$P,MATCH(AC6,'NO_Table Parameter'!$Q:$Q,0))","v":6},"따뜻",{"$f":"INDEX('NO_Table Parameter'!$P:$P,MATCH(AE6,'NO_Table Parameter'!$Q:$Q,0))","v":5},null,1,1,1,"change_cloth02",{"$f":"INDEX(NO_참조테이블!H:H,MATCH(EquipItem!AK6,NO_참조테이블!I:I,0))","v":102},null,null,"2023-03-02T05:50:10 +09:00","2022-09-29",1]
["DEV",143,{"$f":"INDEX(NO_참조테이블!$F:$F,MATCH(B7,NO_참조테이블!$E:$E,0))","v":"심플한 티셔츠"},"몸",{"$f":"INDEX('NO_Table Parameter'!$G$3:$G$1048576,MATCH(EquipItem!D7,'NO_Table Parameter'!$H$3:$H$1048576,0))","v":6},"상의",{"$f":"INDEX('NO_Table Parameter'!$J:$J,MATCH(EquipItem!F7,'NO_Table Parameter'!$K:$K,0))","v":15},"top_143","남자만 착용 가능",{"$f":"INDEX('NO_Table Parameter'!S:S,MATCH(EquipItem!I7,'NO_Table Parameter'!T:T,0))","v":2},0,1,98,1,162,0,null,"1|2","격식",{"$f":"INDEX('NO_Table Parameter'!$P:$P,MATCH(S7,'NO_Table Parameter'!$Q:$Q,0))","v":1},"심플",{"$f":"INDEX('NO_Table Parameter'!$P:$P,MATCH(U7,'NO_Table Parameter'!$Q:$Q,0))","v":2},"심플",{"$f":"INDEX('NO_Table Parameter'!$P:$P,MATCH(W7,'NO_Table Parameter'!$Q:$Q,0))","v":2},"청순",{"$f":"INDEX('NO_Table Parameter'!$P:$P,MATCH(Y7,'NO_Table Parameter'!$Q:$Q,0))","v":8},"발랄",{"$f":"INDEX('NO_Table Parameter'!$P:$P,MATCH(AA7,'NO_Table Parameter'!$Q:$Q,0))","v":7},"시원",{"$f":"INDEX('NO_Table Parameter'!$P:$P,MATCH(AC7,'NO_Table Parameter'!$Q:$Q,0))","v":4},"따뜻",{"$f":"INDEX('NO_Table Parameter'!$P:$P,MATCH(AE7,'NO_Table Parameter'!$Q:$Q,0))","v":5},null,1,1,1,"change_cloth02",{"$f":"INDEX(NO_참조테이블!H:H,MATCH(EquipItem!AK7,NO_참조테이블!I:I,0))","v":102},null,null,"2023-03-02T05:50:10 +09:01","2022-09-30",1]
["DEV",144,{"$f":"INDEX(NO_참조테이블!$F:$F,MATCH(B8,NO_참조테이블!$E:$E,0))","v":"심플한 롱티셔츠"},"몸",{"$f":"INDEX('NO_Table Parameter'!$G$3:$G$1048576,MATCH(EquipItem!D8,'NO_Table Parameter'!$H$3:$H$1048576,0))","v":6},"상의",{"$f":"INDEX('NO_Table Parameter'!$J:$J,MATCH(EquipItem!F8,'NO_Table Parameter'!$K:$K,0))","v":15},"top_144","여자만 착용 가능",{"$f":"INDEX('NO_Table Parameter'!S:S,MATCH(EquipItem!I8,'NO_Table Parameter'!T:T,0))","v":3},1,1,160,1,161,0,null,"1|2","소녀",{"$f":"INDEX('NO_Table Parameter'!$P:$P,MATCH(S8,'NO_Table Parameter'!$Q:$Q,0))","v":3},"따뜻",{"$f":"INDEX('NO_Table Parameter'!$P:$P,MATCH(U8,'NO_Table Parameter'!$Q:$Q,0))","v":5},"심플",{"$f":"INDEX('NO_Table Parameter'!$P:$P,MATCH(W8,'NO_Table Parameter'!$Q:$Q,0))","v":2},"화려",{"$f":"INDEX('NO_Table Parameter'!$P:$P,MATCH(Y8,'NO_Table Parameter'!$Q:$Q,0))","v":9},"발랄",{"$f":"INDEX('NO_Table Parameter'!$P:$P,MATCH(AA8,'NO_Table Parameter'!$Q:$Q,0))","v":7},"시원",{"$f":"INDEX('NO_Table Parameter'!$P:$P,MATCH(AC8,'NO_Table Parameter'!$Q:$Q,0))","v":4},"따뜻",{"$f":"INDEX('NO_Table Parameter'!$P:$P,MATCH(AE8,'NO_Table Parameter'!$Q:$Q,0))","v":5},null,0,0,1,"change_cloth02",{"$f":"INDEX(NO_참조테이블!H:H,MATCH(EquipItem!AK8,NO_참조테이블!I:I,0))","v":102},null,null,"2023-03-02T05:50:10 +09:02","2022-10-01",1]
["DEV",145,{"$f":"INDEX(NO_참조테이블!$F:$F,MATCH(B9,NO_참조테이블!$E:$E,0))","v":"깔끔한 로퍼"},"발",{"$f":"INDEX('NO_Table Parameter'!$G$3:$G$1048576,MATCH(EquipItem!D9,'NO_Table Parameter'!$H$3:$H$1048576,0))","v":10},"신발",{"$f":"INDEX('NO_Table Parameter'!$J:$J,MATCH(EquipItem!F9,'NO_Table Parameter'!$K:$K,0))","v":28},"shoes_145","남녀 공용",{"$f":"INDEX('NO_Table Parameter'!S:S,MATCH(EquipItem!I9,'NO_Table Parameter'!T:T,0))","v":1},0,0,null,0,null,0,null,null,"시원",{"$f":"INDEX('NO_Table Parameter'!$P:$P,MATCH(S9,'NO_Table Parameter'!$Q:$Q,0))","v":4},"우아",{"$f":"INDEX('NO_Table Parameter'!$P:$P,MATCH(U9,'NO_Table Parameter'!$Q:$Q,0))","v":10},"발랄",{"$f":"INDEX('NO_Table Parameter'!$P:$P,MATCH(W9,'NO_Table Parameter'!$Q:$Q,0))","v":7},"청순",{"$f":"INDEX('NO_Table Parameter'!$P:$P,MATCH(Y9,'NO_Table Parameter'!$Q:$Q,0))","v":8},"화려",{"$f":"INDEX('NO_Table Parameter'!$P:$P,MATCH(AA9,'NO_Table Parameter'!$Q:$Q,0))","v":9},"시원",{"$f":"INDEX('NO_Table Parameter'!$P:$P,MATCH(AC9,'NO_Table Parameter'!$Q:$Q,0))","v":4},"따뜻",{"$f":"INDEX('NO_Table Parameter'!$P:$P,MATCH(AE9,'NO_Table Parameter'!$Q:$Q,0))","v":5},null,0,0,1,"change_shoes01",{"$f":"INDEX(NO_참조테이블!H:H,MATCH(EquipItem!AK9,NO_참조테이블!I:I,0))","v":54},null,null,"2023-03-02T05:50:10 +09:03","2022-10-02",1]
["DEV",146,{"$f":"INDEX(NO_참조테이블!$F:$F,MATCH(B10,NO_참조테이블!$E:$E,0))","v":"기본 악세서리"},"귀",{"$f":"INDEX('NO_Table Parameter'!$G$3:$G$1048576,MATCH(EquipItem!D10,'NO_Table Parameter'!$H$3:$H$1048576,0))","v":4},"귀걸이",{"$f":"INDEX('NO_Table Parameter'!$J:$J,MATCH(EquipItem!F10,'NO_Table Parameter'!$K:$K,0))","v":14},null,"남녀 공용",{"$f":"INDEX('NO_Table Parameter'!S:S,MATCH(EquipItem!I10,'NO_Table Parameter'!T:T,0))","v":1},0,0,null,0,null,0,null,null,"화려",{"$f":"INDEX('NO_Table Parameter'!$P:$P,MATCH(S10,'NO_Table Parameter'!$Q:$Q,0))","v":9},"청순",{"$f":"INDEX('NO_Table Parameter'!$P:$P,MATCH(U10,'NO_Table Parameter'!$Q:$Q,0))","v":8},"심플",{"$f":"INDEX('NO_Table Parameter'!$P:$P,MATCH(W10,'NO_Table Parameter'!$Q:$Q,0))","v":2},"청순",{"$f":"INDEX('NO_Table Parameter'!$P:$P,MATCH(Y10,'NO_Table Parameter'!$Q:$Q,0))","v":8},"우아",{"$f":"INDEX('NO_Table Parameter'!$P:$P,MATCH(AA10,'NO_Table Parameter'!$Q:$Q,0))","v":10},"격식",{"$f":"INDEX('NO_Table Parameter'!$P:$P,MATCH(AC10,'NO_Table Parameter'!$Q:$Q,0))","v":1},"소녀",{"$f":"INDEX('NO_Table Parameter'!$P:$P,MATCH(AE10,'NO_Table Parameter'!$Q:$Q,0))","v":3},null,0,0,1,"change_eye01",{"$f":"INDEX(NO_참조테이블!H:H,MATCH(EquipItem!AK10,NO_참조테이블!I:I,0))","v":52},null,null,"2023-03-02T05:50:10 +09:04","2022-10-03",1]
["DEV",148,{"$f":"INDEX(NO_참조테이블!$F:$F,MATCH(B11,NO_참조테이블!$E:$E,0))","v":"베이직 9부 바지"},"몸",{"$f":"INDEX('NO_Table Parameter'!$G$3:$G$1048576,MATCH(EquipItem!D11,'NO_Table Parameter'!$H$3:$H$1048576,0))","v":6},"하의",{"$f":"INDEX('NO_Table Parameter'!$J:$J,MATCH(EquipItem!F11,'NO_Table Parameter'!$K:$K,0))","v":16},"bottom_148","남녀 공용",{"$f":"INDEX('NO_Table Parameter'!S:S,MATCH(EquipItem!I11,'NO_Table Parameter'!T:T,0))","v":1},1,1,163,0,null,0,null,null,"격식",{"$f":"INDEX('NO_Table Parameter'!$P:$P,MATCH(S11,'NO_Table Parameter'!$Q:$Q,0))","v":1},"심플",{"$f":"INDEX('NO_Table Parameter'!$P:$P,MATCH(U11,'NO_Table Parameter'!$Q:$Q,0))","v":2},"심플",{"$f":"INDEX('NO_Table Parameter'!$P:$P,MATCH(W11,'NO_Table Parameter'!$Q:$Q,0))","v":2},"청순",{"$f":"INDEX('NO_Table Parameter'!$P:$P,MATCH(Y11,'NO_Table Parameter'!$Q:$Q,0))","v":8},"발랄",{"$f":"INDEX('NO_Table Parameter'!$P:$P,MATCH(AA11,'NO_Table Parameter'!$Q:$Q,0))","v":7},"시원",{"$f":"INDEX('NO_Table Parameter'!$P:$P,MATCH(AC11,'NO_Table Parameter'!$Q:$Q,0))","v":4},"따뜻",{"$f":"INDEX('NO_Table Parameter'!$P:$P,MATCH(AE11,'NO_Table Parameter'!$Q:$Q,0))","v":5},null,1,1,1,"change_cloth02",{"$f":"INDEX(NO_참조테이블!H:H,MATCH(EquipItem!AK11,NO_참조테이블!I:I,0))","v":102},null,null,"2023-03-02T05:50:10 +09:01","2022-09-30",1]
["DEV",149,{"$f":"INDEX(NO_참조테이블!$F:$F,MATCH(B12,NO_참조테이블!$E:$E,0))","v":"베이직 미니스커트"},"몸",{"$f":"INDEX('NO_Table Parameter'!$G$3:$G$1048576,MATCH(EquipItem!D12,'NO_Table Parameter'!$H$3:$H$1048576,0))","v":6},"하의",{"$f":"INDEX('NO_Table Parameter'!$J:$J,MATCH(EquipItem!F12,'NO_Table Parameter'!$K:$K,0))","v":16},"bottom_149","남녀 공용",{"$f":"INDEX('NO_Table Parameter'!S:S,MATCH(EquipItem!I12,'NO_Table Parameter'!T:T,0))","v":1},1,1,150,0,null,0,null,null,"소녀",{"$f":"INDEX('NO_Table Parameter'!$P:$P,MATCH(S12,'NO_Table Parameter'!$Q:$Q,0))","v":3},"따뜻",{"$f":"INDEX('NO_Table Parameter'!$P:$P,MATCH(U12,'NO_Table Parameter'!$Q:$Q,0))","v":5},"심플",{"$f":"INDEX('NO_Table Parameter'!$P:$P,MATCH(W12,'NO_Table Parameter'!$Q:$Q,0))","v":2},"화려",{"$f":"INDEX('NO_Table Parameter'!$P:$P,MATCH(Y12,'NO_Table Parameter'!$Q:$Q,0))","v":9},"발랄",{"$f":"INDEX('NO_Table Parameter'!$P:$P,MATCH(AA12,'NO_Table Parameter'!$Q:$Q,0))","v":7},"시원",{"$f":"INDEX('NO_Table Parameter'!$P:$P,MATCH(AC12,'NO_Table Parameter'!$Q:$Q,0))","v":4},"따뜻",{"$f":"INDEX('NO_Table Parameter'!$P:$P,MATCH(AE12,'NO_Table Parameter'!$Q:$Q,0))","v":5},null,0,0,1,"change_cloth02",{"$f":"INDEX(NO_참조테이블!H:H,MATCH(EquipItem!AK12,NO_참조테이블!I:I,0))","v":102},null,null,"2023-03-02T05:50:10 +09:02","2022-10-01",1]
["DEV",1000000,{"$f":"INDEX(NO_참조테이블!$F:$F,MATCH(B13,NO_참조테이블!$E:$E,0))","v":"밤하늘 귀걸이"},"귀",{"$f":"INDEX('NO_Table Parameter'!$G$3:$G$1048576,MATCH(EquipItem!D13,'NO_Table Parameter'!$H$3:$H$1048576,0))","v":4},"귀걸이",{"$f":"INDEX('NO_Table Parameter'!$J:$J,MATCH(EquipItem!F13,'NO_Table Parameter'!$K:$K,0))","v":14},"earings_1000","남녀 공용",{"$f":"INDEX('NO_Table Parameter'!S:S,MATCH(EquipItem!I13,'NO_Table Parameter'!T:T,0))","v":1},0,0,null,0,null,0,null,null,"심플",{"$f":"INDEX('NO_Table Parameter'!$P:$P,MATCH(S13,'NO_Table Parameter'!$Q:$Q,0))","v":2},"발랄",{"$f":"INDEX('NO_Table Parameter'!$P:$P,MATCH(U13,'NO_Table Parameter'!$Q:$Q,0))","v":7},"심플",{"$f":"INDEX('NO_Table Parameter'!$P:$P,MATCH(W13,'NO_Table Parameter'!$Q:$Q,0))","v":2},"청순",{"$f":"INDEX('NO_Table Parameter'!$P:$P,MATCH(Y13,'NO_Table Parameter'!$Q:$Q,0))","v":8},"발랄",{"$f":"INDEX('NO_Table Parameter'!$P:$P,MATCH(AA13,'NO_Table Parameter'!$Q:$Q,0))","v":7},"시원",{"$f":"INDEX('NO_Table Parameter'!$P:$P,MATCH(AC13,'NO_Table Parameter'!$Q:$Q,0))","v":4},"따뜻",{"$f":"INDEX('NO_Table Parameter'!$P:$P,MATCH(AE13,'NO_Table Parameter'!$Q:$Q,0))","v":5},null,0,0,1,"change_eye01",{"$f":"INDEX(NO_참조테이블!H:H,MATCH(EquipItem!AK13,NO_참조테이블!I:I,0))","v":52},null,null,"2023-03-02T05:50:10 +09:00","2022-09-29",1]
["DEV",1000001,{"$f":"INDEX(NO_참조테이블!$F:$F,MATCH(B14,NO_참조테이블!$E:$E,0))","v":"밤하늘 요정의 귀"},"귀",{"$f":"INDEX('NO_Table Parameter'!$G$3:$G$1048576,MATCH(EquipItem!D14,'NO_Table Parameter'!$H$3:$H$1048576,0))","v":4},"귀모양",{"$f":"INDEX('NO_Table Parameter'!$J:$J,MATCH(EquipItem!F14,'NO_Table Parameter'!$K:$K,0))","v":13},"earshape_1001","남녀 공용",{"$f":"INDEX('NO_Table Parameter'!S:S,MATCH(EquipItem!I14,'NO_Table Parameter'!T:T,0))","v":1},0,0,null,0,null,0,null,null,"발랄",{"$f":"INDEX('NO_Table Parameter'!$P:$P,MATCH(S14,'NO_Table Parameter'!$Q:$Q,0))","v":7},"시원",{"$f":"INDEX('NO_Table Parameter'!$P:$P,MATCH(U14,'NO_Table Parameter'!$Q:$Q,0))","v":4},"청순",{"$f":"INDEX('NO_Table Parameter'!$P:$P,MATCH(W14,'NO_Table Parameter'!$Q:$Q,0))","v":8},"시원",{"$f":"INDEX('NO_Table Parameter'!$P:$P,MATCH(Y14,'NO_Table Parameter'!$Q:$Q,0))","v":4},"심플",{"$f":"INDEX('NO_Table Parameter'!$P:$P,MATCH(AA14,'NO_Table Parameter'!$Q:$Q,0))","v":2},"큐티",{"$f":"INDEX('NO_Table Parameter'!$P:$P,MATCH(AC14,'NO_Table Parameter'!$Q:$Q,0))","v":6},"따뜻",{"$f":"INDEX('NO_Table Parameter'!$P:$P,MATCH(AE14,'NO_Table Parameter'!$Q:$Q,0))","v":5},null,0,0,1,"change_eye01",{"$f":"INDEX(NO_참조테이블!H:H,MATCH(EquipItem!AK14,NO_참조테이블!I:I,0))","v":52},null,null,"2023-03-02T05:50:10 +09:00","2022-09-29",1]
["DEV",1000002,{"$f":"INDEX(NO_참조테이블!$F:$F,MATCH(B15,NO_참조테이블!$E:$E,0))","v":"밤하늘 날개"},"등",{"$f":"INDEX('NO_Table Parameter'!$G$3:$G$1048576,MATCH(EquipItem!D15,'NO_Table Parameter'!$H$3:$H$1048576,0))","v":7},"등",{"$f":"INDEX('NO_Table Parameter'!$J:$J,MATCH(EquipItem!F15,'NO_Table Parameter'!$K:$K,0))","v":19},"back_1002","남녀 공용",{"$f":"INDEX('NO_Table Parameter'!S:S,MATCH(EquipItem!I15,'NO_Table Parameter'!T:T,0))","v":1},0,0,null,0,null,0,null,null,"격식",{"$f":"INDEX('NO_Table Parameter'!$P:$P,MATCH(S15,'NO_Table Parameter'!$Q:$Q,0))","v":1},"심플",{"$f":"INDEX('NO_Table Parameter'!$P:$P,MATCH(U15,'NO_Table Parameter'!$Q:$Q,0))","v":2},"심플",{"$f":"INDEX('NO_Table Parameter'!$P:$P,MATCH(W15,'NO_Table Parameter'!$Q:$Q,0))","v":2},"청순",{"$f":"INDEX('NO_Table Parameter'!$P:$P,MATCH(Y15,'NO_Table Parameter'!$Q:$Q,0))","v":8},"발랄",{"$f":"INDEX('NO_Table Parameter'!$P:$P,MATCH(AA15,'NO_Table Parameter'!$Q:$Q,0))","v":7},"시원",{"$f":"INDEX('NO_Table Parameter'!$P:$P,MATCH(AC15,'NO_Table Parameter'!$Q:$Q,0))","v":4},"따뜻",{"$f":"INDEX('NO_Table Parameter'!$P:$P,MATCH(AE15,'NO_Table Parameter'!$Q:$Q,0))","v":5},null,0,0,1,"change_cloth01",{"$f":"INDEX(NO_참조테이블!H:H,MATCH(EquipItem!AK15,NO_참조테이블!I:I,0))","v":50},null,null,"2023-03-02T05:50:10 +09:01","2022-09-30",1]
["DEV",1000003,{"$f":"INDEX(NO_참조테이블!$F:$F,MATCH(B16,NO_참조테이블!$E:$E,0))","v":"밤하늘의 별"},"머리",{"$f":"INDEX('NO_Table Parameter'!$G$3:$G$1048576,MATCH(EquipItem!D16,'NO_Table Parameter'!$H$3:$H$1048576,0))","v":1},"머리 (공중)",{"$f":"INDEX('NO_Table Parameter'!$J:$J,MATCH(EquipItem!F16,'NO_Table Parameter'!$K:$K,0))","v":5},"headover_1003","남녀 공용",{"$f":"INDEX('NO_Table Parameter'!S:S,MATCH(EquipItem!I16,'NO_Table Parameter'!T:T,0))","v":1},0,0,null,0,null,0,null,null,"소녀",{"$f":"INDEX('NO_Table Parameter'!$P:$P,MATCH(S16,'NO_Table Parameter'!$Q:$Q,0))","v":3},"따뜻",{"$f":"INDEX('NO_Table Parameter'!$P:$P,MATCH(U16,'NO_Table Parameter'!$Q:$Q,0))","v":5},"심플",{"$f":"INDEX('NO_Table Parameter'!$P:$P,MATCH(W16,'NO_Table Parameter'!$Q:$Q,0))","v":2},"화려",{"$f":"INDEX('NO_Table Parameter'!$P:$P,MATCH(Y16,'NO_Table Parameter'!$Q:$Q,0))","v":9},"발랄",{"$f":"INDEX('NO_Table Parameter'!$P:$P,MATCH(AA16,'NO_Table Parameter'!$Q:$Q,0))","v":7},"시원",{"$f":"INDEX('NO_Table Parameter'!$P:$P,MATCH(AC16,'NO_Table Parameter'!$Q:$Q,0))","v":4},"따뜻",{"$f":"INDEX('NO_Table Parameter'!$P:$P,MATCH(AE16,'NO_Table Parameter'!$Q:$Q,0))","v":5},null,0,0,1,"change_hair01",{"$f":"INDEX(NO_참조테이블!H:H,MATCH(EquipItem!AK16,NO_참조테이블!I:I,0))","v":51},null,null,"2023-03-02T05:50:10 +09:02","2022-10-01",1]
["DEV",1000004,{"$f":"INDEX(NO_참조테이블!$F:$F,MATCH(B17,NO_참조테이블!$E:$E,0))","v":"밤하늘 왕관"},"머리",{"$f":"INDEX('NO_Table Parameter'!$G$3:$G$1048576,MATCH(EquipItem!D17,'NO_Table Parameter'!$H$3:$H$1048576,0))","v":1},"머리 (뒤)",{"$f":"INDEX('NO_Table Parameter'!$J:$J,MATCH(EquipItem!F17,'NO_Table Parameter'!$K:$K,0))","v":4},"headback_1004","남녀 공용",{"$f":"INDEX('NO_Table Parameter'!S:S,MATCH(EquipItem!I17,'NO_Table Parameter'!T:T,0))","v":1},0,0,null,0,null,0,null,null,"시원",{"$f":"INDEX('NO_Table Parameter'!$P:$P,MATCH(S17,'NO_Table Parameter'!$Q:$Q,0))","v":4},"우아",{"$f":"INDEX('NO_Table Parameter'!$P:$P,MATCH(U17,'NO_Table Parameter'!$Q:$Q,0))","v":10},"발랄",{"$f":"INDEX('NO_Table Parameter'!$P:$P,MATCH(W17,'NO_Table Parameter'!$Q:$Q,0))","v":7},"청순",{"$f":"INDEX('NO_Table Parameter'!$P:$P,MATCH(Y17,'NO_Table Parameter'!$Q:$Q,0))","v":8},"화려",{"$f":"INDEX('NO_Table Parameter'!$P:$P,MATCH(AA17,'NO_Table Parameter'!$Q:$Q,0))","v":9},"시원",{"$f":"INDEX('NO_Table Parameter'!$P:$P,MATCH(AC17,'NO_Table Parameter'!$Q:$Q,0))","v":4},"따뜻",{"$f":"INDEX('NO_Table Parameter'!$P:$P,MATCH(AE17,'NO_Table Parameter'!$Q:$Q,0))","v":5},null,0,0,1,"change_hair01",{"$f":"INDEX(NO_참조테이블!H:H,MATCH(EquipItem!AK17,NO_참조테이블!I:I,0))","v":51},null,null,"2023-03-02T05:50:10 +09:03","2022-10-02",1]
["DEV",1000005,{"$f":"INDEX(NO_참조테이블!$F:$F,MATCH(B18,NO_참조테이블!$E:$E,0))","v":"밤하늘 뿔"},"머리",{"$f":"INDEX('NO_Table Parameter'!$G$3:$G$1048576,MATCH(EquipItem!D18,'NO_Table Parameter'!$H$3:$H$1048576,0))","v":1},"머리 (위)",{"$f":"INDEX('NO_Table Parameter'!$J:$J,MATCH(EquipItem!F18,'NO_Table Parameter'!$K:$K,0))","v":3},"headtop_1005","남녀 공용",{"$f":"INDEX('NO_Table Parameter'!S:S,MATCH(EquipItem!I18,'NO_Table Parameter'!T:T,0))","v":1},0,0,null,0,null,0,null,null,"화려",{"$f":"INDEX('NO_Table Parameter'!$P:$P,MATCH(S18,'NO_Table Parameter'!$Q:$Q,0))","v":9},"청순",{"$f":"INDEX('NO_Table Parameter'!$P:$P,MATCH(U18,'NO_Table Parameter'!$Q:$Q,0))","v":8},"심플",{"$f":"INDEX('NO_Table Parameter'!$P:$P,MATCH(W18,'NO_Table Parameter'!$Q:$Q,0))","v":2},"청순",{"$f":"INDEX('NO_Table Parameter'!$P:$P,MATCH(Y18,'NO_Table Parameter'!$Q:$Q,0))","v":8},"우아",{"$f":"INDEX('NO_Table Parameter'!$P:$P,MATCH(AA18,'NO_Table Parameter'!$Q:$Q,0))","v":10},"격식",{"$f":"INDEX('NO_Table Parameter'!$P:$P,MATCH(AC18,'NO_Table Parameter'!$Q:$Q,0))","v":1},"소녀",{"$f":"INDEX('NO_Table Parameter'!$P:$P,MATCH(AE18,'NO_Table Parameter'!$Q:$Q,0))","v":3},2,0,0,1,"change_hair01",{"$f":"INDEX(NO_참조테이블!H:H,MATCH(EquipItem!AK18,NO_참조테이블!I:I,0))","v":51},null,null,"2023-03-02T05:50:10 +09:04","2022-10-03",1]
["DEV",1000006,{"$f":"INDEX(NO_참조테이블!$F:$F,MATCH(B19,NO_참조테이블!$E:$E,0))","v":"밤하늘 쵸커"},"목",{"$f":"INDEX('NO_Table Parameter'!$G$3:$G$1048576,MATCH(EquipItem!D19,'NO_Table Parameter'!$H$3:$H$1048576,0))","v":5},"목",{"$f":"INDEX('NO_Table Parameter'!$J:$J,MATCH(EquipItem!F19,'NO_Table Parameter'!$K:$K,0))","v":12},"neck_1006","남녀 공용",{"$f":"INDEX('NO_Table Parameter'!S:S,MATCH(EquipItem!I19,'NO_Table Parameter'!T:T,0))","v":1},0,0,null,0,null,0,null,null,"격식",{"$f":"INDEX('NO_Table Parameter'!$P:$P,MATCH(S19,'NO_Table Parameter'!$Q:$Q,0))","v":1},"심플",{"$f":"INDEX('NO_Table Parameter'!$P:$P,MATCH(U19,'NO_Table Parameter'!$Q:$Q,0))","v":2},"심플",{"$f":"INDEX('NO_Table Parameter'!$P:$P,MATCH(W19,'NO_Table Parameter'!$Q:$Q,0))","v":2},"청순",{"$f":"INDEX('NO_Table Parameter'!$P:$P,MATCH(Y19,'NO_Table Parameter'!$Q:$Q,0))","v":8},"발랄",{"$f":"INDEX('NO_Table Parameter'!$P:$P,MATCH(AA19,'NO_Table Parameter'!$Q:$Q,0))","v":7},"시원",{"$f":"INDEX('NO_Table Parameter'!$P:$P,MATCH(AC19,'NO_Table Parameter'!$Q:$Q,0))","v":4},"따뜻",{"$f":"INDEX('NO_Table Parameter'!$P:$P,MATCH(AE19,'NO_Table Parameter'!$Q:$Q,0))","v":5},null,0,0,1,"change_eye01",{"$f":"INDEX(NO_참조테이블!H:H,MATCH(EquipItem!AK19,NO_참조테이블!I:I,0))","v":52},null,null,"2023-03-02T05:50:10 +09:01","2022-09-30",1]
["DEV",1000007,{"$f":"INDEX(NO_참조테이블!$F:$F,MATCH(B20,NO_참조테이블!$E:$E,0))","v":"밤하늘의 달"},"등",{"$f":"INDEX('NO_Table Parameter'!$G$3:$G$1048576,MATCH(EquipItem!D20,'NO_Table Parameter'!$H$3:$H$1048576,0))","v":7},"등",{"$f":"INDEX('NO_Table Parameter'!$J:$J,MATCH(EquipItem!F20,'NO_Table Parameter'!$K:$K,0))","v":19},"background_1007","남녀 공용",{"$f":"INDEX('NO_Table Parameter'!S:S,MATCH(EquipItem!I20,'NO_Table Parameter'!T:T,0))","v":1},0,0,null,0,null,0,null,null,"심플",{"$f":"INDEX('NO_Table Parameter'!$P:$P,MATCH(S20,'NO_Table Parameter'!$Q:$Q,0))","v":2},"발랄",{"$f":"INDEX('NO_Table Parameter'!$P:$P,MATCH(U20,'NO_Table Parameter'!$Q:$Q,0))","v":7},"심플",{"$f":"INDEX('NO_Table Parameter'!$P:$P,MATCH(W20,'NO_Table Parameter'!$Q:$Q,0))","v":2},"청순",{"$f":"INDEX('NO_Table Parameter'!$P:$P,MATCH(Y20,'NO_Table Parameter'!$Q:$Q,0))","v":8},"발랄",{"$f":"INDEX('NO_Table Parameter'!$P:$P,MATCH(AA20,'NO_Table Parameter'!$Q:$Q,0))","v":7},"시원",{"$f":"INDEX('NO_Table Parameter'!$P:$P,MATCH(AC20,'NO_Table Parameter'!$Q:$Q,0))","v":4},"따뜻",{"$f":"INDEX('NO_Table Parameter'!$P:$P,MATCH(AE20,'NO_Table Parameter'!$Q:$Q,0))","v":5},null,0,0,1,"change_cloth01",{"$f":"INDEX(NO_참조테이블!H:H,MATCH(EquipItem!AK20,NO_참조테이블!I:I,0))","v":50},null,null,"2023-03-02T05:50:10 +09:00","2022-09-29",1]
["DEV",1000008,{"$f":"INDEX(NO_참조테이블!$F:$F,MATCH(B21,NO_참조테이블!$E:$E,0))","v":"밤하늘 미니백"},"손",{"$f":"INDEX('NO_Table Parameter'!$G$3:$G$1048576,MATCH(EquipItem!D21,'NO_Table Parameter'!$H$3:$H$1048576,0))","v":9},"손 (오)",{"$f":"INDEX('NO_Table Parameter'!$J:$J,MATCH(EquipItem!F21,'NO_Table Parameter'!$K:$K,0))","v":26},"hand_r_1008","남녀 공용",{"$f":"INDEX('NO_Table Parameter'!S:S,MATCH(EquipItem!I21,'NO_Table Parameter'!T:T,0))","v":1},0,0,null,0,null,0,null,null,"발랄",{"$f":"INDEX('NO_Table Parameter'!$P:$P,MATCH(S21,'NO_Table Parameter'!$Q:$Q,0))","v":7},"시원",{"$f":"INDEX('NO_Table Parameter'!$P:$P,MATCH(U21,'NO_Table Parameter'!$Q:$Q,0))","v":4},"청순",{"$f":"INDEX('NO_Table Parameter'!$P:$P,MATCH(W21,'NO_Table Parameter'!$Q:$Q,0))","v":8},"시원",{"$f":"INDEX('NO_Table Parameter'!$P:$P,MATCH(Y21,'NO_Table Parameter'!$Q:$Q,0))","v":4},"심플",{"$f":"INDEX('NO_Table Parameter'!$P:$P,MATCH(AA21,'NO_Table Parameter'!$Q:$Q,0))","v":2},"큐티",{"$f":"INDEX('NO_Table Parameter'!$P:$P,MATCH(AC21,'NO_Table Parameter'!$Q:$Q,0))","v":6},"따뜻",{"$f":"INDEX('NO_Table Parameter'!$P:$P,MATCH(AE21,'NO_Table Parameter'!$Q:$Q,0))","v":5},null,0,0,1,"change_accessories02",{"$f":"INDEX(NO_참조테이블!H:H,MATCH(EquipItem!AK21,NO_참조테이블!I:I,0))","v":103},null,null,"2023-03-02T05:50:10 +09:00","2022-09-29",1]
["DEV",1000009,{"$f":"INDEX(NO_참조테이블!$F:$F,MATCH(B22,NO_참조테이블!$E:$E,0))","v":"밤하늘 지팡이"},"손",{"$f":"INDEX('NO_Table Parameter'!$G$3:$G$1048576,MATCH(EquipItem!D22,'NO_Table Parameter'!$H$3:$H$1048576,0))","v":9},"손 (왼)",{"$f":"INDEX('NO_Table Parameter'!$J:$J,MATCH(EquipItem!F22,'NO_Table Parameter'!$K:$K,0))","v":25},"hand_l_1009","남녀 공용",{"$f":"INDEX('NO_Table Parameter'!S:S,MATCH(EquipItem!I22,'NO_Table Parameter'!T:T,0))","v":1},0,0,null,0,null,0,null,null,"격식",{"$f":"INDEX('NO_Table Parameter'!$P:$P,MATCH(S22,'NO_Table Parameter'!$Q:$Q,0))","v":1},"심플",{"$f":"INDEX('NO_Table Parameter'!$P:$P,MATCH(U22,'NO_Table Parameter'!$Q:$Q,0))","v":2},"심플",{"$f":"INDEX('NO_Table Parameter'!$P:$P,MATCH(W22,'NO_Table Parameter'!$Q:$Q,0))","v":2},"청순",{"$f":"INDEX('NO_Table Parameter'!$P:$P,MATCH(Y22,'NO_Table Parameter'!$Q:$Q,0))","v":8},"발랄",{"$f":"INDEX('NO_Table Parameter'!$P:$P,MATCH(AA22,'NO_Table Parameter'!$Q:$Q,0))","v":7},"시원",{"$f":"INDEX('NO_Table Parameter'!$P:$P,MATCH(AC22,'NO_Table Parameter'!$Q:$Q,0))","v":4},"따뜻",{"$f":"INDEX('NO_Table Parameter'!$P:$P,MATCH(AE22,'NO_Table Parameter'!$Q:$Q,0))","v":5},null,0,0,1,"change_accessories01",{"$f":"INDEX(NO_참조테이블!H:H,MATCH(EquipItem!AK22,NO_참조테이블!I:I,0))","v":53},null,null,"2023-03-02T05:50:10 +09:01","2022-09-30",1]
["DEV",1000010,{"$f":"INDEX(NO_참조테이블!$F:$F,MATCH(B23,NO_참조테이블!$E:$E,0))","v":"밤하늘 오른쪽 망토"},"어깨",{"$f":"INDEX('NO_Table Parameter'!$G$3:$G$1048576,MATCH(EquipItem!D23,'NO_Table Parameter'!$H$3:$H$1048576,0))","v":8},"어깨 (오)",{"$f":"INDEX('NO_Table Parameter'!$J:$J,MATCH(EquipItem!F23,'NO_Table Parameter'!$K:$K,0))","v":24},"shoulder_r_1010","남녀 공용",{"$f":"INDEX('NO_Table Parameter'!S:S,MATCH(EquipItem!I23,'NO_Table Parameter'!T:T,0))","v":1},0,0,null,0,null,0,null,null,"소녀",{"$f":"INDEX('NO_Table Parameter'!$P:$P,MATCH(S23,'NO_Table Parameter'!$Q:$Q,0))","v":3},"따뜻",{"$f":"INDEX('NO_Table Parameter'!$P:$P,MATCH(U23,'NO_Table Parameter'!$Q:$Q,0))","v":5},"심플",{"$f":"INDEX('NO_Table Parameter'!$P:$P,MATCH(W23,'NO_Table Parameter'!$Q:$Q,0))","v":2},"화려",{"$f":"INDEX('NO_Table Parameter'!$P:$P,MATCH(Y23,'NO_Table Parameter'!$Q:$Q,0))","v":9},"발랄",{"$f":"INDEX('NO_Table Parameter'!$P:$P,MATCH(AA23,'NO_Table Parameter'!$Q:$Q,0))","v":7},"시원",{"$f":"INDEX('NO_Table Parameter'!$P:$P,MATCH(AC23,'NO_Table Parameter'!$Q:$Q,0))","v":4},"따뜻",{"$f":"INDEX('NO_Table Parameter'!$P:$P,MATCH(AE23,'NO_Table Parameter'!$Q:$Q,0))","v":5},null,0,0,1,"change_accessories02",{"$f":"INDEX(NO_참조테이블!H:H,MATCH(EquipItem!AK23,NO_참조테이블!I:I,0))","v":103},null,null,"2023-03-02T05:50:10 +09:02","2022-10-01",1]
["DEV",1000011,{"$f":"INDEX(NO_참조테이블!$F:$F,MATCH(B24,NO_참조테이블!$E:$E,0))","v":"밤하늘 왼쪽 망토"},"어깨",{"$f":"INDEX('NO_Table Parameter'!$G$3:$G$1048576,MATCH(EquipItem!D24,'NO_Table Parameter'!$H$3:$H$1048576,0))","v":8},"어깨 (왼)",{"$f":"INDEX('NO_Table Parameter'!$J:$J,MATCH(EquipItem!F24,'NO_Table Parameter'!$K:$K,0))","v":23},"shoulder_l_1011","남녀 공용",{"$f":"INDEX('NO_Table Parameter'!S:S,MATCH(EquipItem!I24,'NO_Table Parameter'!T:T,0))","v":1},0,0,null,0,null,0,null,null,"시원",{"$f":"INDEX('NO_Table Parameter'!$P:$P,MATCH(S24,'NO_Table Parameter'!$Q:$Q,0))","v":4},"우아",{"$f":"INDEX('NO_Table Parameter'!$P:$P,MATCH(U24,'NO_Table Parameter'!$Q:$Q,0))","v":10},"발랄",{"$f":"INDEX('NO_Table Parameter'!$P:$P,MATCH(W24,'NO_Table Parameter'!$Q:$Q,0))","v":7},"청순",{"$f":"INDEX('NO_Table Parameter'!$P:$P,MATCH(Y24,'NO_Table Parameter'!$Q:$Q,0))","v":8},"화려",{"$f":"INDEX('NO_Table Parameter'!$P:$P,MATCH(AA24,'NO_Table Parameter'!$Q:$Q,0))","v":9},"시원",{"$f":"INDEX('NO_Table Parameter'!$P:$P,MATCH(AC24,'NO_Table Parameter'!$Q:$Q,0))","v":4},"따뜻",{"$f":"INDEX('NO_Table Parameter'!$P:$P,MATCH(AE24,'NO_Table Parameter'!$Q:$Q,0))","v":5},null,0,0,1,"change_accessories01",{"$f":"INDEX(NO_참조테이블!H:H,MATCH(EquipItem!AK24,NO_참조테이블!I:I,0))","v":53},null,null,"2023-03-02T05:50:10 +09:03","2022-10-02",1]
["DEV",1000012,{"$f":"INDEX(NO_참조테이블!$F:$F,MATCH(B25,NO_참조테이블!$E:$E,0))","v":"밤하늘 눈물"},"얼굴",{"$f":"INDEX('NO_Table Parameter'!$G$3:$G$1048576,MATCH(EquipItem!D25,'NO_Table Parameter'!$H$3:$H$1048576,0))","v":2},"얼굴 장식",{"$f":"INDEX('NO_Table Parameter'!$J:$J,MATCH(EquipItem!F25,'NO_Table Parameter'!$K:$K,0))","v":7},"face_1012","남녀 공용",{"$f":"INDEX('NO_Table Parameter'!S:S,MATCH(EquipItem!I25,'NO_Table Parameter'!T:T,0))","v":1},0,0,null,0,null,0,null,null,"화려",{"$f":"INDEX('NO_Table Parameter'!$P:$P,MATCH(S25,'NO_Table Parameter'!$Q:$Q,0))","v":9},"청순",{"$f":"INDEX('NO_Table Parameter'!$P:$P,MATCH(U25,'NO_Table Parameter'!$Q:$Q,0))","v":8},"심플",{"$f":"INDEX('NO_Table Parameter'!$P:$P,MATCH(W25,'NO_Table Parameter'!$Q:$Q,0))","v":2},"청순",{"$f":"INDEX('NO_Table Parameter'!$P:$P,MATCH(Y25,'NO_Table Parameter'!$Q:$Q,0))","v":8},"우아",{"$f":"INDEX('NO_Table Parameter'!$P:$P,MATCH(AA25,'NO_Table Parameter'!$Q:$Q,0))","v":10},"격식",{"$f":"INDEX('NO_Table Parameter'!$P:$P,MATCH(AC25,'NO_Table Parameter'!$Q:$Q,0))","v":1},"소녀",{"$f":"INDEX('NO_Table Parameter'!$P:$P,MATCH(AE25,'NO_Table Parameter'!$Q:$Q,0))","v":3},null,0,0,1,"change_eye01",{"$f":"INDEX(NO_참조테이블!H:H,MATCH(EquipItem!AK25,NO_참조테이블!I:I,0))","v":52},null,null,"2023-03-02T05:50:10 +09:04","2022-10-03",1]
["DEV",1000013,{"$f":"INDEX(NO_참조테이블!$F:$F,MATCH(B26,NO_참조테이블!$E:$E,0))","v":"밤하늘 체인"},"얼굴",{"$f":"INDEX('NO_Table Parameter'!$G$3:$G$1048576,MATCH(EquipItem!D26,'NO_Table Parameter'!$H$3:$H$1048576,0))","v":2},"이마 장식",{"$f":"INDEX('NO_Table Parameter'!$J:$J,MATCH(EquipItem!F26,'NO_Table Parameter'!$K:$K,0))","v":9},"forehead_1013","남녀 공용",{"$f":"INDEX('NO_Table Parameter'!S:S,MATCH(EquipItem!I26,'NO_Table Parameter'!T:T,0))","v":1},0,0,null,0,null,0,null,null,"격식",{"$f":"INDEX('NO_Table Parameter'!$P:$P,MATCH(S26,'NO_Table Parameter'!$Q:$Q,0))","v":1},"심플",{"$f":"INDEX('NO_Table Parameter'!$P:$P,MATCH(U26,'NO_Table Parameter'!$Q:$Q,0))","v":2},"심플",{"$f":"INDEX('NO_Table Parameter'!$P:$P,MATCH(W26,'NO_Table Parameter'!$Q:$Q,0))","v":2},"청순",{"$f":"INDEX('NO_Table Parameter'!$P:$P,MATCH(Y26,'NO_Table Parameter'!$Q:$Q,0))","v":8},"발랄",{"$f":"INDEX('NO_Table Parameter'!$P:$P,MATCH(AA26,'NO_Table Parameter'!$Q:$Q,0))","v":7},"시원",{"$f":"INDEX('NO_Table Parameter'!$P:$P,MATCH(AC26,'NO_Table Parameter'!$Q:$Q,0))","v":4},"따뜻",{"$f":"INDEX('NO_Table Parameter'!$P:$P,MATCH(AE26,'NO_Table Parameter'!$Q:$Q,0))","v":5},null,0,0,1,"change_eye01",{"$f":"INDEX(NO_참조테이블!H:H,MATCH(EquipItem!AK26,NO_참조테이블!I:I,0))","v":52},null,null,"2023-03-02T05:50:10 +09:01","2022-09-30",1]
["DEV",1000014,{"$f":"INDEX(NO_참조테이블!$F:$F,MATCH(B27,NO_참조테이블!$E:$E,0))","v":"빗질 안 한 짧은 머리"},"머리",{"$f":"INDEX('NO_Table Parameter'!$G$3:$G$1048576,MATCH(EquipItem!D27,'NO_Table Parameter'!$H$3:$H$1048576,0))","v":1},"헤어",{"$f":"INDEX('NO_Table Parameter'!$J:$J,MATCH(EquipItem!F27,'NO_Table Parameter'!$K:$K,0))","v":1},"hair_1014","남녀 공용",{"$f":"INDEX('NO_Table Parameter'!S:S,MATCH(EquipItem!I27,'NO_Table Parameter'!T:T,0))","v":1},1,0,23,0,null,0,null,null,"심플",{"$f":"INDEX('NO_Table Parameter'!$P:$P,MATCH(S27,'NO_Table Parameter'!$Q:$Q,0))","v":2},"발랄",{"$f":"INDEX('NO_Table Parameter'!$P:$P,MATCH(U27,'NO_Table Parameter'!$Q:$Q,0))","v":7},"심플",{"$f":"INDEX('NO_Table Parameter'!$P:$P,MATCH(W27,'NO_Table Parameter'!$Q:$Q,0))","v":2},"청순",{"$f":"INDEX('NO_Table Parameter'!$P:$P,MATCH(Y27,'NO_Table Parameter'!$Q:$Q,0))","v":8},"발랄",{"$f":"INDEX('NO_Table Parameter'!$P:$P,MATCH(AA27,'NO_Table Parameter'!$Q:$Q,0))","v":7},"시원",{"$f":"INDEX('NO_Table Parameter'!$P:$P,MATCH(AC27,'NO_Table Parameter'!$Q:$Q,0))","v":4},"따뜻",{"$f":"INDEX('NO_Table Parameter'!$P:$P,MATCH(AE27,'NO_Table Parameter'!$Q:$Q,0))","v":5},null,0,0,1,"change_hair01",{"$f":"INDEX(NO_참조테이블!H:H,MATCH(EquipItem!AK27,NO_참조테이블!I:I,0))","v":51},null,null,"2023-03-02T05:50:10 +09:00","2022-09-29",1]
["DEV",1000015,{"$f":"INDEX(NO_참조테이블!$F:$F,MATCH(B28,NO_참조테이블!$E:$E,0))","v":"밤하늘의 꽃잎"},"발",{"$f":"INDEX('NO_Table Parameter'!$G$3:$G$1048576,MATCH(EquipItem!D28,'NO_Table Parameter'!$H$3:$H$1048576,0))","v":10},"바닥",{"$f":"INDEX('NO_Table Parameter'!$J:$J,MATCH(EquipItem!F28,'NO_Table Parameter'!$K:$K,0))","v":27},"floor_1015","남녀 공용",{"$f":"INDEX('NO_Table Parameter'!S:S,MATCH(EquipItem!I28,'NO_Table Parameter'!T:T,0))","v":1},0,0,null,0,null,0,null,null,"소녀",{"$f":"INDEX('NO_Table Parameter'!$P:$P,MATCH(S28,'NO_Table Parameter'!$Q:$Q,0))","v":3},"따뜻",{"$f":"INDEX('NO_Table Parameter'!$P:$P,MATCH(U28,'NO_Table Parameter'!$Q:$Q,0))","v":5},"심플",{"$f":"INDEX('NO_Table Parameter'!$P:$P,MATCH(W28,'NO_Table Parameter'!$Q:$Q,0))","v":2},"화려",{"$f":"INDEX('NO_Table Parameter'!$P:$P,MATCH(Y28,'NO_Table Parameter'!$Q:$Q,0))","v":9},"발랄",{"$f":"INDEX('NO_Table Parameter'!$P:$P,MATCH(AA28,'NO_Table Parameter'!$Q:$Q,0))","v":7},"시원",{"$f":"INDEX('NO_Table Parameter'!$P:$P,MATCH(AC28,'NO_Table Parameter'!$Q:$Q,0))","v":4},"따뜻",{"$f":"INDEX('NO_Table Parameter'!$P:$P,MATCH(AE28,'NO_Table Parameter'!$Q:$Q,0))","v":5},null,0,0,1,"change_floor01",{"$f":"INDEX(NO_참조테이블!H:H,MATCH(EquipItem!AK28,NO_참조테이블!I:I,0))","v":104},null,null,"2023-03-02T05:50:10 +09:02","2022-10-01",1]
["DEV",1000016,{"$f":"INDEX(NO_참조테이블!$F:$F,MATCH(B29,NO_참조테이블!$E:$E,0))","v":"귀여운 얼굴"},"얼굴",{"$f":"INDEX('NO_Table Parameter'!$G$3:$G$1048576,MATCH(EquipItem!D29,'NO_Table Parameter'!$H$3:$H$1048576,0))","v":2},"화장",{"$f":"INDEX('NO_Table Parameter'!$J:$J,MATCH(EquipItem!F29,'NO_Table Parameter'!$K:$K,0))","v":6},"makeup_1016","남녀 공용",{"$f":"INDEX('NO_Table Parameter'!S:S,MATCH(EquipItem!I29,'NO_Table Parameter'!T:T,0))","v":1},0,0,null,0,null,0,null,null,"심플",{"$f":"INDEX('NO_Table Parameter'!$P:$P,MATCH(S29,'NO_Table Parameter'!$Q:$Q,0))","v":2},"발랄",{"$f":"INDEX('NO_Table Parameter'!$P:$P,MATCH(U29,'NO_Table Parameter'!$Q:$Q,0))","v":7},"심플",{"$f":"INDEX('NO_Table Parameter'!$P:$P,MATCH(W29,'NO_Table Parameter'!$Q:$Q,0))","v":2},"청순",{"$f":"INDEX('NO_Table Parameter'!$P:$P,MATCH(Y29,'NO_Table Parameter'!$Q:$Q,0))","v":8},"발랄",{"$f":"INDEX('NO_Table Parameter'!$P:$P,MATCH(AA29,'NO_Table Parameter'!$Q:$Q,0))","v":7},"시원",{"$f":"INDEX('NO_Table Parameter'!$P:$P,MATCH(AC29,'NO_Table Parameter'!$Q:$Q,0))","v":4},"따뜻",{"$f":"INDEX('NO_Table Parameter'!$P:$P,MATCH(AE29,'NO_Table Parameter'!$Q:$Q,0))","v":5},null,0,0,1,"change_eye01",{"$f":"INDEX(NO_참조테이블!H:H,MATCH(EquipItem!AK29,NO_참조테이블!I:I,0))","v":52},null,null,"2023-03-02T05:50:10 +09:00","2022-09-29",1]
["DEV",1000017,{"$f":"INDEX(NO_참조테이블!$F:$F,MATCH(B30,NO_참조테이블!$E:$E,0))","v":"파란색 렌즈"},"눈",{"$f":"INDEX('NO_Table Parameter'!$G$3:$G$1048576,MATCH(EquipItem!D30,'NO_Table Parameter'!$H$3:$H$1048576,0))","v":3},"렌즈",{"$f":"INDEX('NO_Table Parameter'!$J:$J,MATCH(EquipItem!F30,'NO_Table Parameter'!$K:$K,0))","v":10},null,"남녀 공용",{"$f":"INDEX('NO_Table Parameter'!S:S,MATCH(EquipItem!I30,'NO_Table Parameter'!T:T,0))","v":1},0,0,55,0,55,0,null,"1|2","발랄",{"$f":"INDEX('NO_Table Parameter'!$P:$P,MATCH(S30,'NO_Table Parameter'!$Q:$Q,0))","v":7},"시원",{"$f":"INDEX('NO_Table Parameter'!$P:$P,MATCH(U30,'NO_Table Parameter'!$Q:$Q,0))","v":4},"청순",{"$f":"INDEX('NO_Table Parameter'!$P:$P,MATCH(W30,'NO_Table Parameter'!$Q:$Q,0))","v":8},"시원",{"$f":"INDEX('NO_Table Parameter'!$P:$P,MATCH(Y30,'NO_Table Parameter'!$Q:$Q,0))","v":4},"심플",{"$f":"INDEX('NO_Table Parameter'!$P:$P,MATCH(AA30,'NO_Table Parameter'!$Q:$Q,0))","v":2},"큐티",{"$f":"INDEX('NO_Table Parameter'!$P:$P,MATCH(AC30,'NO_Table Parameter'!$Q:$Q,0))","v":6},"따뜻",{"$f":"INDEX('NO_Table Parameter'!$P:$P,MATCH(AE30,'NO_Table Parameter'!$Q:$Q,0))","v":5},null,0,0,1,"change_eye01",{"$f":"INDEX(NO_참조테이블!H:H,MATCH(EquipItem!AK30,NO_참조테이블!I:I,0))","v":52},null,null,"2023-03-02T05:50:10 +09:00","2022-09-29",1]
["DEV",1000018,{"$f":"INDEX(NO_참조테이블!$F:$F,MATCH(B31,NO_참조테이블!$E:$E,0))","v":"오드아이 렌즈"},"눈",{"$f":"INDEX('NO_Table Parameter'!$G$3:$G$1048576,MATCH(EquipItem!D31,'NO_Table Parameter'!$H$3:$H$1048576,0))","v":3},"렌즈",{"$f":"INDEX('NO_Table Parameter'!$J:$J,MATCH(EquipItem!F31,'NO_Table Parameter'!$K:$K,0))","v":10},null,"남녀 공용",{"$f":"INDEX('NO_Table Parameter'!S:S,MATCH(EquipItem!I31,'NO_Table Parameter'!T:T,0))","v":1},0,0,4,0,75,0,null,"1|2","발랄",{"$f":"INDEX('NO_Table Parameter'!$P:$P,MATCH(S31,'NO_Table Parameter'!$Q:$Q,0))","v":7},"시원",{"$f":"INDEX('NO_Table Parameter'!$P:$P,MATCH(U31,'NO_Table Parameter'!$Q:$Q,0))","v":4},"청순",{"$f":"INDEX('NO_Table Parameter'!$P:$P,MATCH(W31,'NO_Table Parameter'!$Q:$Q,0))","v":8},"시원",{"$f":"INDEX('NO_Table Parameter'!$P:$P,MATCH(Y31,'NO_Table Parameter'!$Q:$Q,0))","v":4},"심플",{"$f":"INDEX('NO_Table Parameter'!$P:$P,MATCH(AA31,'NO_Table Parameter'!$Q:$Q,0))","v":2},"큐티",{"$f":"INDEX('NO_Table Parameter'!$P:$P,MATCH(AC31,'NO_Table Parameter'!$Q:$Q,0))","v":6},"따뜻",{"$f":"INDEX('NO_Table Parameter'!$P:$P,MATCH(AE31,'NO_Table Parameter'!$Q:$Q,0))","v":5},null,0,0,1,"change_eye01",{"$f":"INDEX(NO_참조테이블!H:H,MATCH(EquipItem!AK31,NO_참조테이블!I:I,0))","v":52},null,null,"2023-03-02T05:50:10 +09:00","2022-09-29",1]
["DEV",1000019,{"$f":"INDEX(NO_참조테이블!$F:$F,MATCH(B32,NO_참조테이블!$E:$E,0))","v":"자연스러운 웨이브펌"},"머리",{"$f":"INDEX('NO_Table Parameter'!$G$3:$G$1048576,MATCH(EquipItem!D32,'NO_Table Parameter'!$H$3:$H$1048576,0))","v":1},"헤어",{"$f":"INDEX('NO_Table Parameter'!$J:$J,MATCH(EquipItem!F32,'NO_Table Parameter'!$K:$K,0))","v":1},"hair_1019","남녀 공용",{"$f":"INDEX('NO_Table Parameter'!S:S,MATCH(EquipItem!I32,'NO_Table Parameter'!T:T,0))","v":1},1,1,104,0,null,0,null,null,"심플",{"$f":"INDEX('NO_Table Parameter'!$P:$P,MATCH(S32,'NO_Table Parameter'!$Q:$Q,0))","v":2},"발랄",{"$f":"INDEX('NO_Table Parameter'!$P:$P,MATCH(U32,'NO_Table Parameter'!$Q:$Q,0))","v":7},"심플",{"$f":"INDEX('NO_Table Parameter'!$P:$P,MATCH(W32,'NO_Table Parameter'!$Q:$Q,0))","v":2},"청순",{"$f":"INDEX('NO_Table Parameter'!$P:$P,MATCH(Y32,'NO_Table Parameter'!$Q:$Q,0))","v":8},"발랄",{"$f":"INDEX('NO_Table Parameter'!$P:$P,MATCH(AA32,'NO_Table Parameter'!$Q:$Q,0))","v":7},"시원",{"$f":"INDEX('NO_Table Parameter'!$P:$P,MATCH(AC32,'NO_Table Parameter'!$Q:$Q,0))","v":4},"따뜻",{"$f":"INDEX('NO_Table Parameter'!$P:$P,MATCH(AE32,'NO_Table Parameter'!$Q:$Q,0))","v":5},null,1,1,1,"change_hair01",{"$f":"INDEX(NO_참조테이블!H:H,MATCH(EquipItem!AK32,NO_참조테이블!I:I,0))","v":51},null,null,"2023-03-02T05:50:10 +09:00","2022-09-29",1]
["DEV",1000020,{"$f":"INDEX(NO_참조테이블!$F:$F,MATCH(B33,NO_참조테이블!$E:$E,0))","v":"차분한 얼굴"},"얼굴",{"$f":"INDEX('NO_Table Parameter'!$G$3:$G$1048576,MATCH(EquipItem!D33,'NO_Table Parameter'!$H$3:$H$1048576,0))","v":2},"화장",{"$f":"INDEX('NO_Table Parameter'!$J:$J,MATCH(EquipItem!F33,'NO_Table Parameter'!$K:$K,0))","v":6},"makeup_1020","남녀 공용",{"$f":"INDEX('NO_Table Parameter'!S:S,MATCH(EquipItem!I33,'NO_Table Parameter'!T:T,0))","v":1},0,0,null,0,null,0,null,null,"심플",{"$f":"INDEX('NO_Table Parameter'!$P:$P,MATCH(S33,'NO_Table Parameter'!$Q:$Q,0))","v":2},"발랄",{"$f":"INDEX('NO_Table Parameter'!$P:$P,MATCH(U33,'NO_Table Parameter'!$Q:$Q,0))","v":7},"심플",{"$f":"INDEX('NO_Table Parameter'!$P:$P,MATCH(W33,'NO_Table Parameter'!$Q:$Q,0))","v":2},"청순",{"$f":"INDEX('NO_Table Parameter'!$P:$P,MATCH(Y33,'NO_Table Parameter'!$Q:$Q,0))","v":8},"발랄",{"$f":"INDEX('NO_Table Parameter'!$P:$P,MATCH(AA33,'NO_Table Parameter'!$Q:$Q,0))","v":7},"시원",{"$f":"INDEX('NO_Table Parameter'!$P:$P,MATCH(AC33,'NO_Table Parameter'!$Q:$Q,0))","v":4},"따뜻",{"$f":"INDEX('NO_Table Parameter'!$P:$P,MATCH(AE33,'NO_Table Parameter'!$Q:$Q,0))","v":5},null,0,0,1,"change_eye01",{"$f":"INDEX(NO_참조테이블!H:H,MATCH(EquipItem!AK33,NO_참조테이블!I:I,0))","v":52},null,null,"2023-03-02T05:50:10 +09:00","2022-09-29",1]
["DEV",1000021,{"$f":"INDEX(NO_참조테이블!$F:$F,MATCH(B34,NO_참조테이블!$E:$E,0))","v":"초롱초롱한 얼굴"},"얼굴",{"$f":"INDEX('NO_Table Parameter'!$G$3:$G$1048576,MATCH(EquipItem!D34,'NO_Table Parameter'!$H$3:$H$1048576,0))","v":2},"화장",{"$f":"INDEX('NO_Table Parameter'!$J:$J,MATCH(EquipItem!F34,'NO_Table Parameter'!$K:$K,0))","v":6},"makeup_1021","남녀 공용",{"$f":"INDEX('NO_Table Parameter'!S:S,MATCH(EquipItem!I34,'NO_Table Parameter'!T:T,0))","v":1},0,0,null,0,null,0,null,null,"심플",{"$f":"INDEX('NO_Table Parameter'!$P:$P,MATCH(S34,'NO_Table Parameter'!$Q:$Q,0))","v":2},"발랄",{"$f":"INDEX('NO_Table Parameter'!$P:$P,MATCH(U34,'NO_Table Parameter'!$Q:$Q,0))","v":7},"심플",{"$f":"INDEX('NO_Table Parameter'!$P:$P,MATCH(W34,'NO_Table Parameter'!$Q:$Q,0))","v":2},"청순",{"$f":"INDEX('NO_Table Parameter'!$P:$P,MATCH(Y34,'NO_Table Parameter'!$Q:$Q,0))","v":8},"발랄",{"$f":"INDEX('NO_Table Parameter'!$P:$P,MATCH(AA34,'NO_Table Parameter'!$Q:$Q,0))","v":7},"시원",{"$f":"INDEX('NO_Table Parameter'!$P:$P,MATCH(AC34,'NO_Table Parameter'!$Q:$Q,0))","v":4},"따뜻",{"$f":"INDEX('NO_Table Parameter'!$P:$P,MATCH(AE34,'NO_Table Parameter'!$Q:$Q,0))","v":5},null,0,0,1,"change_eye01",{"$f":"INDEX(NO_참조테이블!H:H,MATCH(EquipItem!AK34,NO_참조테이블!I:I,0))","v":52},null,null,"2023-03-02T05:50:10 +09:00","2022-09-29",1]
["DEV",165,{"$f":"INDEX(NO_참조테이블!$F:$F,MATCH(B35,NO_참조테이블!$E:$E,0))","v":"심플한 운동화"},"발",{"$f":"INDEX('NO_Table Parameter'!$G$3:$G$1048576,MATCH(EquipItem!D35,'NO_Table Parameter'!$H$3:$H$1048576,0))","v":10},"신발",{"$f":"INDEX('NO_Table Parameter'!$J:$J,MATCH(EquipItem!F35,'NO_Table Parameter'!$K:$K,0))","v":28},"shoes_150","남녀 공용",{"$f":"INDEX('NO_Table Parameter'!S:S,MATCH(EquipItem!I35,'NO_Table Parameter'!T:T,0))","v":1},0,0,null,0,null,0,null,null,"시원",{"$f":"INDEX('NO_Table Parameter'!$P:$P,MATCH(S35,'NO_Table Parameter'!$Q:$Q,0))","v":4},"우아",{"$f":"INDEX('NO_Table Parameter'!$P:$P,MATCH(U35,'NO_Table Parameter'!$Q:$Q,0))","v":10},"발랄",{"$f":"INDEX('NO_Table Parameter'!$P:$P,MATCH(W35,'NO_Table Parameter'!$Q:$Q,0))","v":7},"청순",{"$f":"INDEX('NO_Table Parameter'!$P:$P,MATCH(Y35,'NO_Table Parameter'!$Q:$Q,0))","v":8},"화려",{"$f":"INDEX('NO_Table Parameter'!$P:$P,MATCH(AA35,'NO_Table Parameter'!$Q:$Q,0))","v":9},"시원",{"$f":"INDEX('NO_Table Parameter'!$P:$P,MATCH(AC35,'NO_Table Parameter'!$Q:$Q,0))","v":4},"따뜻",{"$f":"INDEX('NO_Table Parameter'!$P:$P,MATCH(AE35,'NO_Table Parameter'!$Q:$Q,0))","v":5},null,0,0,1,"change_shoes01",{"$f":"INDEX(NO_참조테이블!H:H,MATCH(EquipItem!AK35,NO_참조테이블!I:I,0))","v":54},null,null,"2023-03-02T05:50:10 +09:03","2022-10-02",1]
["DEV",1000022,{"$f":"INDEX(NO_참조테이블!$F:$F,MATCH(B36,NO_참조테이블!$E:$E,0))","v":"정리 안된 단발 머리"},"머리",{"$f":"INDEX('NO_Table Parameter'!$G$3:$G$1048576,MATCH(EquipItem!D36,'NO_Table Parameter'!$H$3:$H$1048576,0))","v":1},"헤어",{"$f":"INDEX('NO_Table Parameter'!$J:$J,MATCH(EquipItem!F36,'NO_Table Parameter'!$K:$K,0))","v":1},"hair_1022","남녀 공용",{"$f":"INDEX('NO_Table Parameter'!S:S,MATCH(EquipItem!I36,'NO_Table Parameter'!T:T,0))","v":1},1,1,156,0,null,0,null,null,"심플",{"$f":"INDEX('NO_Table Parameter'!$P:$P,MATCH(S36,'NO_Table Parameter'!$Q:$Q,0))","v":2},"발랄",{"$f":"INDEX('NO_Table Parameter'!$P:$P,MATCH(U36,'NO_Table Parameter'!$Q:$Q,0))","v":7},"심플",{"$f":"INDEX('NO_Table Parameter'!$P:$P,MATCH(W36,'NO_Table Parameter'!$Q:$Q,0))","v":2},"청순",{"$f":"INDEX('NO_Table Parameter'!$P:$P,MATCH(Y36,'NO_Table Parameter'!$Q:$Q,0))","v":8},"발랄",{"$f":"INDEX('NO_Table Parameter'!$P:$P,MATCH(AA36,'NO_Table Parameter'!$Q:$Q,0))","v":7},"시원",{"$f":"INDEX('NO_Table Parameter'!$P:$P,MATCH(AC36,'NO_Table Parameter'!$Q:$Q,0))","v":4},"따뜻",{"$f":"INDEX('NO_Table Parameter'!$P:$P,MATCH(AE36,'NO_Table Parameter'!$Q:$Q,0))","v":5},null,1,1,1,"change_hair01",{"$f":"INDEX(NO_참조테이블!H:H,MATCH(EquipItem!AK36,NO_참조테이블!I:I,0))","v":51},null,null,"2023-03-02T05:50:10 +09:00","2022-09-29",1]
["DEV",1000023,{"$f":"INDEX(NO_참조테이블!$F:$F,MATCH(B37,NO_참조테이블!$E:$E,0))","v":"브라운 렌즈"},"눈",{"$f":"INDEX('NO_Table Parameter'!$G$3:$G$1048576,MATCH(EquipItem!D37,'NO_Table Parameter'!$H$3:$H$1048576,0))","v":3},"렌즈",{"$f":"INDEX('NO_Table Parameter'!$J:$J,MATCH(EquipItem!F37,'NO_Table Parameter'!$K:$K,0))","v":10},null,"남녀 공용",{"$f":"INDEX('NO_Table Parameter'!S:S,MATCH(EquipItem!I37,'NO_Table Parameter'!T:T,0))","v":1},0,0,163,0,163,0,null,"1|2","심플",{"$f":"INDEX('NO_Table Parameter'!$P:$P,MATCH(S37,'NO_Table Parameter'!$Q:$Q,0))","v":2},"발랄",{"$f":"INDEX('NO_Table Parameter'!$P:$P,MATCH(U37,'NO_Table Parameter'!$Q:$Q,0))","v":7},"심플",{"$f":"INDEX('NO_Table Parameter'!$P:$P,MATCH(W37,'NO_Table Parameter'!$Q:$Q,0))","v":2},"청순",{"$f":"INDEX('NO_Table Parameter'!$P:$P,MATCH(Y37,'NO_Table Parameter'!$Q:$Q,0))","v":8},"발랄",{"$f":"INDEX('NO_Table Parameter'!$P:$P,MATCH(AA37,'NO_Table Parameter'!$Q:$Q,0))","v":7},"시원",{"$f":"INDEX('NO_Table Parameter'!$P:$P,MATCH(AC37,'NO_Table Parameter'!$Q:$Q,0))","v":4},"따뜻",{"$f":"INDEX('NO_Table Parameter'!$P:$P,MATCH(AE37,'NO_Table Parameter'!$Q:$Q,0))","v":5},null,1,1,1,"change_eye01",{"$f":"INDEX(NO_참조테이블!H:H,MATCH(EquipItem!AK37,NO_참조테이블!I:I,0))","v":52},null,null,"2023-03-02T05:50:10 +09:00","2022-09-29",1]
["DEV",1000024,{"$f":"INDEX(NO_참조테이블!$F:$F,MATCH(B38,NO_참조테이블!$E:$E,0))","v":"핑크 퍼플 라일락 렌즈"},"눈",{"$f":"INDEX('NO_Table Parameter'!$G$3:$G$1048576,MATCH(EquipItem!D38,'NO_Table Parameter'!$H$3:$H$1048576,0))","v":3},"렌즈",{"$f":"INDEX('NO_Table Parameter'!$J:$J,MATCH(EquipItem!F38,'NO_Table Parameter'!$K:$K,0))","v":10},null,"남녀 공용",{"$f":"INDEX('NO_Table Parameter'!S:S,MATCH(EquipItem!I38,'NO_Table Parameter'!T:T,0))","v":1},0,0,88,0,78,0,null,"1|2","심플",{"$f":"INDEX('NO_Table Parameter'!$P:$P,MATCH(S38,'NO_Table Parameter'!$Q:$Q,0))","v":2},"발랄",{"$f":"INDEX('NO_Table Parameter'!$P:$P,MATCH(U38,'NO_Table Parameter'!$Q:$Q,0))","v":7},"심플",{"$f":"INDEX('NO_Table Parameter'!$P:$P,MATCH(W38,'NO_Table Parameter'!$Q:$Q,0))","v":2},"청순",{"$f":"INDEX('NO_Table Parameter'!$P:$P,MATCH(Y38,'NO_Table Parameter'!$Q:$Q,0))","v":8},"발랄",{"$f":"INDEX('NO_Table Parameter'!$P:$P,MATCH(AA38,'NO_Table Parameter'!$Q:$Q,0))","v":7},"시원",{"$f":"INDEX('NO_Table Parameter'!$P:$P,MATCH(AC38,'NO_Table Parameter'!$Q:$Q,0))","v":4},"따뜻",{"$f":"INDEX('NO_Table Parameter'!$P:$P,MATCH(AE38,'NO_Table Parameter'!$Q:$Q,0))","v":5},null,0,0,1,"change_eye01",{"$f":"INDEX(NO_참조테이블!H:H,MATCH(EquipItem!AK38,NO_참조테이블!I:I,0))","v":52},null,null,"2023-03-02T05:50:10 +09:00","2022-09-29",1]
["DEV",1000025,{"$f":"INDEX(NO_참조테이블!$F:$F,MATCH(B39,NO_참조테이블!$E:$E,0))","v":"심플한 긴팔 니트"},"몸",{"$f":"INDEX('NO_Table Parameter'!$G$3:$G$1048576,MATCH(EquipItem!D39,'NO_Table Parameter'!$H$3:$H$1048576,0))","v":6},"상의",{"$f":"INDEX('NO_Table Parameter'!$J:$J,MATCH(EquipItem!F39,'NO_Table Parameter'!$K:$K,0))","v":15},"top_151","여자만 착용 가능",{"$f":"INDEX('NO_Table Parameter'!S:S,MATCH(EquipItem!I39,'NO_Table Parameter'!T:T,0))","v":3},1,1,150,1,164,0,null,"1|2","심플",{"$f":"INDEX('NO_Table Parameter'!$P:$P,MATCH(S39,'NO_Table Parameter'!$Q:$Q,0))","v":2},"발랄",{"$f":"INDEX('NO_Table Parameter'!$P:$P,MATCH(U39,'NO_Table Parameter'!$Q:$Q,0))","v":7},"심플",{"$f":"INDEX('NO_Table Parameter'!$P:$P,MATCH(W39,'NO_Table Parameter'!$Q:$Q,0))","v":2},"청순",{"$f":"INDEX('NO_Table Parameter'!$P:$P,MATCH(Y39,'NO_Table Parameter'!$Q:$Q,0))","v":8},"발랄",{"$f":"INDEX('NO_Table Parameter'!$P:$P,MATCH(AA39,'NO_Table Parameter'!$Q:$Q,0))","v":7},"시원",{"$f":"INDEX('NO_Table Parameter'!$P:$P,MATCH(AC39,'NO_Table Parameter'!$Q:$Q,0))","v":4},"따뜻",{"$f":"INDEX('NO_Table Parameter'!$P:$P,MATCH(AE39,'NO_Table Parameter'!$Q:$Q,0))","v":5},null,0,0,1,"change_cloth02",{"$f":"INDEX(NO_참조테이블!H:H,MATCH(EquipItem!AK39,NO_참조테이블!I:I,0))","v":102},null,null,"2023-03-02T05:50:10 +09:00","2022-09-29",1]
["DEV",1000026,{"$f":"INDEX(NO_참조테이블!$F:$F,MATCH(B40,NO_참조테이블!$E:$E,0))","v":"심플한 반바지"},"몸",{"$f":"INDEX('NO_Table Parameter'!$G$3:$G$1048576,MATCH(EquipItem!D40,'NO_Table Parameter'!$H$3:$H$1048576,0))","v":6},"하의",{"$f":"INDEX('NO_Table Parameter'!$J:$J,MATCH(EquipItem!F40,'NO_Table Parameter'!$K:$K,0))","v":16},"bottom_152","남녀 공용",{"$f":"INDEX('NO_Table Parameter'!S:S,MATCH(EquipItem!I40,'NO_Table Parameter'!T:T,0))","v":1},1,1,165,0,null,0,null,null,"심플",{"$f":"INDEX('NO_Table Parameter'!$P:$P,MATCH(S40,'NO_Table Parameter'!$Q:$Q,0))","v":2},"발랄",{"$f":"INDEX('NO_Table Parameter'!$P:$P,MATCH(U40,'NO_Table Parameter'!$Q:$Q,0))","v":7},"심플",{"$f":"INDEX('NO_Table Parameter'!$P:$P,MATCH(W40,'NO_Table Parameter'!$Q:$Q,0))","v":2},"청순",{"$f":"INDEX('NO_Table Parameter'!$P:$P,MATCH(Y40,'NO_Table Parameter'!$Q:$Q,0))","v":8},"발랄",{"$f":"INDEX('NO_Table Parameter'!$P:$P,MATCH(AA40,'NO_Table Parameter'!$Q:$Q,0))","v":7},"시원",{"$f":"INDEX('NO_Table Parameter'!$P:$P,MATCH(AC40,'NO_Table Parameter'!$Q:$Q,0))","v":4},"따뜻",{"$f":"INDEX('NO_Table Parameter'!$P:$P,MATCH(AE40,'NO_Table Parameter'!$Q:$Q,0))","v":5},null,0,0,1,"change_cloth02",{"$f":"INDEX(NO_참조테이블!H:H,MATCH(EquipItem!AK40,NO_참조테이블!I:I,0))","v":102},null,null,"2023-03-02T05:50:10 +09:00","2022-09-29",1]
["DEV",1000027,{"$f":"INDEX(NO_참조테이블!$F:$F,MATCH(B41,NO_참조테이블!$E:$E,0))","v":"심플한 화이트 벨크로 운동화"},"발",{"$f":"INDEX('NO_Table Parameter'!$G$3:$G$1048576,MATCH(EquipItem!D41,'NO_Table Parameter'!$H$3:$H$1048576,0))","v":10},"신발",{"$f":"INDEX('NO_Table Parameter'!$J:$J,MATCH(EquipItem!F41,'NO_Table Parameter'!$K:$K,0))","v":28},"shoes_153","남녀 공용",{"$f":"INDEX('NO_Table Parameter'!S:S,MATCH(EquipItem!I41,'NO_Table Parameter'!T:T,0))","v":1},0,0,null,0,null,0,null,null,"심플",{"$f":"INDEX('NO_Table Parameter'!$P:$P,MATCH(S41,'NO_Table Parameter'!$Q:$Q,0))","v":2},"발랄",{"$f":"INDEX('NO_Table Parameter'!$P:$P,MATCH(U41,'NO_Table Parameter'!$Q:$Q,0))","v":7},"심플",{"$f":"INDEX('NO_Table Parameter'!$P:$P,MATCH(W41,'NO_Table Parameter'!$Q:$Q,0))","v":2},"청순",{"$f":"INDEX('NO_Table Parameter'!$P:$P,MATCH(Y41,'NO_Table Parameter'!$Q:$Q,0))","v":8},"발랄",{"$f":"INDEX('NO_Table Parameter'!$P:$P,MATCH(AA41,'NO_Table Parameter'!$Q:$Q,0))","v":7},"시원",{"$f":"INDEX('NO_Table Parameter'!$P:$P,MATCH(AC41,'NO_Table Parameter'!$Q:$Q,0))","v":4},"따뜻",{"$f":"INDEX('NO_Table Parameter'!$P:$P,MATCH(AE41,'NO_Table Parameter'!$Q:$Q,0))","v":5},null,0,0,1,"change_shoes01",{"$f":"INDEX(NO_참조테이블!H:H,MATCH(EquipItem!AK41,NO_참조테이블!I:I,0))","v":54},null,null,"2023-03-02T05:50:10 +09:00","2022-09-29",1]
["DEV",1000028,{"$f":"INDEX(NO_참조테이블!$F:$F,MATCH(B42,NO_참조테이블!$E:$E,0))","v":"정리 안된 묶음 머리"},"머리",{"$f":"INDEX('NO_Table Parameter'!$G$3:$G$1048576,MATCH(EquipItem!D42,'NO_Table Parameter'!$H$3:$H$1048576,0))","v":1},"헤어",{"$f":"INDEX('NO_Table Parameter'!$J:$J,MATCH(EquipItem!F42,'NO_Table Parameter'!$K:$K,0))","v":1},"hair_1023","남녀 공용",{"$f":"INDEX('NO_Table Parameter'!S:S,MATCH(EquipItem!I42,'NO_Table Parameter'!T:T,0))","v":1},1,1,16,0,null,0,null,null,"심플",{"$f":"INDEX('NO_Table Parameter'!$P:$P,MATCH(S42,'NO_Table Parameter'!$Q:$Q,0))","v":2},"발랄",{"$f":"INDEX('NO_Table Parameter'!$P:$P,MATCH(U42,'NO_Table Parameter'!$Q:$Q,0))","v":7},"심플",{"$f":"INDEX('NO_Table Parameter'!$P:$P,MATCH(W42,'NO_Table Parameter'!$Q:$Q,0))","v":2},"청순",{"$f":"INDEX('NO_Table Parameter'!$P:$P,MATCH(Y42,'NO_Table Parameter'!$Q:$Q,0))","v":8},"발랄",{"$f":"INDEX('NO_Table Parameter'!$P:$P,MATCH(AA42,'NO_Table Parameter'!$Q:$Q,0))","v":7},"시원",{"$f":"INDEX('NO_Table Parameter'!$P:$P,MATCH(AC42,'NO_Table Parameter'!$Q:$Q,0))","v":4},"따뜻",{"$f":"INDEX('NO_Table Parameter'!$P:$P,MATCH(AE42,'NO_Table Parameter'!$Q:$Q,0))","v":5},null,0,0,1,"change_hair01",{"$f":"INDEX(NO_참조테이블!H:H,MATCH(EquipItem!AK42,NO_참조테이블!I:I,0))","v":51},null,null,"2023-03-02T05:50:10 +09:00","2022-09-29",1]
["DEV",1000029,{"$f":"INDEX(NO_참조테이블!$F:$F,MATCH(B43,NO_참조테이블!$E:$E,0))","v":"정리 안된 브릿지 묶음 머리 "},"머리",{"$f":"INDEX('NO_Table Parameter'!$G$3:$G$1048576,MATCH(EquipItem!D43,'NO_Table Parameter'!$H$3:$H$1048576,0))","v":1},"헤어",{"$f":"INDEX('NO_Table Parameter'!$J:$J,MATCH(EquipItem!F43,'NO_Table Parameter'!$K:$K,0))","v":1},"hair_1024","남녀 공용",{"$f":"INDEX('NO_Table Parameter'!S:S,MATCH(EquipItem!I43,'NO_Table Parameter'!T:T,0))","v":1},1,1,16,1,156,0,null,"1|2","심플",{"$f":"INDEX('NO_Table Parameter'!$P:$P,MATCH(S43,'NO_Table Parameter'!$Q:$Q,0))","v":2},"발랄",{"$f":"INDEX('NO_Table Parameter'!$P:$P,MATCH(U43,'NO_Table Parameter'!$Q:$Q,0))","v":7},"심플",{"$f":"INDEX('NO_Table Parameter'!$P:$P,MATCH(W43,'NO_Table Parameter'!$Q:$Q,0))","v":2},"청순",{"$f":"INDEX('NO_Table Parameter'!$P:$P,MATCH(Y43,'NO_Table Parameter'!$Q:$Q,0))","v":8},"발랄",{"$f":"INDEX('NO_Table Parameter'!$P:$P,MATCH(AA43,'NO_Table Parameter'!$Q:$Q,0))","v":7},"시원",{"$f":"INDEX('NO_Table Parameter'!$P:$P,MATCH(AC43,'NO_Table Parameter'!$Q:$Q,0))","v":4},"따뜻",{"$f":"INDEX('NO_Table Parameter'!$P:$P,MATCH(AE43,'NO_Table Parameter'!$Q:$Q,0))","v":5},null,0,0,1,"change_hair01",{"$f":"INDEX(NO_참조테이블!H:H,MATCH(EquipItem!AK43,NO_참조테이블!I:I,0))","v":51},null,null,"2023-03-02T05:50:10 +09:00","2022-09-29",1]
["DEV",1000030,{"$f":"INDEX(NO_참조테이블!$F:$F,MATCH(B44,NO_참조테이블!$E:$E,0))","v":"심플한 스트라이트 니트"},"몸",{"$f":"INDEX('NO_Table Parameter'!$G$3:$G$1048576,MATCH(EquipItem!D44,'NO_Table Parameter'!$H$3:$H$1048576,0))","v":6},"상의",{"$f":"INDEX('NO_Table Parameter'!$J:$J,MATCH(EquipItem!F44,'NO_Table Parameter'!$K:$K,0))","v":15},"top_154","남자만 착용 가능",{"$f":"INDEX('NO_Table Parameter'!S:S,MATCH(EquipItem!I44,'NO_Table Parameter'!T:T,0))","v":2},1,1,70,1,161,0,null,"1|2","심플",{"$f":"INDEX('NO_Table Parameter'!$P:$P,MATCH(S44,'NO_Table Parameter'!$Q:$Q,0))","v":2},"발랄",{"$f":"INDEX('NO_Table Parameter'!$P:$P,MATCH(U44,'NO_Table Parameter'!$Q:$Q,0))","v":7},"심플",{"$f":"INDEX('NO_Table Parameter'!$P:$P,MATCH(W44,'NO_Table Parameter'!$Q:$Q,0))","v":2},"청순",{"$f":"INDEX('NO_Table Parameter'!$P:$P,MATCH(Y44,'NO_Table Parameter'!$Q:$Q,0))","v":8},"발랄",{"$f":"INDEX('NO_Table Parameter'!$P:$P,MATCH(AA44,'NO_Table Parameter'!$Q:$Q,0))","v":7},"시원",{"$f":"INDEX('NO_Table Parameter'!$P:$P,MATCH(AC44,'NO_Table Parameter'!$Q:$Q,0))","v":4},"따뜻",{"$f":"INDEX('NO_Table Parameter'!$P:$P,MATCH(AE44,'NO_Table Parameter'!$Q:$Q,0))","v":5},null,0,0,1,"change_cloth02",{"$f":"INDEX(NO_참조테이블!H:H,MATCH(EquipItem!AK44,NO_참조테이블!I:I,0))","v":102},null,null,"2023-03-02T05:50:10 +09:00","2022-09-29",1]
["DEV",1000031,{"$f":"INDEX(NO_참조테이블!$F:$F,MATCH(B45,NO_참조테이블!$E:$E,0))","v":"심플한 청바지"},"몸",{"$f":"INDEX('NO_Table Parameter'!$G$3:$G$1048576,MATCH(EquipItem!D45,'NO_Table Parameter'!$H$3:$H$1048576,0))","v":6},"하의",{"$f":"INDEX('NO_Table Parameter'!$J:$J,MATCH(EquipItem!F45,'NO_Table Parameter'!$K:$K,0))","v":16},"bottom_155","남녀 공용",{"$f":"INDEX('NO_Table Parameter'!S:S,MATCH(EquipItem!I45,'NO_Table Parameter'!T:T,0))","v":1},1,1,166,0,null,0,null,null,"심플",{"$f":"INDEX('NO_Table Parameter'!$P:$P,MATCH(S45,'NO_Table Parameter'!$Q:$Q,0))","v":2},"발랄",{"$f":"INDEX('NO_Table Parameter'!$P:$P,MATCH(U45,'NO_Table Parameter'!$Q:$Q,0))","v":7},"심플",{"$f":"INDEX('NO_Table Parameter'!$P:$P,MATCH(W45,'NO_Table Parameter'!$Q:$Q,0))","v":2},"청순",{"$f":"INDEX('NO_Table Parameter'!$P:$P,MATCH(Y45,'NO_Table Parameter'!$Q:$Q,0))","v":8},"발랄",{"$f":"INDEX('NO_Table Parameter'!$P:$P,MATCH(AA45,'NO_Table Parameter'!$Q:$Q,0))","v":7},"시원",{"$f":"INDEX('NO_Table Parameter'!$P:$P,MATCH(AC45,'NO_Table Parameter'!$Q:$Q,0))","v":4},"따뜻",{"$f":"INDEX('NO_Table Parameter'!$P:$P,MATCH(AE45,'NO_Table Parameter'!$Q:$Q,0))","v":5},null,0,0,1,"change_cloth02",{"$f":"INDEX(NO_참조테이블!H:H,MATCH(EquipItem!AK45,NO_참조테이블!I:I,0))","v":102},null,null,"2023-03-02T05:50:10 +09:00","2022-09-29",1]
["DEV",1000032,{"$f":"INDEX(NO_참조테이블!$F:$F,MATCH(B46,NO_참조테이블!$E:$E,0))","v":"심플한 검은색 캔버스화"},"발",{"$f":"INDEX('NO_Table Parameter'!$G$3:$G$1048576,MATCH(EquipItem!D46,'NO_Table Parameter'!$H$3:$H$1048576,0))","v":10},"신발",{"$f":"INDEX('NO_Table Parameter'!$J:$J,MATCH(EquipItem!F46,'NO_Table Parameter'!$K:$K,0))","v":28},"shoes_156","남녀 공용",{"$f":"INDEX('NO_Table Parameter'!S:S,MATCH(EquipItem!I46,'NO_Table Parameter'!T:T,0))","v":1},0,0,null,0,null,0,null,null,"심플",{"$f":"INDEX('NO_Table Parameter'!$P:$P,MATCH(S46,'NO_Table Parameter'!$Q:$Q,0))","v":2},"발랄",{"$f":"INDEX('NO_Table Parameter'!$P:$P,MATCH(U46,'NO_Table Parameter'!$Q:$Q,0))","v":7},"심플",{"$f":"INDEX('NO_Table Parameter'!$P:$P,MATCH(W46,'NO_Table Parameter'!$Q:$Q,0))","v":2},"청순",{"$f":"INDEX('NO_Table Parameter'!$P:$P,MATCH(Y46,'NO_Table Parameter'!$Q:$Q,0))","v":8},"발랄",{"$f":"INDEX('NO_Table Parameter'!$P:$P,MATCH(AA46,'NO_Table Parameter'!$Q:$Q,0))","v":7},"시원",{"$f":"INDEX('NO_Table Parameter'!$P:$P,MATCH(AC46,'NO_Table Parameter'!$Q:$Q,0))","v":4},"따뜻",{"$f":"INDEX('NO_Table Parameter'!$P:$P,MATCH(AE46,'NO_Table Parameter'!$Q:$Q,0))","v":5},null,0,0,1,"change_shoes01",{"$f":"INDEX(NO_참조테이블!H:H,MATCH(EquipItem!AK46,NO_참조테이블!I:I,0))","v":54},null,null,"2023-03-02T05:50:10 +09:00","2022-09-29",1]
["DEV",1000033,{"$f":"INDEX(NO_참조테이블!$F:$F,MATCH(B47,NO_참조테이블!$E:$E,0))","v":"밤하늘 드레스"},"몸",{"$f":"INDEX('NO_Table Parameter'!$G$3:$G$1048576,MATCH(EquipItem!D47,'NO_Table Parameter'!$H$3:$H$1048576,0))","v":6},"상의",{"$f":"INDEX('NO_Table Parameter'!$J:$J,MATCH(EquipItem!F47,'NO_Table Parameter'!$K:$K,0))","v":15},"top_157","여자만 착용 가능",{"$f":"INDEX('NO_Table Parameter'!S:S,MATCH(EquipItem!I47,'NO_Table Parameter'!T:T,0))","v":3},1,1,168,1,169,0,null,"1|2","심플",{"$f":"INDEX('NO_Table Parameter'!$P:$P,MATCH(S47,'NO_Table Parameter'!$Q:$Q,0))","v":2},"발랄",{"$f":"INDEX('NO_Table Parameter'!$P:$P,MATCH(U47,'NO_Table Parameter'!$Q:$Q,0))","v":7},"심플",{"$f":"INDEX('NO_Table Parameter'!$P:$P,MATCH(W47,'NO_Table Parameter'!$Q:$Q,0))","v":2},"청순",{"$f":"INDEX('NO_Table Parameter'!$P:$P,MATCH(Y47,'NO_Table Parameter'!$Q:$Q,0))","v":8},"발랄",{"$f":"INDEX('NO_Table Parameter'!$P:$P,MATCH(AA47,'NO_Table Parameter'!$Q:$Q,0))","v":7},"시원",{"$f":"INDEX('NO_Table Parameter'!$P:$P,MATCH(AC47,'NO_Table Parameter'!$Q:$Q,0))","v":4},"따뜻",{"$f":"INDEX('NO_Table Parameter'!$P:$P,MATCH(AE47,'NO_Table Parameter'!$Q:$Q,0))","v":5},1,0,0,1,"change_cloth02",{"$f":"INDEX(NO_참조테이블!H:H,MATCH(EquipItem!AK47,NO_참조테이블!I:I,0))","v":102},"TopEff_Front_F","TopEff_Front_B","2023-03-02T05:50:10 +09:00","2022-09-29",1]
["DEV",1000034,{"$f":"INDEX(NO_참조테이블!$F:$F,MATCH(B48,NO_참조테이블!$E:$E,0))","v":"밤하늘 스트랩 펌프스"},"발",{"$f":"INDEX('NO_Table Parameter'!$G$3:$G$1048576,MATCH(EquipItem!D48,'NO_Table Parameter'!$H$3:$H$1048576,0))","v":10},"신발",{"$f":"INDEX('NO_Table Parameter'!$J:$J,MATCH(EquipItem!F48,'NO_Table Parameter'!$K:$K,0))","v":28},"shoes_158","남녀 공용",{"$f":"INDEX('NO_Table Parameter'!S:S,MATCH(EquipItem!I48,'NO_Table Parameter'!T:T,0))","v":1},0,0,null,0,null,0,null,null,"심플",{"$f":"INDEX('NO_Table Parameter'!$P:$P,MATCH(S48,'NO_Table Parameter'!$Q:$Q,0))","v":2},"발랄",{"$f":"INDEX('NO_Table Parameter'!$P:$P,MATCH(U48,'NO_Table Parameter'!$Q:$Q,0))","v":7},"심플",{"$f":"INDEX('NO_Table Parameter'!$P:$P,MATCH(W48,'NO_Table Parameter'!$Q:$Q,0))","v":2},"청순",{"$f":"INDEX('NO_Table Parameter'!$P:$P,MATCH(Y48,'NO_Table Parameter'!$Q:$Q,0))","v":8},"발랄",{"$f":"INDEX('NO_Table Parameter'!$P:$P,MATCH(AA48,'NO_Table Parameter'!$Q:$Q,0))","v":7},"시원",{"$f":"INDEX('NO_Table Parameter'!$P:$P,MATCH(AC48,'NO_Table Parameter'!$Q:$Q,0))","v":4},"따뜻",{"$f":"INDEX('NO_Table Parameter'!$P:$P,MATCH(AE48,'NO_Table Parameter'!$Q:$Q,0))","v":5},null,0,0,1,"change_shoes01",{"$f":"INDEX(NO_참조테이블!H:H,MATCH(EquipItem!AK48,NO_참조테이블!I:I,0))","v":54},null,null,"2023-03-02T05:50:10 +09:00","2022-09-29",1]
["DEV",1000035,{"$f":"INDEX(NO_참조테이블!$F:$F,MATCH(B49,NO_참조테이블!$E:$E,0))","v":"정리 안된 웨이브 헤어"},"머리",{"$f":"INDEX('NO_Table Parameter'!$G$3:$G$1048576,MATCH(EquipItem!D49,'NO_Table Parameter'!$H$3:$H$1048576,0))","v":1},"헤어",{"$f":"INDEX('NO_Table Parameter'!$J:$J,MATCH(EquipItem!F49,'NO_Table Parameter'!$K:$K,0))","v":1},"hair_1025","남녀 공용",{"$f":"INDEX('NO_Table Parameter'!S:S,MATCH(EquipItem!I49,'NO_Table Parameter'!T:T,0))","v":1},1,1,16,0,null,0,null,null,"심플",{"$f":"INDEX('NO_Table Parameter'!$P:$P,MATCH(S49,'NO_Table Parameter'!$Q:$Q,0))","v":2},"발랄",{"$f":"INDEX('NO_Table Parameter'!$P:$P,MATCH(U49,'NO_Table Parameter'!$Q:$Q,0))","v":7},"심플",{"$f":"INDEX('NO_Table Parameter'!$P:$P,MATCH(W49,'NO_Table Parameter'!$Q:$Q,0))","v":2},"청순",{"$f":"INDEX('NO_Table Parameter'!$P:$P,MATCH(Y49,'NO_Table Parameter'!$Q:$Q,0))","v":8},"발랄",{"$f":"INDEX('NO_Table Parameter'!$P:$P,MATCH(AA49,'NO_Table Parameter'!$Q:$Q,0))","v":7},"시원",{"$f":"INDEX('NO_Table Parameter'!$P:$P,MATCH(AC49,'NO_Table Parameter'!$Q:$Q,0))","v":4},"따뜻",{"$f":"INDEX('NO_Table Parameter'!$P:$P,MATCH(AE49,'NO_Table Parameter'!$Q:$Q,0))","v":5},null,0,0,1,"change_hair01",{"$f":"INDEX(NO_참조테이블!H:H,MATCH(EquipItem!AK49,NO_참조테이블!I:I,0))","v":51},null,null,"2023-03-02T05:50:10 +09:00","2022-09-29",1]
["DEV",1000036,{"$f":"INDEX(NO_참조테이블!$F:$F,MATCH(B50,NO_참조테이블!$E:$E,0))","v":"심플한 리본 원피스"},"몸",{"$f":"INDEX('NO_Table Parameter'!$G$3:$G$1048576,MATCH(EquipItem!D50,'NO_Table Parameter'!$H$3:$H$1048576,0))","v":6},"상의",{"$f":"INDEX('NO_Table Parameter'!$J:$J,MATCH(EquipItem!F50,'NO_Table Parameter'!$K:$K,0))","v":15},"top_159","여자만 착용 가능",{"$f":"INDEX('NO_Table Parameter'!S:S,MATCH(EquipItem!I50,'NO_Table Parameter'!T:T,0))","v":3},1,1,8,1,26,0,null,"1|2","심플",{"$f":"INDEX('NO_Table Parameter'!$P:$P,MATCH(S50,'NO_Table Parameter'!$Q:$Q,0))","v":2},"발랄",{"$f":"INDEX('NO_Table Parameter'!$P:$P,MATCH(U50,'NO_Table Parameter'!$Q:$Q,0))","v":7},"심플",{"$f":"INDEX('NO_Table Parameter'!$P:$P,MATCH(W50,'NO_Table Parameter'!$Q:$Q,0))","v":2},"청순",{"$f":"INDEX('NO_Table Parameter'!$P:$P,MATCH(Y50,'NO_Table Parameter'!$Q:$Q,0))","v":8},"발랄",{"$f":"INDEX('NO_Table Parameter'!$P:$P,MATCH(AA50,'NO_Table Parameter'!$Q:$Q,0))","v":7},"시원",{"$f":"INDEX('NO_Table Parameter'!$P:$P,MATCH(AC50,'NO_Table Parameter'!$Q:$Q,0))","v":4},"따뜻",{"$f":"INDEX('NO_Table Parameter'!$P:$P,MATCH(AE50,'NO_Table Parameter'!$Q:$Q,0))","v":5},null,0,0,1,"change_cloth02",{"$f":"INDEX(NO_참조테이블!H:H,MATCH(EquipItem!AK50,NO_참조테이블!I:I,0))","v":102},null,null,"2023-03-02T05:50:10 +09:00","2022-09-29",1]
["DEV",1000037,{"$f":"INDEX(NO_참조테이블!$F:$F,MATCH(B51,NO_참조테이블!$E:$E,0))","v":"심플한 리본 샌들"},"발",{"$f":"INDEX('NO_Table Parameter'!$G$3:$G$1048576,MATCH(EquipItem!D51,'NO_Table Parameter'!$H$3:$H$1048576,0))","v":10},"신발",{"$f":"INDEX('NO_Table Parameter'!$J:$J,MATCH(EquipItem!F51,'NO_Table Parameter'!$K:$K,0))","v":28},"shoes_160","남녀 공용",{"$f":"INDEX('NO_Table Parameter'!S:S,MATCH(EquipItem!I51,'NO_Table Parameter'!T:T,0))","v":1},0,0,null,0,null,0,null,null,"심플",{"$f":"INDEX('NO_Table Parameter'!$P:$P,MATCH(S51,'NO_Table Parameter'!$Q:$Q,0))","v":2},"발랄",{"$f":"INDEX('NO_Table Parameter'!$P:$P,MATCH(U51,'NO_Table Parameter'!$Q:$Q,0))","v":7},"심플",{"$f":"INDEX('NO_Table Parameter'!$P:$P,MATCH(W51,'NO_Table Parameter'!$Q:$Q,0))","v":2},"청순",{"$f":"INDEX('NO_Table Parameter'!$P:$P,MATCH(Y51,'NO_Table Parameter'!$Q:$Q,0))","v":8},"발랄",{"$f":"INDEX('NO_Table Parameter'!$P:$P,MATCH(AA51,'NO_Table Parameter'!$Q:$Q,0))","v":7},"시원",{"$f":"INDEX('NO_Table Parameter'!$P:$P,MATCH(AC51,'NO_Table Parameter'!$Q:$Q,0))","v":4},"따뜻",{"$f":"INDEX('NO_Table Parameter'!$P:$P,MATCH(AE51,'NO_Table Parameter'!$Q:$Q,0))","v":5},null,0,0,1,"change_shoes01",{"$f":"INDEX(NO_참조테이블!H:H,MATCH(EquipItem!AK51,NO_참조테이블!I:I,0))","v":54},null,null,"2023-03-02T05:50:10 +09:00","2022-09-29",1]
["DEV",1000038,{"$f":"INDEX(NO_참조테이블!$F:$F,MATCH(B52,NO_참조테이블!$E:$E,0))","v":"어깨에 닿는 레게머리"},"머리",{"$f":"INDEX('NO_Table Parameter'!$G$3:$G$1048576,MATCH(EquipItem!D52,'NO_Table Parameter'!$H$3:$H$1048576,0))","v":1},"헤어",{"$f":"INDEX('NO_Table Parameter'!$J:$J,MATCH(EquipItem!F52,'NO_Table Parameter'!$K:$K,0))","v":1},"hair_1026","남녀 공용",{"$f":"INDEX('NO_Table Parameter'!S:S,MATCH(EquipItem!I52,'NO_Table Parameter'!T:T,0))","v":1},1,1,158,0,null,0,null,null,"심플",{"$f":"INDEX('NO_Table Parameter'!$P:$P,MATCH(S52,'NO_Table Parameter'!$Q:$Q,0))","v":2},"발랄",{"$f":"INDEX('NO_Table Parameter'!$P:$P,MATCH(U52,'NO_Table Parameter'!$Q:$Q,0))","v":7},"심플",{"$f":"INDEX('NO_Table Parameter'!$P:$P,MATCH(W52,'NO_Table Parameter'!$Q:$Q,0))","v":2},"청순",{"$f":"INDEX('NO_Table Parameter'!$P:$P,MATCH(Y52,'NO_Table Parameter'!$Q:$Q,0))","v":8},"발랄",{"$f":"INDEX('NO_Table Parameter'!$P:$P,MATCH(AA52,'NO_Table Parameter'!$Q:$Q,0))","v":7},"시원",{"$f":"INDEX('NO_Table Parameter'!$P:$P,MATCH(AC52,'NO_Table Parameter'!$Q:$Q,0))","v":4},"따뜻",{"$f":"INDEX('NO_Table Parameter'!$P:$P,MATCH(AE52,'NO_Table Parameter'!$Q:$Q,0))","v":5},null,0,0,1,"change_hair01",{"$f":"INDEX(NO_참조테이블!H:H,MATCH(EquipItem!AK52,NO_참조테이블!I:I,0))","v":51},null,null,"2023-03-02T05:50:10 +09:00","2022-09-29",1]
["DEV",1000039,{"$f":"INDEX(NO_참조테이블!$F:$F,MATCH(B53,NO_참조테이블!$E:$E,0))","v":"보송보송 곱슬머리"},"머리",{"$f":"INDEX('NO_Table Parameter'!$G$3:$G$1048576,MATCH(EquipItem!D53,'NO_Table Parameter'!$H$3:$H$1048576,0))","v":1},"헤어",{"$f":"INDEX('NO_Table Parameter'!$J:$J,MATCH(EquipItem!F53,'NO_Table Parameter'!$K:$K,0))","v":1},"hair_1027","남녀 공용",{"$f":"INDEX('NO_Table Parameter'!S:S,MATCH(EquipItem!I53,'NO_Table Parameter'!T:T,0))","v":1},1,1,156,0,null,0,null,null,"심플",{"$f":"INDEX('NO_Table Parameter'!$P:$P,MATCH(S53,'NO_Table Parameter'!$Q:$Q,0))","v":2},"발랄",{"$f":"INDEX('NO_Table Parameter'!$P:$P,MATCH(U53,'NO_Table Parameter'!$Q:$Q,0))","v":7},"심플",{"$f":"INDEX('NO_Table Parameter'!$P:$P,MATCH(W53,'NO_Table Parameter'!$Q:$Q,0))","v":2},"청순",{"$f":"INDEX('NO_Table Parameter'!$P:$P,MATCH(Y53,'NO_Table Parameter'!$Q:$Q,0))","v":8},"발랄",{"$f":"INDEX('NO_Table Parameter'!$P:$P,MATCH(AA53,'NO_Table Parameter'!$Q:$Q,0))","v":7},"시원",{"$f":"INDEX('NO_Table Parameter'!$P:$P,MATCH(AC53,'NO_Table Parameter'!$Q:$Q,0))","v":4},"따뜻",{"$f":"INDEX('NO_Table Parameter'!$P:$P,MATCH(AE53,'NO_Table Parameter'!$Q:$Q,0))","v":5},null,0,0,1,"change_hair01",{"$f":"INDEX(NO_참조테이블!H:H,MATCH(EquipItem!AK53,NO_참조테이블!I:I,0))","v":51},null,null,"2023-03-02T05:50:10 +09:00","2022-09-29",1]
["DEV",1000040,{"$f":"INDEX(NO_참조테이블!$F:$F,MATCH(B54,NO_참조테이블!$E:$E,0))","v":"심플한 가르마 짧은 머리"},"머리",{"$f":"INDEX('NO_Table Parameter'!$G$3:$G$1048576,MATCH(EquipItem!D54,'NO_Table Parameter'!$H$3:$H$1048576,0))","v":1},"헤어",{"$f":"INDEX('NO_Table Parameter'!$J:$J,MATCH(EquipItem!F54,'NO_Table Parameter'!$K:$K,0))","v":1},"hair_1030","남녀 공용",{"$f":"INDEX('NO_Table Parameter'!S:S,MATCH(EquipItem!I54,'NO_Table Parameter'!T:T,0))","v":1},1,1,156,0,null,0,null,null,"심플",{"$f":"INDEX('NO_Table Parameter'!$P:$P,MATCH(S54,'NO_Table Parameter'!$Q:$Q,0))","v":2},"발랄",{"$f":"INDEX('NO_Table Parameter'!$P:$P,MATCH(U54,'NO_Table Parameter'!$Q:$Q,0))","v":7},"심플",{"$f":"INDEX('NO_Table Parameter'!$P:$P,MATCH(W54,'NO_Table Parameter'!$Q:$Q,0))","v":2},"청순",{"$f":"INDEX('NO_Table Parameter'!$P:$P,MATCH(Y54,'NO_Table Parameter'!$Q:$Q,0))","v":8},"발랄",{"$f":"INDEX('NO_Table Parameter'!$P:$P,MATCH(AA54,'NO_Table Parameter'!$Q:$Q,0))","v":7},"시원",{"$f":"INDEX('NO_Table Parameter'!$P:$P,MATCH(AC54,'NO_Table Parameter'!$Q:$Q,0))","v":4},"따뜻",{"$f":"INDEX('NO_Table Parameter'!$P:$P,MATCH(AE54,'NO_Table Parameter'!$Q:$Q,0))","v":5},null,0,0,1,"change_hair01",{"$f":"INDEX(NO_참조테이블!H:H,MATCH(EquipItem!AK54,NO_참조테이블!I:I,0))","v":51},null,null,"2023-03-02T05:50:10 +09:00","2022-09-29",1]
["DEV",1000041,{"$f":"INDEX(NO_참조테이블!$F:$F,MATCH(B55,NO_참조테이블!$E:$E,0))","v":"심플한 긴팔 셔츠"},"몸",{"$f":"INDEX('NO_Table Parameter'!$G$3:$G$1048576,MATCH(EquipItem!D55,'NO_Table Parameter'!$H$3:$H$1048576,0))","v":6},"상의",{"$f":"INDEX('NO_Table Parameter'!$J:$J,MATCH(EquipItem!F55,'NO_Table Parameter'!$K:$K,0))","v":15},"top_166","남녀 공용",{"$f":"INDEX('NO_Table Parameter'!S:S,MATCH(EquipItem!I55,'NO_Table Parameter'!T:T,0))","v":1},1,1,62,0,null,0,null,null,"심플",{"$f":"INDEX('NO_Table Parameter'!$P:$P,MATCH(S55,'NO_Table Parameter'!$Q:$Q,0))","v":2},"발랄",{"$f":"INDEX('NO_Table Parameter'!$P:$P,MATCH(U55,'NO_Table Parameter'!$Q:$Q,0))","v":7},"심플",{"$f":"INDEX('NO_Table Parameter'!$P:$P,MATCH(W55,'NO_Table Parameter'!$Q:$Q,0))","v":2},"청순",{"$f":"INDEX('NO_Table Parameter'!$P:$P,MATCH(Y55,'NO_Table Parameter'!$Q:$Q,0))","v":8},"발랄",{"$f":"INDEX('NO_Table Parameter'!$P:$P,MATCH(AA55,'NO_Table Parameter'!$Q:$Q,0))","v":7},"시원",{"$f":"INDEX('NO_Table Parameter'!$P:$P,MATCH(AC55,'NO_Table Parameter'!$Q:$Q,0))","v":4},"따뜻",{"$f":"INDEX('NO_Table Parameter'!$P:$P,MATCH(AE55,'NO_Table Parameter'!$Q:$Q,0))","v":5},null,0,0,1,"change_cloth02",{"$f":"INDEX(NO_참조테이블!H:H,MATCH(EquipItem!AK55,NO_참조테이블!I:I,0))","v":102},null,null,"2023-03-02T05:50:10 +09:00","2022-09-29",1]
["DEV",1000042,{"$f":"INDEX(NO_참조테이블!$F:$F,MATCH(B56,NO_참조테이블!$E:$E,0))","v":"심플한 정장 바지"},"몸",{"$f":"INDEX('NO_Table Parameter'!$G$3:$G$1048576,MATCH(EquipItem!D56,'NO_Table Parameter'!$H$3:$H$1048576,0))","v":6},"하의",{"$f":"INDEX('NO_Table Parameter'!$J:$J,MATCH(EquipItem!F56,'NO_Table Parameter'!$K:$K,0))","v":16},"bottom_167","남녀 공용",{"$f":"INDEX('NO_Table Parameter'!S:S,MATCH(EquipItem!I56,'NO_Table Parameter'!T:T,0))","v":1},1,1,98,0,null,0,null,null,"심플",{"$f":"INDEX('NO_Table Parameter'!$P:$P,MATCH(S56,'NO_Table Parameter'!$Q:$Q,0))","v":2},"발랄",{"$f":"INDEX('NO_Table Parameter'!$P:$P,MATCH(U56,'NO_Table Parameter'!$Q:$Q,0))","v":7},"심플",{"$f":"INDEX('NO_Table Parameter'!$P:$P,MATCH(W56,'NO_Table Parameter'!$Q:$Q,0))","v":2},"청순",{"$f":"INDEX('NO_Table Parameter'!$P:$P,MATCH(Y56,'NO_Table Parameter'!$Q:$Q,0))","v":8},"발랄",{"$f":"INDEX('NO_Table Parameter'!$P:$P,MATCH(AA56,'NO_Table Parameter'!$Q:$Q,0))","v":7},"시원",{"$f":"INDEX('NO_Table Parameter'!$P:$P,MATCH(AC56,'NO_Table Parameter'!$Q:$Q,0))","v":4},"따뜻",{"$f":"INDEX('NO_Table Parameter'!$P:$P,MATCH(AE56,'NO_Table Parameter'!$Q:$Q,0))","v":5},null,0,0,1,"change_cloth02",{"$f":"INDEX(NO_참조테이블!H:H,MATCH(EquipItem!AK56,NO_참조테이블!I:I,0))","v":102},null,null,"2023-03-02T05:50:10 +09:00","2022-09-29",1]
["DEV",1000043,{"$f":"INDEX(NO_참조테이블!$F:$F,MATCH(B57,NO_참조테이블!$E:$E,0))","v":"심플한 검정 정장 구두"},"발",{"$f":"INDEX('NO_Table Parameter'!$G$3:$G$1048576,MATCH(EquipItem!D57,'NO_Table Parameter'!$H$3:$H$1048576,0))","v":10},"신발",{"$f":"INDEX('NO_Table Parameter'!$J:$J,MATCH(EquipItem!F57,'NO_Table Parameter'!$K:$K,0))","v":28},"shoes_168","남녀 공용",{"$f":"INDEX('NO_Table Parameter'!S:S,MATCH(EquipItem!I57,'NO_Table Parameter'!T:T,0))","v":1},0,0,null,0,null,0,null,null,"심플",{"$f":"INDEX('NO_Table Parameter'!$P:$P,MATCH(S57,'NO_Table Parameter'!$Q:$Q,0))","v":2},"발랄",{"$f":"INDEX('NO_Table Parameter'!$P:$P,MATCH(U57,'NO_Table Parameter'!$Q:$Q,0))","v":7},"심플",{"$f":"INDEX('NO_Table Parameter'!$P:$P,MATCH(W57,'NO_Table Parameter'!$Q:$Q,0))","v":2},"청순",{"$f":"INDEX('NO_Table Parameter'!$P:$P,MATCH(Y57,'NO_Table Parameter'!$Q:$Q,0))","v":8},"발랄",{"$f":"INDEX('NO_Table Parameter'!$P:$P,MATCH(AA57,'NO_Table Parameter'!$Q:$Q,0))","v":7},"시원",{"$f":"INDEX('NO_Table Parameter'!$P:$P,MATCH(AC57,'NO_Table Parameter'!$Q:$Q,0))","v":4},"따뜻",{"$f":"INDEX('NO_Table Parameter'!$P:$P,MATCH(AE57,'NO_Table Parameter'!$Q:$Q,0))","v":5},null,0,0,1,"change_shoes01",{"$f":"INDEX(NO_참조테이블!H:H,MATCH(EquipItem!AK57,NO_참조테이블!I:I,0))","v":54},null,null,"2023-03-02T05:50:10 +09:00","2022-09-29",1]
["DEV",1000044,{"$f":"INDEX(NO_참조테이블!$F:$F,MATCH(B58,NO_참조테이블!$E:$E,0))","v":"살짝 뻗친 중단발"},"머리",{"$f":"INDEX('NO_Table Parameter'!$G$3:$G$1048576,MATCH(EquipItem!D58,'NO_Table Parameter'!$H$3:$H$1048576,0))","v":1},"헤어",{"$f":"INDEX('NO_Table Parameter'!$J:$J,MATCH(EquipItem!F58,'NO_Table Parameter'!$K:$K,0))","v":1},"hair_1042","남녀 공용",{"$f":"INDEX('NO_Table Parameter'!S:S,MATCH(EquipItem!I58,'NO_Table Parameter'!T:T,0))","v":1},1,1,157,0,null,0,null,"1|2","심플",{"$f":"INDEX('NO_Table Parameter'!$P:$P,MATCH(S58,'NO_Table Parameter'!$Q:$Q,0))","v":2},"발랄",{"$f":"INDEX('NO_Table Parameter'!$P:$P,MATCH(U58,'NO_Table Parameter'!$Q:$Q,0))","v":7},"심플",{"$f":"INDEX('NO_Table Parameter'!$P:$P,MATCH(W58,'NO_Table Parameter'!$Q:$Q,0))","v":2},"청순",{"$f":"INDEX('NO_Table Parameter'!$P:$P,MATCH(Y58,'NO_Table Parameter'!$Q:$Q,0))","v":8},"발랄",{"$f":"INDEX('NO_Table Parameter'!$P:$P,MATCH(AA58,'NO_Table Parameter'!$Q:$Q,0))","v":7},"시원",{"$f":"INDEX('NO_Table Parameter'!$P:$P,MATCH(AC58,'NO_Table Parameter'!$Q:$Q,0))","v":4},"따뜻",{"$f":"INDEX('NO_Table Parameter'!$P:$P,MATCH(AE58,'NO_Table Parameter'!$Q:$Q,0))","v":5},null,0,0,1,"change_hair01",{"$f":"INDEX(NO_참조테이블!H:H,MATCH(EquipItem!AK58,NO_참조테이블!I:I,0))","v":51},null,null,"2023-03-02T05:50:10 +09:00","2022-09-29",1]
["DEV",1000045,{"$f":"INDEX(NO_참조테이블!$F:$F,MATCH(B59,NO_참조테이블!$E:$E,0))","v":"심플 곰돌이 티셔츠"},"몸",{"$f":"INDEX('NO_Table Parameter'!$G$3:$G$1048576,MATCH(EquipItem!D59,'NO_Table Parameter'!$H$3:$H$1048576,0))","v":6},"상의",{"$f":"INDEX('NO_Table Parameter'!$J:$J,MATCH(EquipItem!F59,'NO_Table Parameter'!$K:$K,0))","v":15},"top_174","남녀 공용",{"$f":"INDEX('NO_Table Parameter'!S:S,MATCH(EquipItem!I59,'NO_Table Parameter'!T:T,0))","v":1},1,1,23,1,98,0,null,null,"심플",{"$f":"INDEX('NO_Table Parameter'!$P:$P,MATCH(S59,'NO_Table Parameter'!$Q:$Q,0))","v":2},"발랄",{"$f":"INDEX('NO_Table Parameter'!$P:$P,MATCH(U59,'NO_Table Parameter'!$Q:$Q,0))","v":7},"심플",{"$f":"INDEX('NO_Table Parameter'!$P:$P,MATCH(W59,'NO_Table Parameter'!$Q:$Q,0))","v":2},"청순",{"$f":"INDEX('NO_Table Parameter'!$P:$P,MATCH(Y59,'NO_Table Parameter'!$Q:$Q,0))","v":8},"발랄",{"$f":"INDEX('NO_Table Parameter'!$P:$P,MATCH(AA59,'NO_Table Parameter'!$Q:$Q,0))","v":7},"시원",{"$f":"INDEX('NO_Table Parameter'!$P:$P,MATCH(AC59,'NO_Table Parameter'!$Q:$Q,0))","v":4},"따뜻",{"$f":"INDEX('NO_Table Parameter'!$P:$P,MATCH(AE59,'NO_Table Parameter'!$Q:$Q,0))","v":5},null,0,0,1,"change_cloth02",{"$f":"INDEX(NO_참조테이블!H:H,MATCH(EquipItem!AK59,NO_참조테이블!I:I,0))","v":102},null,null,"2023-03-02T05:50:10 +09:00","2022-09-29",1]
["DEV",1000046,{"$f":"INDEX(NO_참조테이블!$F:$F,MATCH(B60,NO_참조테이블!$E:$E,0))","v":"개나리 플랫 슈즈"},"발",{"$f":"INDEX('NO_Table Parameter'!$G$3:$G$1048576,MATCH(EquipItem!D60,'NO_Table Parameter'!$H$3:$H$1048576,0))","v":10},"신발",{"$f":"INDEX('NO_Table Parameter'!$J:$J,MATCH(EquipItem!F60,'NO_Table Parameter'!$K:$K,0))","v":28},"shoes_175","남녀 공용",{"$f":"INDEX('NO_Table Parameter'!S:S,MATCH(EquipItem!I60,'NO_Table Parameter'!T:T,0))","v":1},0,0,null,0,null,0,null,null,"심플",{"$f":"INDEX('NO_Table Parameter'!$P:$P,MATCH(S60,'NO_Table Parameter'!$Q:$Q,0))","v":2},"발랄",{"$f":"INDEX('NO_Table Parameter'!$P:$P,MATCH(U60,'NO_Table Parameter'!$Q:$Q,0))","v":7},"심플",{"$f":"INDEX('NO_Table Parameter'!$P:$P,MATCH(W60,'NO_Table Parameter'!$Q:$Q,0))","v":2},"청순",{"$f":"INDEX('NO_Table Parameter'!$P:$P,MATCH(Y60,'NO_Table Parameter'!$Q:$Q,0))","v":8},"발랄",{"$f":"INDEX('NO_Table Parameter'!$P:$P,MATCH(AA60,'NO_Table Parameter'!$Q:$Q,0))","v":7},"시원",{"$f":"INDEX('NO_Table Parameter'!$P:$P,MATCH(AC60,'NO_Table Parameter'!$Q:$Q,0))","v":4},"따뜻",{"$f":"INDEX('NO_Table Parameter'!$P:$P,MATCH(AE60,'NO_Table Parameter'!$Q:$Q,0))","v":5},null,0,0,1,"change_shoes01",{"$f":"INDEX(NO_참조테이블!H:H,MATCH(EquipItem!AK60,NO_참조테이블!I:I,0))","v":54},null,null,"2023-03-02T05:50:10 +09:00","2022-09-29",1]
["DEV",1000047,{"$f":"INDEX(NO_참조테이블!$F:$F,MATCH(B61,NO_참조테이블!$E:$E,0))","v":"빗질 안 한 짧은 머리"},"머리",{"$f":"INDEX('NO_Table Parameter'!$G$3:$G$1048576,MATCH(EquipItem!D61,'NO_Table Parameter'!$H$3:$H$1048576,0))","v":1},"헤어",{"$f":"INDEX('NO_Table Parameter'!$J:$J,MATCH(EquipItem!F61,'NO_Table Parameter'!$K:$K,0))","v":1},"hair_1043","남녀 공용",{"$f":"INDEX('NO_Table Parameter'!S:S,MATCH(EquipItem!I61,'NO_Table Parameter'!T:T,0))","v":1},1,1,158,0,null,0,null,null,"심플",{"$f":"INDEX('NO_Table Parameter'!$P:$P,MATCH(S61,'NO_Table Parameter'!$Q:$Q,0))","v":2},"발랄",{"$f":"INDEX('NO_Table Parameter'!$P:$P,MATCH(U61,'NO_Table Parameter'!$Q:$Q,0))","v":7},"심플",{"$f":"INDEX('NO_Table Parameter'!$P:$P,MATCH(W61,'NO_Table Parameter'!$Q:$Q,0))","v":2},"청순",{"$f":"INDEX('NO_Table Parameter'!$P:$P,MATCH(Y61,'NO_Table Parameter'!$Q:$Q,0))","v":8},"발랄",{"$f":"INDEX('NO_Table Parameter'!$P:$P,MATCH(AA61,'NO_Table Parameter'!$Q:$Q,0))","v":7},"시원",{"$f":"INDEX('NO_Table Parameter'!$P:$P,MATCH(AC61,'NO_Table Parameter'!$Q:$Q,0))","v":4},"따뜻",{"$f":"INDEX('NO_Table Parameter'!$P:$P,MATCH(AE61,'NO_Table Parameter'!$Q:$Q,0))","v":5},null,0,0,1,"change_hair01",{"$f":"INDEX(NO_참조테이블!H:H,MATCH(EquipItem!AK61,NO_참조테이블!I:I,0))","v":51},null,null,"2023-03-02T05:50:10 +09:00","2022-09-29",1]
["DEV",1000048,{"$f":"INDEX(NO_참조테이블!$F:$F,MATCH(B62,NO_참조테이블!$E:$E,0))","v":"심플 브이넥 티셔츠"},"몸",{"$f":"INDEX('NO_Table Parameter'!$G$3:$G$1048576,MATCH(EquipItem!D62,'NO_Table Parameter'!$H$3:$H$1048576,0))","v":6},"상의",{"$f":"INDEX('NO_Table Parameter'!$J:$J,MATCH(EquipItem!F62,'NO_Table Parameter'!$K:$K,0))","v":15},"top_176","남녀 공용",{"$f":"INDEX('NO_Table Parameter'!S:S,MATCH(EquipItem!I62,'NO_Table Parameter'!T:T,0))","v":1},1,1,98,0,null,0,null,null,"심플",{"$f":"INDEX('NO_Table Parameter'!$P:$P,MATCH(S62,'NO_Table Parameter'!$Q:$Q,0))","v":2},"발랄",{"$f":"INDEX('NO_Table Parameter'!$P:$P,MATCH(U62,'NO_Table Parameter'!$Q:$Q,0))","v":7},"심플",{"$f":"INDEX('NO_Table Parameter'!$P:$P,MATCH(W62,'NO_Table Parameter'!$Q:$Q,0))","v":2},"청순",{"$f":"INDEX('NO_Table Parameter'!$P:$P,MATCH(Y62,'NO_Table Parameter'!$Q:$Q,0))","v":8},"발랄",{"$f":"INDEX('NO_Table Parameter'!$P:$P,MATCH(AA62,'NO_Table Parameter'!$Q:$Q,0))","v":7},"시원",{"$f":"INDEX('NO_Table Parameter'!$P:$P,MATCH(AC62,'NO_Table Parameter'!$Q:$Q,0))","v":4},"따뜻",{"$f":"INDEX('NO_Table Parameter'!$P:$P,MATCH(AE62,'NO_Table Parameter'!$Q:$Q,0))","v":5},null,0,0,1,"change_cloth02",{"$f":"INDEX(NO_참조테이블!H:H,MATCH(EquipItem!AK62,NO_참조테이블!I:I,0))","v":102},null,null,"2023-03-02T05:50:10 +09:00","2022-09-29",1]
["DEV",1000049,{"$f":"INDEX(NO_참조테이블!$F:$F,MATCH(B63,NO_참조테이블!$E:$E,0))","v":"동글동글한 얼굴"},"얼굴",{"$f":"INDEX('NO_Table Parameter'!$G$3:$G$1048576,MATCH(EquipItem!D63,'NO_Table Parameter'!$H$3:$H$1048576,0))","v":2},"화장",{"$f":"INDEX('NO_Table Parameter'!$J:$J,MATCH(EquipItem!F63,'NO_Table Parameter'!$K:$K,0))","v":6},"makeup_1044","남녀 공용",{"$f":"INDEX('NO_Table Parameter'!S:S,MATCH(EquipItem!I63,'NO_Table Parameter'!T:T,0))","v":1},0,0,null,0,null,0,null,null,"심플",{"$f":"INDEX('NO_Table Parameter'!$P:$P,MATCH(S63,'NO_Table Parameter'!$Q:$Q,0))","v":2},"발랄",{"$f":"INDEX('NO_Table Parameter'!$P:$P,MATCH(U63,'NO_Table Parameter'!$Q:$Q,0))","v":7},"심플",{"$f":"INDEX('NO_Table Parameter'!$P:$P,MATCH(W63,'NO_Table Parameter'!$Q:$Q,0))","v":2},"청순",{"$f":"INDEX('NO_Table Parameter'!$P:$P,MATCH(Y63,'NO_Table Parameter'!$Q:$Q,0))","v":8},"발랄",{"$f":"INDEX('NO_Table Parameter'!$P:$P,MATCH(AA63,'NO_Table Parameter'!$Q:$Q,0))","v":7},"시원",{"$f":"INDEX('NO_Table Parameter'!$P:$P,MATCH(AC63,'NO_Table Parameter'!$Q:$Q,0))","v":4},"따뜻",{"$f":"INDEX('NO_Table Parameter'!$P:$P,MATCH(AE63,'NO_Table Parameter'!$Q:$Q,0))","v":5},null,0,0,1,"change_eye01",{"$f":"INDEX(NO_참조테이블!H:H,MATCH(EquipItem!AK63,NO_참조테이블!I:I,0))","v":52},null,null,"2023-03-02T05:50:10 +09:00","2022-09-29",1]
["DEV",1000050,{"$f":"INDEX(NO_참조테이블!$F:$F,MATCH(B64,NO_참조테이블!$E:$E,0))","v":"장난꾸러기 얼굴"},"얼굴",{"$f":"INDEX('NO_Table Parameter'!$G$3:$G$1048576,MATCH(EquipItem!D64,'NO_Table Parameter'!$H$3:$H$1048576,0))","v":2},"화장",{"$f":"INDEX('NO_Table Parameter'!$J:$J,MATCH(EquipItem!F64,'NO_Table Parameter'!$K:$K,0))","v":6},"makeup_1045","남녀 공용",{"$f":"INDEX('NO_Table Parameter'!S:S,MATCH(EquipItem!I64,'NO_Table Parameter'!T:T,0))","v":1},0,0,null,0,null,0,null,null,"심플",{"$f":"INDEX('NO_Table Parameter'!$P:$P,MATCH(S64,'NO_Table Parameter'!$Q:$Q,0))","v":2},"발랄",{"$f":"INDEX('NO_Table Parameter'!$P:$P,MATCH(U64,'NO_Table Parameter'!$Q:$Q,0))","v":7},"심플",{"$f":"INDEX('NO_Table Parameter'!$P:$P,MATCH(W64,'NO_Table Parameter'!$Q:$Q,0))","v":2},"청순",{"$f":"INDEX('NO_Table Parameter'!$P:$P,MATCH(Y64,'NO_Table Parameter'!$Q:$Q,0))","v":8},"발랄",{"$f":"INDEX('NO_Table Parameter'!$P:$P,MATCH(AA64,'NO_Table Parameter'!$Q:$Q,0))","v":7},"시원",{"$f":"INDEX('NO_Table Parameter'!$P:$P,MATCH(AC64,'NO_Table Parameter'!$Q:$Q,0))","v":4},"따뜻",{"$f":"INDEX('NO_Table Parameter'!$P:$P,MATCH(AE64,'NO_Table Parameter'!$Q:$Q,0))","v":5},null,0,0,1,"change_eye01",{"$f":"INDEX(NO_참조테이블!H:H,MATCH(EquipItem!AK64,NO_참조테이블!I:I,0))","v":52},null,null,"2023-03-02T05:50:10 +09:00","2022-09-29",1]
["DEV",1000051,{"$f":"INDEX(NO_참조테이블!$F:$F,MATCH(B65,NO_참조테이블!$E:$E,0))","v":"바이올렛 페어리 원피스"},"몸",{"$f":"INDEX('NO_Table Parameter'!$G$3:$G$1048576,MATCH(EquipItem!D65,'NO_Table Parameter'!$H$3:$H$1048576,0))","v":6},"상의",{"$f":"INDEX('NO_Table Parameter'!$J:$J,MATCH(EquipItem!F65,'NO_Table Parameter'!$K:$K,0))","v":15},"top_177","여자만 착용 가능",{"$f":"INDEX('NO_Table Parameter'!S:S,MATCH(EquipItem!I65,'NO_Table Parameter'!T:T,0))","v":3},1,1,170,1,171,0,null,"1|2","심플",{"$f":"INDEX('NO_Table Parameter'!$P:$P,MATCH(S65,'NO_Table Parameter'!$Q:$Q,0))","v":2},"발랄",{"$f":"INDEX('NO_Table Parameter'!$P:$P,MATCH(U65,'NO_Table Parameter'!$Q:$Q,0))","v":7},"심플",{"$f":"INDEX('NO_Table Parameter'!$P:$P,MATCH(W65,'NO_Table Parameter'!$Q:$Q,0))","v":2},"청순",{"$f":"INDEX('NO_Table Parameter'!$P:$P,MATCH(Y65,'NO_Table Parameter'!$Q:$Q,0))","v":8},"발랄",{"$f":"INDEX('NO_Table Parameter'!$P:$P,MATCH(AA65,'NO_Table Parameter'!$Q:$Q,0))","v":7},"시원",{"$f":"INDEX('NO_Table Parameter'!$P:$P,MATCH(AC65,'NO_Table Parameter'!$Q:$Q,0))","v":4},"따뜻",{"$f":"INDEX('NO_Table Parameter'!$P:$P,MATCH(AE65,'NO_Table Parameter'!$Q:$Q,0))","v":5},null,0,0,1,"change_cloth02",{"$f":"INDEX(NO_참조테이블!H:H,MATCH(EquipItem!AK65,NO_참조테이블!I:I,0))","v":102},null,null,"2023-03-02T05:50:10 +09:00","2022-09-29",1]
["DEV",1000052,{"$f":"INDEX(NO_참조테이블!$F:$F,MATCH(B66,NO_참조테이블!$E:$E,0))","v":"바이올렛 페어리 파스텔 슈즈"},"발",{"$f":"INDEX('NO_Table Parameter'!$G$3:$G$1048576,MATCH(EquipItem!D66,'NO_Table Parameter'!$H$3:$H$1048576,0))","v":10},"신발",{"$f":"INDEX('NO_Table Parameter'!$J:$J,MATCH(EquipItem!F66,'NO_Table Parameter'!$K:$K,0))","v":28},"shoes_178","남녀 공용",{"$f":"INDEX('NO_Table Parameter'!S:S,MATCH(EquipItem!I66,'NO_Table Parameter'!T:T,0))","v":1},0,0,null,0,null,0,null,null,"심플",{"$f":"INDEX('NO_Table Parameter'!$P:$P,MATCH(S66,'NO_Table Parameter'!$Q:$Q,0))","v":2},"발랄",{"$f":"INDEX('NO_Table Parameter'!$P:$P,MATCH(U66,'NO_Table Parameter'!$Q:$Q,0))","v":7},"심플",{"$f":"INDEX('NO_Table Parameter'!$P:$P,MATCH(W66,'NO_Table Parameter'!$Q:$Q,0))","v":2},"청순",{"$f":"INDEX('NO_Table Parameter'!$P:$P,MATCH(Y66,'NO_Table Parameter'!$Q:$Q,0))","v":8},"발랄",{"$f":"INDEX('NO_Table Parameter'!$P:$P,MATCH(AA66,'NO_Table Parameter'!$Q:$Q,0))","v":7},"시원",{"$f":"INDEX('NO_Table Parameter'!$P:$P,MATCH(AC66,'NO_Table Parameter'!$Q:$Q,0))","v":4},"따뜻",{"$f":"INDEX('NO_Table Parameter'!$P:$P,MATCH(AE66,'NO_Table Parameter'!$Q:$Q,0))","v":5},null,0,0,1,"change_shoes01",{"$f":"INDEX(NO_참조테이블!H:H,MATCH(EquipItem!AK66,NO_참조테이블!I:I,0))","v":54},null,null,"2023-03-02T05:50:10 +09:00","2022-09-29",1]
["DEV",1000053,{"$f":"INDEX(NO_참조테이블!$F:$F,MATCH(B67,NO_참조테이블!$E:$E,0))","v":"바이올렛 페어리 땋은 머리"},"머리",{"$f":"INDEX('NO_Table Parameter'!$G$3:$G$1048576,MATCH(EquipItem!D67,'NO_Table Parameter'!$H$3:$H$1048576,0))","v":1},"헤어",{"$f":"INDEX('NO_Table Parameter'!$J:$J,MATCH(EquipItem!F67,'NO_Table Parameter'!$K:$K,0))","v":1},"hair_1046","남녀 공용",{"$f":"INDEX('NO_Table Parameter'!S:S,MATCH(EquipItem!I67,'NO_Table Parameter'!T:T,0))","v":1},1,1,172,0,null,0,null,null,"심플",{"$f":"INDEX('NO_Table Parameter'!$P:$P,MATCH(S67,'NO_Table Parameter'!$Q:$Q,0))","v":2},"발랄",{"$f":"INDEX('NO_Table Parameter'!$P:$P,MATCH(U67,'NO_Table Parameter'!$Q:$Q,0))","v":7},"심플",{"$f":"INDEX('NO_Table Parameter'!$P:$P,MATCH(W67,'NO_Table Parameter'!$Q:$Q,0))","v":2},"청순",{"$f":"INDEX('NO_Table Parameter'!$P:$P,MATCH(Y67,'NO_Table Parameter'!$Q:$Q,0))","v":8},"발랄",{"$f":"INDEX('NO_Table Parameter'!$P:$P,MATCH(AA67,'NO_Table Parameter'!$Q:$Q,0))","v":7},"시원",{"$f":"INDEX('NO_Table Parameter'!$P:$P,MATCH(AC67,'NO_Table Parameter'!$Q:$Q,0))","v":4},"따뜻",{"$f":"INDEX('NO_Table Parameter'!$P:$P,MATCH(AE67,'NO_Table Parameter'!$Q:$Q,0))","v":5},null,0,0,1,"change_hair01",{"$f":"INDEX(NO_참조테이블!H:H,MATCH(EquipItem!AK67,NO_참조테이블!I:I,0))","v":51},null,null,"2023-03-02T05:50:10 +09:00","2022-09-29",1]
["DEV",1000054,{"$f":"INDEX(NO_참조테이블!$F:$F,MATCH(B68,NO_참조테이블!$E:$E,0))","v":"바이올렛 페어리 나비핀"},"머리",{"$f":"INDEX('NO_Table Parameter'!$G$3:$G$1048576,MATCH(EquipItem!D68,'NO_Table Parameter'!$H$3:$H$1048576,0))","v":1},"머리 (위)",{"$f":"INDEX('NO_Table Parameter'!$J:$J,MATCH(EquipItem!F68,'NO_Table Parameter'!$K:$K,0))","v":3},"headtop_1047","남녀 공용",{"$f":"INDEX('NO_Table Parameter'!S:S,MATCH(EquipItem!I68,'NO_Table Parameter'!T:T,0))","v":1},0,0,null,0,null,0,null,null,"심플",{"$f":"INDEX('NO_Table Parameter'!$P:$P,MATCH(S68,'NO_Table Parameter'!$Q:$Q,0))","v":2},"발랄",{"$f":"INDEX('NO_Table Parameter'!$P:$P,MATCH(U68,'NO_Table Parameter'!$Q:$Q,0))","v":7},"심플",{"$f":"INDEX('NO_Table Parameter'!$P:$P,MATCH(W68,'NO_Table Parameter'!$Q:$Q,0))","v":2},"청순",{"$f":"INDEX('NO_Table Parameter'!$P:$P,MATCH(Y68,'NO_Table Parameter'!$Q:$Q,0))","v":8},"발랄",{"$f":"INDEX('NO_Table Parameter'!$P:$P,MATCH(AA68,'NO_Table Parameter'!$Q:$Q,0))","v":7},"시원",{"$f":"INDEX('NO_Table Parameter'!$P:$P,MATCH(AC68,'NO_Table Parameter'!$Q:$Q,0))","v":4},"따뜻",{"$f":"INDEX('NO_Table Parameter'!$P:$P,MATCH(AE68,'NO_Table Parameter'!$Q:$Q,0))","v":5},null,0,0,1,"change_hair01",{"$f":"INDEX(NO_참조테이블!H:H,MATCH(EquipItem!AK68,NO_참조테이블!I:I,0))","v":51},null,null,"2023-03-02T05:50:10 +09:00","2022-09-29",1]
["DEV",1000055,{"$f":"INDEX(NO_참조테이블!$F:$F,MATCH(B69,NO_참조테이블!$E:$E,0))","v":"바이올렛 페어리 아우라"},"머리",{"$f":"INDEX('NO_Table Parameter'!$G$3:$G$1048576,MATCH(EquipItem!D69,'NO_Table Parameter'!$H$3:$H$1048576,0))","v":1},"머리 (공중)",{"$f":"INDEX('NO_Table Parameter'!$J:$J,MATCH(EquipItem!F69,'NO_Table Parameter'!$K:$K,0))","v":5},"headover_1048","남녀 공용",{"$f":"INDEX('NO_Table Parameter'!S:S,MATCH(EquipItem!I69,'NO_Table Parameter'!T:T,0))","v":1},0,0,null,0,null,0,null,null,"심플",{"$f":"INDEX('NO_Table Parameter'!$P:$P,MATCH(S69,'NO_Table Parameter'!$Q:$Q,0))","v":2},"발랄",{"$f":"INDEX('NO_Table Parameter'!$P:$P,MATCH(U69,'NO_Table Parameter'!$Q:$Q,0))","v":7},"심플",{"$f":"INDEX('NO_Table Parameter'!$P:$P,MATCH(W69,'NO_Table Parameter'!$Q:$Q,0))","v":2},"청순",{"$f":"INDEX('NO_Table Parameter'!$P:$P,MATCH(Y69,'NO_Table Parameter'!$Q:$Q,0))","v":8},"발랄",{"$f":"INDEX('NO_Table Parameter'!$P:$P,MATCH(AA69,'NO_Table Parameter'!$Q:$Q,0))","v":7},"시원",{"$f":"INDEX('NO_Table Parameter'!$P:$P,MATCH(AC69,'NO_Table Parameter'!$Q:$Q,0))","v":4},"따뜻",{"$f":"INDEX('NO_Table Parameter'!$P:$P,MATCH(AE69,'NO_Table Parameter'!$Q:$Q,0))","v":5},null,0,0,1,"change_hair01",{"$f":"INDEX(NO_참조테이블!H:H,MATCH(EquipItem!AK69,NO_참조테이블!I:I,0))","v":51},null,null,"2023-03-02T05:50:10 +09:00","2022-09-29",1]
["DEV",1000056,{"$f":"INDEX(NO_참조테이블!$F:$F,MATCH(B70,NO_참조테이블!$E:$E,0))","v":"바이올렛 페어리 플라워"},"발",{"$f":"INDEX('NO_Table Parameter'!$G$3:$G$1048576,MATCH(EquipItem!D70,'NO_Table Parameter'!$H$3:$H$1048576,0))","v":10},"바닥",{"$f":"INDEX('NO_Table Parameter'!$J:$J,MATCH(EquipItem!F70,'NO_Table Parameter'!$K:$K,0))","v":27},"floor_1049","남녀 공용",{"$f":"INDEX('NO_Table Parameter'!S:S,MATCH(EquipItem!I70,'NO_Table Parameter'!T:T,0))","v":1},0,0,null,0,null,0,null,null,"심플",{"$f":"INDEX('NO_Table Parameter'!$P:$P,MATCH(S70,'NO_Table Parameter'!$Q:$Q,0))","v":2},"발랄",{"$f":"INDEX('NO_Table Parameter'!$P:$P,MATCH(U70,'NO_Table Parameter'!$Q:$Q,0))","v":7},"심플",{"$f":"INDEX('NO_Table Parameter'!$P:$P,MATCH(W70,'NO_Table Parameter'!$Q:$Q,0))","v":2},"청순",{"$f":"INDEX('NO_Table Parameter'!$P:$P,MATCH(Y70,'NO_Table Parameter'!$Q:$Q,0))","v":8},"발랄",{"$f":"INDEX('NO_Table Parameter'!$P:$P,MATCH(AA70,'NO_Table Parameter'!$Q:$Q,0))","v":7},"시원",{"$f":"INDEX('NO_Table Parameter'!$P:$P,MATCH(AC70,'NO_Table Parameter'!$Q:$Q,0))","v":4},"따뜻",{"$f":"INDEX('NO_Table Parameter'!$P:$P,MATCH(AE70,'NO_Table Parameter'!$Q:$Q,0))","v":5},null,0,0,1,"change_shoes01",{"$f":"INDEX(NO_참조테이블!H:H,MATCH(EquipItem!AK70,NO_참조테이블!I:I,0))","v":54},null,null,"2023-03-02T05:50:10 +09:00","2022-09-29",1]
["DEV",1000057,{"$f":"INDEX(NO_참조테이블!$F:$F,MATCH(B71,NO_참조테이블!$E:$E,0))","v":"바이올렛 페어리 미니백"},"손",{"$f":"INDEX('NO_Table Parameter'!$G$3:$G$1048576,MATCH(EquipItem!D71,'NO_Table Parameter'!$H$3:$H$1048576,0))","v":9},"손 (오)",{"$f":"INDEX('NO_Table Parameter'!$J:$J,MATCH(EquipItem!F71,'NO_Table Parameter'!$K:$K,0))","v":26},"hand_r_1050","남녀 공용",{"$f":"INDEX('NO_Table Parameter'!S:S,MATCH(EquipItem!I71,'NO_Table Parameter'!T:T,0))","v":1},0,0,null,0,null,0,null,null,"심플",{"$f":"INDEX('NO_Table Parameter'!$P:$P,MATCH(S71,'NO_Table Parameter'!$Q:$Q,0))","v":2},"발랄",{"$f":"INDEX('NO_Table Parameter'!$P:$P,MATCH(U71,'NO_Table Parameter'!$Q:$Q,0))","v":7},"심플",{"$f":"INDEX('NO_Table Parameter'!$P:$P,MATCH(W71,'NO_Table Parameter'!$Q:$Q,0))","v":2},"청순",{"$f":"INDEX('NO_Table Parameter'!$P:$P,MATCH(Y71,'NO_Table Parameter'!$Q:$Q,0))","v":8},"발랄",{"$f":"INDEX('NO_Table Parameter'!$P:$P,MATCH(AA71,'NO_Table Parameter'!$Q:$Q,0))","v":7},"시원",{"$f":"INDEX('NO_Table Parameter'!$P:$P,MATCH(AC71,'NO_Table Parameter'!$Q:$Q,0))","v":4},"따뜻",{"$f":"INDEX('NO_Table Parameter'!$P:$P,MATCH(AE71,'NO_Table Parameter'!$Q:$Q,0))","v":5},null,0,0,1,"change_accessories02",{"$f":"INDEX(NO_참조테이블!H:H,MATCH(EquipItem!AK71,NO_참조테이블!I:I,0))","v":103},null,null,"2023-03-02T05:50:10 +09:00","2022-09-29",1]
["DEV",1000058,{"$f":"INDEX(NO_참조테이블!$F:$F,MATCH(B72,NO_참조테이블!$E:$E,0))","v":"바이올렛 페어리 이어링"},"귀",{"$f":"INDEX('NO_Table Parameter'!$G$3:$G$1048576,MATCH(EquipItem!D72,'NO_Table Parameter'!$H$3:$H$1048576,0))","v":4},"귀걸이",{"$f":"INDEX('NO_Table Parameter'!$J:$J,MATCH(EquipItem!F72,'NO_Table Parameter'!$K:$K,0))","v":14},"earings_1051","남녀 공용",{"$f":"INDEX('NO_Table Parameter'!S:S,MATCH(EquipItem!I72,'NO_Table Parameter'!T:T,0))","v":1},0,0,null,0,null,0,null,null,"심플",{"$f":"INDEX('NO_Table Parameter'!$P:$P,MATCH(S72,'NO_Table Parameter'!$Q:$Q,0))","v":2},"발랄",{"$f":"INDEX('NO_Table Parameter'!$P:$P,MATCH(U72,'NO_Table Parameter'!$Q:$Q,0))","v":7},"심플",{"$f":"INDEX('NO_Table Parameter'!$P:$P,MATCH(W72,'NO_Table Parameter'!$Q:$Q,0))","v":2},"청순",{"$f":"INDEX('NO_Table Parameter'!$P:$P,MATCH(Y72,'NO_Table Parameter'!$Q:$Q,0))","v":8},"발랄",{"$f":"INDEX('NO_Table Parameter'!$P:$P,MATCH(AA72,'NO_Table Parameter'!$Q:$Q,0))","v":7},"시원",{"$f":"INDEX('NO_Table Parameter'!$P:$P,MATCH(AC72,'NO_Table Parameter'!$Q:$Q,0))","v":4},"따뜻",{"$f":"INDEX('NO_Table Parameter'!$P:$P,MATCH(AE72,'NO_Table Parameter'!$Q:$Q,0))","v":5},null,0,0,1,"change_eye01",{"$f":"INDEX(NO_참조테이블!H:H,MATCH(EquipItem!AK72,NO_참조테이블!I:I,0))","v":52},null,null,"2023-03-02T05:50:10 +09:00","2022-09-29",1]
["DEV",1000059,{"$f":"INDEX(NO_참조테이블!$F:$F,MATCH(B73,NO_참조테이블!$E:$E,0))","v":"바이올렛 페어리 리본"},"등",{"$f":"INDEX('NO_Table Parameter'!$G$3:$G$1048576,MATCH(EquipItem!D73,'NO_Table Parameter'!$H$3:$H$1048576,0))","v":7},"꼬리",{"$f":"INDEX('NO_Table Parameter'!$J:$J,MATCH(EquipItem!F73,'NO_Table Parameter'!$K:$K,0))","v":18},"tail_1052","남녀 공용",{"$f":"INDEX('NO_Table Parameter'!S:S,MATCH(EquipItem!I73,'NO_Table Parameter'!T:T,0))","v":1},0,0,null,0,null,0,null,null,"심플",{"$f":"INDEX('NO_Table Parameter'!$P:$P,MATCH(S73,'NO_Table Parameter'!$Q:$Q,0))","v":2},"발랄",{"$f":"INDEX('NO_Table Parameter'!$P:$P,MATCH(U73,'NO_Table Parameter'!$Q:$Q,0))","v":7},"심플",{"$f":"INDEX('NO_Table Parameter'!$P:$P,MATCH(W73,'NO_Table Parameter'!$Q:$Q,0))","v":2},"청순",{"$f":"INDEX('NO_Table Parameter'!$P:$P,MATCH(Y73,'NO_Table Parameter'!$Q:$Q,0))","v":8},"발랄",{"$f":"INDEX('NO_Table Parameter'!$P:$P,MATCH(AA73,'NO_Table Parameter'!$Q:$Q,0))","v":7},"시원",{"$f":"INDEX('NO_Table Parameter'!$P:$P,MATCH(AC73,'NO_Table Parameter'!$Q:$Q,0))","v":4},"따뜻",{"$f":"INDEX('NO_Table Parameter'!$P:$P,MATCH(AE73,'NO_Table Parameter'!$Q:$Q,0))","v":5},null,0,0,1,"change_cloth01",{"$f":"INDEX(NO_참조테이블!H:H,MATCH(EquipItem!AK73,NO_참조테이블!I:I,0))","v":50},null,null,"2023-03-02T05:50:10 +09:00","2022-09-29",1]
["DEV",1000060,{"$f":"INDEX(NO_참조테이블!$F:$F,MATCH(B74,NO_참조테이블!$E:$E,0))","v":"바이올렛 페어리 네이비 슈즈"},"발",{"$f":"INDEX('NO_Table Parameter'!$G$3:$G$1048576,MATCH(EquipItem!D74,'NO_Table Parameter'!$H$3:$H$1048576,0))","v":10},"신발",{"$f":"INDEX('NO_Table Parameter'!$J:$J,MATCH(EquipItem!F74,'NO_Table Parameter'!$K:$K,0))","v":28},"shoes_184","남녀 공용",{"$f":"INDEX('NO_Table Parameter'!S:S,MATCH(EquipItem!I74,'NO_Table Parameter'!T:T,0))","v":1},0,0,null,0,null,0,null,null,"심플",{"$f":"INDEX('NO_Table Parameter'!$P:$P,MATCH(S74,'NO_Table Parameter'!$Q:$Q,0))","v":2},"발랄",{"$f":"INDEX('NO_Table Parameter'!$P:$P,MATCH(U74,'NO_Table Parameter'!$Q:$Q,0))","v":7},"심플",{"$f":"INDEX('NO_Table Parameter'!$P:$P,MATCH(W74,'NO_Table Parameter'!$Q:$Q,0))","v":2},"청순",{"$f":"INDEX('NO_Table Parameter'!$P:$P,MATCH(Y74,'NO_Table Parameter'!$Q:$Q,0))","v":8},"발랄",{"$f":"INDEX('NO_Table Parameter'!$P:$P,MATCH(AA74,'NO_Table Parameter'!$Q:$Q,0))","v":7},"시원",{"$f":"INDEX('NO_Table Parameter'!$P:$P,MATCH(AC74,'NO_Table Parameter'!$Q:$Q,0))","v":4},"따뜻",{"$f":"INDEX('NO_Table Parameter'!$P:$P,MATCH(AE74,'NO_Table Parameter'!$Q:$Q,0))","v":5},null,0,0,1,"change_shoes01",{"$f":"INDEX(NO_참조테이블!H:H,MATCH(EquipItem!AK74,NO_참조테이블!I:I,0))","v":54},null,null,"2023-03-02T05:50:10 +09:00","2022-09-29",1]
["DEV",1000061,{"$f":"INDEX(NO_참조테이블!$F:$F,MATCH(B75,NO_참조테이블!$E:$E,0))","v":"바이올렛 메이크업 얼굴"},"얼굴",{"$f":"INDEX('NO_Table Parameter'!$G$3:$G$1048576,MATCH(EquipItem!D75,'NO_Table Parameter'!$H$3:$H$1048576,0))","v":2},"화장",{"$f":"INDEX('NO_Table Parameter'!$J:$J,MATCH(EquipItem!F75,'NO_Table Parameter'!$K:$K,0))","v":6},"makeup_1064","남녀 공용",{"$f":"INDEX('NO_Table Parameter'!S:S,MATCH(EquipItem!I75,'NO_Table Parameter'!T:T,0))","v":1},0,0,null,0,null,0,null,null,"심플",{"$f":"INDEX('NO_Table Parameter'!$P:$P,MATCH(S75,'NO_Table Parameter'!$Q:$Q,0))","v":2},"발랄",{"$f":"INDEX('NO_Table Parameter'!$P:$P,MATCH(U75,'NO_Table Parameter'!$Q:$Q,0))","v":7},"심플",{"$f":"INDEX('NO_Table Parameter'!$P:$P,MATCH(W75,'NO_Table Parameter'!$Q:$Q,0))","v":2},"청순",{"$f":"INDEX('NO_Table Parameter'!$P:$P,MATCH(Y75,'NO_Table Parameter'!$Q:$Q,0))","v":8},"발랄",{"$f":"INDEX('NO_Table Parameter'!$P:$P,MATCH(AA75,'NO_Table Parameter'!$Q:$Q,0))","v":7},"시원",{"$f":"INDEX('NO_Table Parameter'!$P:$P,MATCH(AC75,'NO_Table Parameter'!$Q:$Q,0))","v":4},"따뜻",{"$f":"INDEX('NO_Table Parameter'!$P:$P,MATCH(AE75,'NO_Table Parameter'!$Q:$Q,0))","v":5},null,0,0,1,"change_eye01",{"$f":"INDEX(NO_참조테이블!H:H,MATCH(EquipItem!AK75,NO_참조테이블!I:I,0))","v":52},null,null,"2023-03-02T05:50:10 +09:00","2022-09-29",1]
["DEV",1000062,{"$f":"INDEX(NO_참조테이블!$F:$F,MATCH(B76,NO_참조테이블!$E:$E,0))","v":"핑크 페어리 리본"},"등",{"$f":"INDEX('NO_Table Parameter'!$G$3:$G$1048576,MATCH(EquipItem!D76,'NO_Table Parameter'!$H$3:$H$1048576,0))","v":7},"꼬리",{"$f":"INDEX('NO_Table Parameter'!$J:$J,MATCH(EquipItem!F76,'NO_Table Parameter'!$K:$K,0))","v":18},"tail_1065","남녀 공용",{"$f":"INDEX('NO_Table Parameter'!S:S,MATCH(EquipItem!I76,'NO_Table Parameter'!T:T,0))","v":1},0,0,null,0,null,0,null,null,"심플",{"$f":"INDEX('NO_Table Parameter'!$P:$P,MATCH(S76,'NO_Table Parameter'!$Q:$Q,0))","v":2},"발랄",{"$f":"INDEX('NO_Table Parameter'!$P:$P,MATCH(U76,'NO_Table Parameter'!$Q:$Q,0))","v":7},"심플",{"$f":"INDEX('NO_Table Parameter'!$P:$P,MATCH(W76,'NO_Table Parameter'!$Q:$Q,0))","v":2},"청순",{"$f":"INDEX('NO_Table Parameter'!$P:$P,MATCH(Y76,'NO_Table Parameter'!$Q:$Q,0))","v":8},"발랄",{"$f":"INDEX('NO_Table Parameter'!$P:$P,MATCH(AA76,'NO_Table Parameter'!$Q:$Q,0))","v":7},"시원",{"$f":"INDEX('NO_Table Parameter'!$P:$P,MATCH(AC76,'NO_Table Parameter'!$Q:$Q,0))","v":4},"따뜻",{"$f":"INDEX('NO_Table Parameter'!$P:$P,MATCH(AE76,'NO_Table Parameter'!$Q:$Q,0))","v":5},null,0,0,1,"change_cloth01",{"$f":"INDEX(NO_참조테이블!H:H,MATCH(EquipItem!AK76,NO_참조테이블!I:I,0))","v":50},null,null,"2023-03-02T05:50:10 +09:00","2022-09-29",1]
["DEV",1000063,{"$f":"INDEX(NO_참조테이블!$F:$F,MATCH(B77,NO_참조테이블!$E:$E,0))","v":"봄바람 양갈래 땋은머리"},"머리",{"$f":"INDEX('NO_Table Parameter'!$G$3:$G$1048576,MATCH(EquipItem!D77,'NO_Table Parameter'!$H$3:$H$1048576,0))","v":1},"헤어",{"$f":"INDEX('NO_Table Parameter'!$J:$J,MATCH(EquipItem!F77,'NO_Table Parameter'!$K:$K,0))","v":1},"hair_1086","남녀 공용",{"$f":"INDEX('NO_Table Parameter'!S:S,MATCH(EquipItem!I77,'NO_Table Parameter'!T:T,0))","v":1},1,1,157,1,173,0,null,1,"심플",{"$f":"INDEX('NO_Table Parameter'!$P:$P,MATCH(S77,'NO_Table Parameter'!$Q:$Q,0))","v":2},"발랄",{"$f":"INDEX('NO_Table Parameter'!$P:$P,MATCH(U77,'NO_Table Parameter'!$Q:$Q,0))","v":7},"심플",{"$f":"INDEX('NO_Table Parameter'!$P:$P,MATCH(W77,'NO_Table Parameter'!$Q:$Q,0))","v":2},"청순",{"$f":"INDEX('NO_Table Parameter'!$P:$P,MATCH(Y77,'NO_Table Parameter'!$Q:$Q,0))","v":8},"발랄",{"$f":"INDEX('NO_Table Parameter'!$P:$P,MATCH(AA77,'NO_Table Parameter'!$Q:$Q,0))","v":7},"시원",{"$f":"INDEX('NO_Table Parameter'!$P:$P,MATCH(AC77,'NO_Table Parameter'!$Q:$Q,0))","v":4},"따뜻",{"$f":"INDEX('NO_Table Parameter'!$P:$P,MATCH(AE77,'NO_Table Parameter'!$Q:$Q,0))","v":5},null,0,0,1,"change_hair01",{"$f":"INDEX(NO_참조테이블!H:H,MATCH(EquipItem!AK77,NO_참조테이블!I:I,0))","v":51},null,null,"2023-03-02T05:50:10 +09:00","2022-09-29",1]
["DEV",1000064,{"$f":"INDEX(NO_참조테이블!$F:$F,MATCH(B78,NO_참조테이블!$E:$E,0))","v":"봄바람 니트 가디건 원피스"},"몸",{"$f":"INDEX('NO_Table Parameter'!$G$3:$G$1048576,MATCH(EquipItem!D78,'NO_Table Parameter'!$H$3:$H$1048576,0))","v":6},"상의",{"$f":"INDEX('NO_Table Parameter'!$J:$J,MATCH(EquipItem!F78,'NO_Table Parameter'!$K:$K,0))","v":15},"top_201","남녀 공용",{"$f":"INDEX('NO_Table Parameter'!S:S,MATCH(EquipItem!I78,'NO_Table Parameter'!T:T,0))","v":1},1,1,173,1,171,0,null,1,"심플",{"$f":"INDEX('NO_Table Parameter'!$P:$P,MATCH(S78,'NO_Table Parameter'!$Q:$Q,0))","v":2},"발랄",{"$f":"INDEX('NO_Table Parameter'!$P:$P,MATCH(U78,'NO_Table Parameter'!$Q:$Q,0))","v":7},"심플",{"$f":"INDEX('NO_Table Parameter'!$P:$P,MATCH(W78,'NO_Table Parameter'!$Q:$Q,0))","v":2},"청순",{"$f":"INDEX('NO_Table Parameter'!$P:$P,MATCH(Y78,'NO_Table Parameter'!$Q:$Q,0))","v":8},"발랄",{"$f":"INDEX('NO_Table Parameter'!$P:$P,MATCH(AA78,'NO_Table Parameter'!$Q:$Q,0))","v":7},"시원",{"$f":"INDEX('NO_Table Parameter'!$P:$P,MATCH(AC78,'NO_Table Parameter'!$Q:$Q,0))","v":4},"따뜻",{"$f":"INDEX('NO_Table Parameter'!$P:$P,MATCH(AE78,'NO_Table Parameter'!$Q:$Q,0))","v":5},null,0,0,1,"change_cloth02",{"$f":"INDEX(NO_참조테이블!H:H,MATCH(EquipItem!AK78,NO_참조테이블!I:I,0))","v":102},null,null,"2023-03-02T05:50:10 +09:00","2022-09-29",1]
["DEV",1000065,{"$f":"INDEX(NO_참조테이블!$F:$F,MATCH(B79,NO_참조테이블!$E:$E,0))","v":"봄바람 메리제인 슈즈"},"발",{"$f":"INDEX('NO_Table Parameter'!$G$3:$G$1048576,MATCH(EquipItem!D79,'NO_Table Parameter'!$H$3:$H$1048576,0))","v":10},"신발",{"$f":"INDEX('NO_Table Parameter'!$J:$J,MATCH(EquipItem!F79,'NO_Table Parameter'!$K:$K,0))","v":28},"shoes_202","남녀 공용",{"$f":"INDEX('NO_Table Parameter'!S:S,MATCH(EquipItem!I79,'NO_Table Parameter'!T:T,0))","v":1},0,0,null,0,null,0,null,null,"심플",{"$f":"INDEX('NO_Table Parameter'!$P:$P,MATCH(S79,'NO_Table Parameter'!$Q:$Q,0))","v":2},"발랄",{"$f":"INDEX('NO_Table Parameter'!$P:$P,MATCH(U79,'NO_Table Parameter'!$Q:$Q,0))","v":7},"심플",{"$f":"INDEX('NO_Table Parameter'!$P:$P,MATCH(W79,'NO_Table Parameter'!$Q:$Q,0))","v":2},"청순",{"$f":"INDEX('NO_Table Parameter'!$P:$P,MATCH(Y79,'NO_Table Parameter'!$Q:$Q,0))","v":8},"발랄",{"$f":"INDEX('NO_Table Parameter'!$P:$P,MATCH(AA79,'NO_Table Parameter'!$Q:$Q,0))","v":7},"시원",{"$f":"INDEX('NO_Table Parameter'!$P:$P,MATCH(AC79,'NO_Table Parameter'!$Q:$Q,0))","v":4},"따뜻",{"$f":"INDEX('NO_Table Parameter'!$P:$P,MATCH(AE79,'NO_Table Parameter'!$Q:$Q,0))","v":5},null,0,0,1,"change_shoes01",{"$f":"INDEX(NO_참조테이블!H:H,MATCH(EquipItem!AK79,NO_참조테이블!I:I,0))","v":54},null,null,"2023-03-02T05:50:10 +09:00","2022-09-29",1]
["DEV",1000066,{"$f":"INDEX(NO_참조테이블!$F:$F,MATCH(B80,NO_참조테이블!$E:$E,0))","v":"봄바람 동글 화이트 크로스백"},"어깨",{"$f":"INDEX('NO_Table Parameter'!$G$3:$G$1048576,MATCH(EquipItem!D80,'NO_Table Parameter'!$H$3:$H$1048576,0))","v":8},"어깨 (왼)",{"$f":"INDEX('NO_Table Parameter'!$J:$J,MATCH(EquipItem!F80,'NO_Table Parameter'!$K:$K,0))","v":23},"shoulder_l_1087","남녀 공용",{"$f":"INDEX('NO_Table Parameter'!S:S,MATCH(EquipItem!I80,'NO_Table Parameter'!T:T,0))","v":1},0,0,null,0,null,0,null,null,"시원",{"$f":"INDEX('NO_Table Parameter'!$P:$P,MATCH(S80,'NO_Table Parameter'!$Q:$Q,0))","v":4},"우아",{"$f":"INDEX('NO_Table Parameter'!$P:$P,MATCH(U80,'NO_Table Parameter'!$Q:$Q,0))","v":10},"발랄",{"$f":"INDEX('NO_Table Parameter'!$P:$P,MATCH(W80,'NO_Table Parameter'!$Q:$Q,0))","v":7},"청순",{"$f":"INDEX('NO_Table Parameter'!$P:$P,MATCH(Y80,'NO_Table Parameter'!$Q:$Q,0))","v":8},"화려",{"$f":"INDEX('NO_Table Parameter'!$P:$P,MATCH(AA80,'NO_Table Parameter'!$Q:$Q,0))","v":9},"시원",{"$f":"INDEX('NO_Table Parameter'!$P:$P,MATCH(AC80,'NO_Table Parameter'!$Q:$Q,0))","v":4},"따뜻",{"$f":"INDEX('NO_Table Parameter'!$P:$P,MATCH(AE80,'NO_Table Parameter'!$Q:$Q,0))","v":5},null,0,0,1,"change_accessories01",{"$f":"INDEX(NO_참조테이블!H:H,MATCH(EquipItem!AK80,NO_참조테이블!I:I,0))","v":53},null,null,"2023-03-02T05:50:10 +09:03","2022-10-02",1]
["DEV",1000067,{"$f":"INDEX(NO_참조테이블!$F:$F,MATCH(B81,NO_참조테이블!$E:$E,0))","v":"봄바람 가르마 헤어"},"머리",{"$f":"INDEX('NO_Table Parameter'!$G$3:$G$1048576,MATCH(EquipItem!D81,'NO_Table Parameter'!$H$3:$H$1048576,0))","v":1},"헤어",{"$f":"INDEX('NO_Table Parameter'!$J:$J,MATCH(EquipItem!F81,'NO_Table Parameter'!$K:$K,0))","v":1},"hair_1088","남녀 공용",{"$f":"INDEX('NO_Table Parameter'!S:S,MATCH(EquipItem!I81,'NO_Table Parameter'!T:T,0))","v":1},1,1,157,0,null,0,null,null,"심플",{"$f":"INDEX('NO_Table Parameter'!$P:$P,MATCH(S81,'NO_Table Parameter'!$Q:$Q,0))","v":2},"발랄",{"$f":"INDEX('NO_Table Parameter'!$P:$P,MATCH(U81,'NO_Table Parameter'!$Q:$Q,0))","v":7},"심플",{"$f":"INDEX('NO_Table Parameter'!$P:$P,MATCH(W81,'NO_Table Parameter'!$Q:$Q,0))","v":2},"청순",{"$f":"INDEX('NO_Table Parameter'!$P:$P,MATCH(Y81,'NO_Table Parameter'!$Q:$Q,0))","v":8},"발랄",{"$f":"INDEX('NO_Table Parameter'!$P:$P,MATCH(AA81,'NO_Table Parameter'!$Q:$Q,0))","v":7},"시원",{"$f":"INDEX('NO_Table Parameter'!$P:$P,MATCH(AC81,'NO_Table Parameter'!$Q:$Q,0))","v":4},"따뜻",{"$f":"INDEX('NO_Table Parameter'!$P:$P,MATCH(AE81,'NO_Table Parameter'!$Q:$Q,0))","v":5},null,0,0,1,"change_hair01",{"$f":"INDEX(NO_참조테이블!H:H,MATCH(EquipItem!AK81,NO_참조테이블!I:I,0))","v":51},null,null,"2023-03-02T05:50:10 +09:00","2022-09-29",1]
["DEV",1000068,{"$f":"INDEX(NO_참조테이블!$F:$F,MATCH(B82,NO_참조테이블!$E:$E,0))","v":"봄바람 니트 가디건"},"몸",{"$f":"INDEX('NO_Table Parameter'!$G$3:$G$1048576,MATCH(EquipItem!D82,'NO_Table Parameter'!$H$3:$H$1048576,0))","v":6},"상의",{"$f":"INDEX('NO_Table Parameter'!$J:$J,MATCH(EquipItem!F82,'NO_Table Parameter'!$K:$K,0))","v":15},"top_203","남녀 공용",{"$f":"INDEX('NO_Table Parameter'!S:S,MATCH(EquipItem!I82,'NO_Table Parameter'!T:T,0))","v":1},1,1,174,1,171,0,null,"1|2","심플",{"$f":"INDEX('NO_Table Parameter'!$P:$P,MATCH(S82,'NO_Table Parameter'!$Q:$Q,0))","v":2},"발랄",{"$f":"INDEX('NO_Table Parameter'!$P:$P,MATCH(U82,'NO_Table Parameter'!$Q:$Q,0))","v":7},"심플",{"$f":"INDEX('NO_Table Parameter'!$P:$P,MATCH(W82,'NO_Table Parameter'!$Q:$Q,0))","v":2},"청순",{"$f":"INDEX('NO_Table Parameter'!$P:$P,MATCH(Y82,'NO_Table Parameter'!$Q:$Q,0))","v":8},"발랄",{"$f":"INDEX('NO_Table Parameter'!$P:$P,MATCH(AA82,'NO_Table Parameter'!$Q:$Q,0))","v":7},"시원",{"$f":"INDEX('NO_Table Parameter'!$P:$P,MATCH(AC82,'NO_Table Parameter'!$Q:$Q,0))","v":4},"따뜻",{"$f":"INDEX('NO_Table Parameter'!$P:$P,MATCH(AE82,'NO_Table Parameter'!$Q:$Q,0))","v":5},null,0,0,1,"change_cloth02",{"$f":"INDEX(NO_참조테이블!H:H,MATCH(EquipItem!AK82,NO_참조테이블!I:I,0))","v":102},null,null,"2023-03-02T05:50:10 +09:00","2022-09-29",1]
["DEV",1000069,{"$f":"INDEX(NO_참조테이블!$F:$F,MATCH(B83,NO_참조테이블!$E:$E,0))","v":"봄바람 체크 반바지"},"몸",{"$f":"INDEX('NO_Table Parameter'!$G$3:$G$1048576,MATCH(EquipItem!D83,'NO_Table Parameter'!$H$3:$H$1048576,0))","v":6},"하의",{"$f":"INDEX('NO_Table Parameter'!$J:$J,MATCH(EquipItem!F83,'NO_Table Parameter'!$K:$K,0))","v":16},"bottom_204","남녀 공용",{"$f":"INDEX('NO_Table Parameter'!S:S,MATCH(EquipItem!I83,'NO_Table Parameter'!T:T,0))","v":1},1,1,173,0,null,0,null,null,"심플",{"$f":"INDEX('NO_Table Parameter'!$P:$P,MATCH(S83,'NO_Table Parameter'!$Q:$Q,0))","v":2},"발랄",{"$f":"INDEX('NO_Table Parameter'!$P:$P,MATCH(U83,'NO_Table Parameter'!$Q:$Q,0))","v":7},"심플",{"$f":"INDEX('NO_Table Parameter'!$P:$P,MATCH(W83,'NO_Table Parameter'!$Q:$Q,0))","v":2},"청순",{"$f":"INDEX('NO_Table Parameter'!$P:$P,MATCH(Y83,'NO_Table Parameter'!$Q:$Q,0))","v":8},"발랄",{"$f":"INDEX('NO_Table Parameter'!$P:$P,MATCH(AA83,'NO_Table Parameter'!$Q:$Q,0))","v":7},"시원",{"$f":"INDEX('NO_Table Parameter'!$P:$P,MATCH(AC83,'NO_Table Parameter'!$Q:$Q,0))","v":4},"따뜻",{"$f":"INDEX('NO_Table Parameter'!$P:$P,MATCH(AE83,'NO_Table Parameter'!$Q:$Q,0))","v":5},null,0,0,1,"change_cloth02",{"$f":"INDEX(NO_참조테이블!H:H,MATCH(EquipItem!AK83,NO_참조테이블!I:I,0))","v":102},null,null,"2023-03-02T05:50:10 +09:00","2022-09-29",1]
["DEV",1000070,{"$f":"INDEX(NO_참조테이블!$F:$F,MATCH(B84,NO_참조테이블!$E:$E,0))","v":"봄바람 가죽 로퍼"},"발",{"$f":"INDEX('NO_Table Parameter'!$G$3:$G$1048576,MATCH(EquipItem!D84,'NO_Table Parameter'!$H$3:$H$1048576,0))","v":10},"신발",{"$f":"INDEX('NO_Table Parameter'!$J:$J,MATCH(EquipItem!F84,'NO_Table Parameter'!$K:$K,0))","v":28},"shoes_205","남녀 공용",{"$f":"INDEX('NO_Table Parameter'!S:S,MATCH(EquipItem!I84,'NO_Table Parameter'!T:T,0))","v":1},0,0,null,0,null,0,null,null,"심플",{"$f":"INDEX('NO_Table Parameter'!$P:$P,MATCH(S84,'NO_Table Parameter'!$Q:$Q,0))","v":2},"발랄",{"$f":"INDEX('NO_Table Parameter'!$P:$P,MATCH(U84,'NO_Table Parameter'!$Q:$Q,0))","v":7},"심플",{"$f":"INDEX('NO_Table Parameter'!$P:$P,MATCH(W84,'NO_Table Parameter'!$Q:$Q,0))","v":2},"청순",{"$f":"INDEX('NO_Table Parameter'!$P:$P,MATCH(Y84,'NO_Table Parameter'!$Q:$Q,0))","v":8},"발랄",{"$f":"INDEX('NO_Table Parameter'!$P:$P,MATCH(AA84,'NO_Table Parameter'!$Q:$Q,0))","v":7},"시원",{"$f":"INDEX('NO_Table Parameter'!$P:$P,MATCH(AC84,'NO_Table Parameter'!$Q:$Q,0))","v":4},"따뜻",{"$f":"INDEX('NO_Table Parameter'!$P:$P,MATCH(AE84,'NO_Table Parameter'!$Q:$Q,0))","v":5},null,0,0,1,"change_shoes01",{"$f":"INDEX(NO_참조테이블!H:H,MATCH(EquipItem!AK84,NO_참조테이블!I:I,0))","v":54},null,null,"2023-03-02T05:50:10 +09:00","2022-09-29",1]
["DEV",1000071,{"$f":"INDEX(NO_참조테이블!$F:$F,MATCH(B85,NO_참조테이블!$E:$E,0))","v":"찰랑 여름 보브컷 헤어"},"머리",{"$f":"INDEX('NO_Table Parameter'!$G$3:$G$1048576,MATCH(EquipItem!D85,'NO_Table Parameter'!$H$3:$H$1048576,0))","v":1},"헤어",{"$f":"INDEX('NO_Table Parameter'!$J:$J,MATCH(EquipItem!F85,'NO_Table Parameter'!$K:$K,0))","v":1},"hair_1089","남녀 공용",{"$f":"INDEX('NO_Table Parameter'!S:S,MATCH(EquipItem!I85,'NO_Table Parameter'!T:T,0))","v":1},1,1,155,1,55,0,null,"1|2","심플",{"$f":"INDEX('NO_Table Parameter'!$P:$P,MATCH(S85,'NO_Table Parameter'!$Q:$Q,0))","v":2},"발랄",{"$f":"INDEX('NO_Table Parameter'!$P:$P,MATCH(U85,'NO_Table Parameter'!$Q:$Q,0))","v":7},"심플",{"$f":"INDEX('NO_Table Parameter'!$P:$P,MATCH(W85,'NO_Table Parameter'!$Q:$Q,0))","v":2},"청순",{"$f":"INDEX('NO_Table Parameter'!$P:$P,MATCH(Y85,'NO_Table Parameter'!$Q:$Q,0))","v":8},"발랄",{"$f":"INDEX('NO_Table Parameter'!$P:$P,MATCH(AA85,'NO_Table Parameter'!$Q:$Q,0))","v":7},"시원",{"$f":"INDEX('NO_Table Parameter'!$P:$P,MATCH(AC85,'NO_Table Parameter'!$Q:$Q,0))","v":4},"따뜻",{"$f":"INDEX('NO_Table Parameter'!$P:$P,MATCH(AE85,'NO_Table Parameter'!$Q:$Q,0))","v":5},null,0,0,1,"change_hair01",{"$f":"INDEX(NO_참조테이블!H:H,MATCH(EquipItem!AK85,NO_참조테이블!I:I,0))","v":51},null,null,"2023-03-02T05:50:10 +09:00","2022-09-29",1]
["DEV",1000072,{"$f":"INDEX(NO_참조테이블!$F:$F,MATCH(B86,NO_참조테이블!$E:$E,0))","v":"찰랑 여름 프릴 나시"},"몸",{"$f":"INDEX('NO_Table Parameter'!$G$3:$G$1048576,MATCH(EquipItem!D86,'NO_Table Parameter'!$H$3:$H$1048576,0))","v":6},"상의",{"$f":"INDEX('NO_Table Parameter'!$J:$J,MATCH(EquipItem!F86,'NO_Table Parameter'!$K:$K,0))","v":15},"top_206","남녀 공용",{"$f":"INDEX('NO_Table Parameter'!S:S,MATCH(EquipItem!I86,'NO_Table Parameter'!T:T,0))","v":1},1,1,51,0,null,0,null,null,"심플",{"$f":"INDEX('NO_Table Parameter'!$P:$P,MATCH(S86,'NO_Table Parameter'!$Q:$Q,0))","v":2},"발랄",{"$f":"INDEX('NO_Table Parameter'!$P:$P,MATCH(U86,'NO_Table Parameter'!$Q:$Q,0))","v":7},"심플",{"$f":"INDEX('NO_Table Parameter'!$P:$P,MATCH(W86,'NO_Table Parameter'!$Q:$Q,0))","v":2},"청순",{"$f":"INDEX('NO_Table Parameter'!$P:$P,MATCH(Y86,'NO_Table Parameter'!$Q:$Q,0))","v":8},"발랄",{"$f":"INDEX('NO_Table Parameter'!$P:$P,MATCH(AA86,'NO_Table Parameter'!$Q:$Q,0))","v":7},"시원",{"$f":"INDEX('NO_Table Parameter'!$P:$P,MATCH(AC86,'NO_Table Parameter'!$Q:$Q,0))","v":4},"따뜻",{"$f":"INDEX('NO_Table Parameter'!$P:$P,MATCH(AE86,'NO_Table Parameter'!$Q:$Q,0))","v":5},null,0,0,1,"change_cloth02",{"$f":"INDEX(NO_참조테이블!H:H,MATCH(EquipItem!AK86,NO_참조테이블!I:I,0))","v":102},null,null,"2023-03-02T05:50:10 +09:00","2022-09-29",1]
["DEV",1000073,{"$f":"INDEX(NO_참조테이블!$F:$F,MATCH(B87,NO_참조테이블!$E:$E,0))","v":"찰랑 여름 밴딩 숏팬츠"},"몸",{"$f":"INDEX('NO_Table Parameter'!$G$3:$G$1048576,MATCH(EquipItem!D87,'NO_Table Parameter'!$H$3:$H$1048576,0))","v":6},"하의",{"$f":"INDEX('NO_Table Parameter'!$J:$J,MATCH(EquipItem!F87,'NO_Table Parameter'!$K:$K,0))","v":16},"bottom_207","남녀 공용",{"$f":"INDEX('NO_Table Parameter'!S:S,MATCH(EquipItem!I87,'NO_Table Parameter'!T:T,0))","v":1},1,1,175,0,null,0,null,null,"심플",{"$f":"INDEX('NO_Table Parameter'!$P:$P,MATCH(S87,'NO_Table Parameter'!$Q:$Q,0))","v":2},"발랄",{"$f":"INDEX('NO_Table Parameter'!$P:$P,MATCH(U87,'NO_Table Parameter'!$Q:$Q,0))","v":7},"심플",{"$f":"INDEX('NO_Table Parameter'!$P:$P,MATCH(W87,'NO_Table Parameter'!$Q:$Q,0))","v":2},"청순",{"$f":"INDEX('NO_Table Parameter'!$P:$P,MATCH(Y87,'NO_Table Parameter'!$Q:$Q,0))","v":8},"발랄",{"$f":"INDEX('NO_Table Parameter'!$P:$P,MATCH(AA87,'NO_Table Parameter'!$Q:$Q,0))","v":7},"시원",{"$f":"INDEX('NO_Table Parameter'!$P:$P,MATCH(AC87,'NO_Table Parameter'!$Q:$Q,0))","v":4},"따뜻",{"$f":"INDEX('NO_Table Parameter'!$P:$P,MATCH(AE87,'NO_Table Parameter'!$Q:$Q,0))","v":5},null,0,0,1,"change_cloth02",{"$f":"INDEX(NO_참조테이블!H:H,MATCH(EquipItem!AK87,NO_참조테이블!I:I,0))","v":102},null,null,"2023-03-02T05:50:10 +09:00","2022-09-29",1]
["DEV",1000074,{"$f":"INDEX(NO_참조테이블!$F:$F,MATCH(B88,NO_참조테이블!$E:$E,0))","v":"찰랑 여름 매듭 슬리퍼"},"발",{"$f":"INDEX('NO_Table Parameter'!$G$3:$G$1048576,MATCH(EquipItem!D88,'NO_Table Parameter'!$H$3:$H$1048576,0))","v":10},"신발",{"$f":"INDEX('NO_Table Parameter'!$J:$J,MATCH(EquipItem!F88,'NO_Table Parameter'!$K:$K,0))","v":28},"shoes_208","남녀 공용",{"$f":"INDEX('NO_Table Parameter'!S:S,MATCH(EquipItem!I88,'NO_Table Parameter'!T:T,0))","v":1},0,0,null,0,null,0,null,null,"심플",{"$f":"INDEX('NO_Table Parameter'!$P:$P,MATCH(S88,'NO_Table Parameter'!$Q:$Q,0))","v":2},"발랄",{"$f":"INDEX('NO_Table Parameter'!$P:$P,MATCH(U88,'NO_Table Parameter'!$Q:$Q,0))","v":7},"심플",{"$f":"INDEX('NO_Table Parameter'!$P:$P,MATCH(W88,'NO_Table Parameter'!$Q:$Q,0))","v":2},"청순",{"$f":"INDEX('NO_Table Parameter'!$P:$P,MATCH(Y88,'NO_Table Parameter'!$Q:$Q,0))","v":8},"발랄",{"$f":"INDEX('NO_Table Parameter'!$P:$P,MATCH(AA88,'NO_Table Parameter'!$Q:$Q,0))","v":7},"시원",{"$f":"INDEX('NO_Table Parameter'!$P:$P,MATCH(AC88,'NO_Table Parameter'!$Q:$Q,0))","v":4},"따뜻",{"$f":"INDEX('NO_Table Parameter'!$P:$P,MATCH(AE88,'NO_Table Parameter'!$Q:$Q,0))","v":5},null,0,0,1,"change_shoes01",{"$f":"INDEX(NO_참조테이블!H:H,MATCH(EquipItem!AK88,NO_참조테이블!I:I,0))","v":54},null,null,"2023-03-02T05:50:10 +09:00","2022-09-29",1]
["DEV",1000075,{"$f":"INDEX(NO_참조테이블!$F:$F,MATCH(B89,NO_참조테이블!$E:$E,0))","v":"찰랑 여름 리프펌 헤어"},"머리",{"$f":"INDEX('NO_Table Parameter'!$G$3:$G$1048576,MATCH(EquipItem!D89,'NO_Table Parameter'!$H$3:$H$1048576,0))","v":1},"헤어",{"$f":"INDEX('NO_Table Parameter'!$J:$J,MATCH(EquipItem!F89,'NO_Table Parameter'!$K:$K,0))","v":1},"hair_1090","남녀 공용",{"$f":"INDEX('NO_Table Parameter'!S:S,MATCH(EquipItem!I89,'NO_Table Parameter'!T:T,0))","v":1},1,1,155,0,null,0,null,null,"심플",{"$f":"INDEX('NO_Table Parameter'!$P:$P,MATCH(S89,'NO_Table Parameter'!$Q:$Q,0))","v":2},"발랄",{"$f":"INDEX('NO_Table Parameter'!$P:$P,MATCH(U89,'NO_Table Parameter'!$Q:$Q,0))","v":7},"심플",{"$f":"INDEX('NO_Table Parameter'!$P:$P,MATCH(W89,'NO_Table Parameter'!$Q:$Q,0))","v":2},"청순",{"$f":"INDEX('NO_Table Parameter'!$P:$P,MATCH(Y89,'NO_Table Parameter'!$Q:$Q,0))","v":8},"발랄",{"$f":"INDEX('NO_Table Parameter'!$P:$P,MATCH(AA89,'NO_Table Parameter'!$Q:$Q,0))","v":7},"시원",{"$f":"INDEX('NO_Table Parameter'!$P:$P,MATCH(AC89,'NO_Table Parameter'!$Q:$Q,0))","v":4},"따뜻",{"$f":"INDEX('NO_Table Parameter'!$P:$P,MATCH(AE89,'NO_Table Parameter'!$Q:$Q,0))","v":5},null,0,0,1,"change_hair01",{"$f":"INDEX(NO_참조테이블!H:H,MATCH(EquipItem!AK89,NO_참조테이블!I:I,0))","v":51},null,null,"2023-03-02T05:50:10 +09:00","2022-09-29",1]
["DEV",1000076,{"$f":"INDEX(NO_참조테이블!$F:$F,MATCH(B90,NO_참조테이블!$E:$E,0))","v":"찰랑 여름 면셔츠"},"몸",{"$f":"INDEX('NO_Table Parameter'!$G$3:$G$1048576,MATCH(EquipItem!D90,'NO_Table Parameter'!$H$3:$H$1048576,0))","v":6},"상의",{"$f":"INDEX('NO_Table Parameter'!$J:$J,MATCH(EquipItem!F90,'NO_Table Parameter'!$K:$K,0))","v":15},"top_209","남녀 공용",{"$f":"INDEX('NO_Table Parameter'!S:S,MATCH(EquipItem!I90,'NO_Table Parameter'!T:T,0))","v":1},1,1,50,1,175,0,null,"1|2","심플",{"$f":"INDEX('NO_Table Parameter'!$P:$P,MATCH(S90,'NO_Table Parameter'!$Q:$Q,0))","v":2},"발랄",{"$f":"INDEX('NO_Table Parameter'!$P:$P,MATCH(U90,'NO_Table Parameter'!$Q:$Q,0))","v":7},"심플",{"$f":"INDEX('NO_Table Parameter'!$P:$P,MATCH(W90,'NO_Table Parameter'!$Q:$Q,0))","v":2},"청순",{"$f":"INDEX('NO_Table Parameter'!$P:$P,MATCH(Y90,'NO_Table Parameter'!$Q:$Q,0))","v":8},"발랄",{"$f":"INDEX('NO_Table Parameter'!$P:$P,MATCH(AA90,'NO_Table Parameter'!$Q:$Q,0))","v":7},"시원",{"$f":"INDEX('NO_Table Parameter'!$P:$P,MATCH(AC90,'NO_Table Parameter'!$Q:$Q,0))","v":4},"따뜻",{"$f":"INDEX('NO_Table Parameter'!$P:$P,MATCH(AE90,'NO_Table Parameter'!$Q:$Q,0))","v":5},null,0,0,1,"change_cloth02",{"$f":"INDEX(NO_참조테이블!H:H,MATCH(EquipItem!AK90,NO_참조테이블!I:I,0))","v":102},null,null,"2023-03-02T05:50:10 +09:00","2022-09-29",1]
["DEV",1000077,{"$f":"INDEX(NO_참조테이블!$F:$F,MATCH(B91,NO_참조테이블!$E:$E,0))","v":"찰랑 여름 밴딩 하프팬츠"},"몸",{"$f":"INDEX('NO_Table Parameter'!$G$3:$G$1048576,MATCH(EquipItem!D91,'NO_Table Parameter'!$H$3:$H$1048576,0))","v":6},"하의",{"$f":"INDEX('NO_Table Parameter'!$J:$J,MATCH(EquipItem!F91,'NO_Table Parameter'!$K:$K,0))","v":16},"bottom_210","남녀 공용",{"$f":"INDEX('NO_Table Parameter'!S:S,MATCH(EquipItem!I91,'NO_Table Parameter'!T:T,0))","v":1},1,1,176,1,51,0,null,"1|2","심플",{"$f":"INDEX('NO_Table Parameter'!$P:$P,MATCH(S91,'NO_Table Parameter'!$Q:$Q,0))","v":2},"발랄",{"$f":"INDEX('NO_Table Parameter'!$P:$P,MATCH(U91,'NO_Table Parameter'!$Q:$Q,0))","v":7},"심플",{"$f":"INDEX('NO_Table Parameter'!$P:$P,MATCH(W91,'NO_Table Parameter'!$Q:$Q,0))","v":2},"청순",{"$f":"INDEX('NO_Table Parameter'!$P:$P,MATCH(Y91,'NO_Table Parameter'!$Q:$Q,0))","v":8},"발랄",{"$f":"INDEX('NO_Table Parameter'!$P:$P,MATCH(AA91,'NO_Table Parameter'!$Q:$Q,0))","v":7},"시원",{"$f":"INDEX('NO_Table Parameter'!$P:$P,MATCH(AC91,'NO_Table Parameter'!$Q:$Q,0))","v":4},"따뜻",{"$f":"INDEX('NO_Table Parameter'!$P:$P,MATCH(AE91,'NO_Table Parameter'!$Q:$Q,0))","v":5},null,0,0,1,"change_cloth02",{"$f":"INDEX(NO_참조테이블!H:H,MATCH(EquipItem!AK91,NO_참조테이블!I:I,0))","v":102},null,null,"2023-03-02T05:50:10 +09:00","2022-09-29",1]
["DEV",1000078,{"$f":"INDEX(NO_참조테이블!$F:$F,MATCH(B92,NO_참조테이블!$E:$E,0))","v":"찰랑 여름 스포츠백"},"손",{"$f":"INDEX('NO_Table Parameter'!$G$3:$G$1048576,MATCH(EquipItem!D92,'NO_Table Parameter'!$H$3:$H$1048576,0))","v":9},"손 (왼)",{"$f":"INDEX('NO_Table Parameter'!$J:$J,MATCH(EquipItem!F92,'NO_Table Parameter'!$K:$K,0))","v":25},"hand_l_1091","남녀 공용",{"$f":"INDEX('NO_Table Parameter'!S:S,MATCH(EquipItem!I92,'NO_Table Parameter'!T:T,0))","v":1},0,0,null,0,null,0,null,null,"격식",{"$f":"INDEX('NO_Table Parameter'!$P:$P,MATCH(S92,'NO_Table Parameter'!$Q:$Q,0))","v":1},"심플",{"$f":"INDEX('NO_Table Parameter'!$P:$P,MATCH(U92,'NO_Table Parameter'!$Q:$Q,0))","v":2},"심플",{"$f":"INDEX('NO_Table Parameter'!$P:$P,MATCH(W92,'NO_Table Parameter'!$Q:$Q,0))","v":2},"청순",{"$f":"INDEX('NO_Table Parameter'!$P:$P,MATCH(Y92,'NO_Table Parameter'!$Q:$Q,0))","v":8},"발랄",{"$f":"INDEX('NO_Table Parameter'!$P:$P,MATCH(AA92,'NO_Table Parameter'!$Q:$Q,0))","v":7},"시원",{"$f":"INDEX('NO_Table Parameter'!$P:$P,MATCH(AC92,'NO_Table Parameter'!$Q:$Q,0))","v":4},"따뜻",{"$f":"INDEX('NO_Table Parameter'!$P:$P,MATCH(AE92,'NO_Table Parameter'!$Q:$Q,0))","v":5},null,0,0,1,"change_accessories01",{"$f":"INDEX(NO_참조테이블!H:H,MATCH(EquipItem!AK92,NO_참조테이블!I:I,0))","v":53},null,null,"2023-03-02T05:50:10 +09:01","2022-09-30",1]
["DEV",1000079,{"$f":"INDEX(NO_참조테이블!$F:$F,MATCH(B93,NO_참조테이블!$E:$E,0))","v":"또렷한 얼굴"},"얼굴",{"$f":"INDEX('NO_Table Parameter'!$G$3:$G$1048576,MATCH(EquipItem!D93,'NO_Table Parameter'!$H$3:$H$1048576,0))","v":2},"화장",{"$f":"INDEX('NO_Table Parameter'!$J:$J,MATCH(EquipItem!F93,'NO_Table Parameter'!$K:$K,0))","v":6},"makeup_1103","남녀 공용",{"$f":"INDEX('NO_Table Parameter'!S:S,MATCH(EquipItem!I93,'NO_Table Parameter'!T:T,0))","v":1},0,0,null,0,null,0,null,null,"심플",{"$f":"INDEX('NO_Table Parameter'!$P:$P,MATCH(S93,'NO_Table Parameter'!$Q:$Q,0))","v":2},"발랄",{"$f":"INDEX('NO_Table Parameter'!$P:$P,MATCH(U93,'NO_Table Parameter'!$Q:$Q,0))","v":7},"심플",{"$f":"INDEX('NO_Table Parameter'!$P:$P,MATCH(W93,'NO_Table Parameter'!$Q:$Q,0))","v":2},"청순",{"$f":"INDEX('NO_Table Parameter'!$P:$P,MATCH(Y93,'NO_Table Parameter'!$Q:$Q,0))","v":8},"발랄",{"$f":"INDEX('NO_Table Parameter'!$P:$P,MATCH(AA93,'NO_Table Parameter'!$Q:$Q,0))","v":7},"시원",{"$f":"INDEX('NO_Table Parameter'!$P:$P,MATCH(AC93,'NO_Table Parameter'!$Q:$Q,0))","v":4},"따뜻",{"$f":"INDEX('NO_Table Parameter'!$P:$P,MATCH(AE93,'NO_Table Parameter'!$Q:$Q,0))","v":5},null,0,0,1,"change_eye01",{"$f":"INDEX(NO_참조테이블!H:H,MATCH(EquipItem!AK93,NO_참조테이블!I:I,0))","v":52},null,null,"2023-03-02T05:50:10 +09:00","2022-09-29",2]
["DEV",1000080,{"$f":"INDEX(NO_참조테이블!$F:$F,MATCH(B94,NO_참조테이블!$E:$E,0))","v":"자신만만한 얼굴"},"얼굴",{"$f":"INDEX('NO_Table Parameter'!$G$3:$G$1048576,MATCH(EquipItem!D94,'NO_Table Parameter'!$H$3:$H$1048576,0))","v":2},"화장",{"$f":"INDEX('NO_Table Parameter'!$J:$J,MATCH(EquipItem!F94,'NO_Table Parameter'!$K:$K,0))","v":6},"makeup_1104","남녀 공용",{"$f":"INDEX('NO_Table Parameter'!S:S,MATCH(EquipItem!I94,'NO_Table Parameter'!T:T,0))","v":1},0,0,null,0,null,0,null,null,"심플",{"$f":"INDEX('NO_Table Parameter'!$P:$P,MATCH(S94,'NO_Table Parameter'!$Q:$Q,0))","v":2},"발랄",{"$f":"INDEX('NO_Table Parameter'!$P:$P,MATCH(U94,'NO_Table Parameter'!$Q:$Q,0))","v":7},"심플",{"$f":"INDEX('NO_Table Parameter'!$P:$P,MATCH(W94,'NO_Table Parameter'!$Q:$Q,0))","v":2},"청순",{"$f":"INDEX('NO_Table Parameter'!$P:$P,MATCH(Y94,'NO_Table Parameter'!$Q:$Q,0))","v":8},"발랄",{"$f":"INDEX('NO_Table Parameter'!$P:$P,MATCH(AA94,'NO_Table Parameter'!$Q:$Q,0))","v":7},"시원",{"$f":"INDEX('NO_Table Parameter'!$P:$P,MATCH(AC94,'NO_Table Parameter'!$Q:$Q,0))","v":4},"따뜻",{"$f":"INDEX('NO_Table Parameter'!$P:$P,MATCH(AE94,'NO_Table Parameter'!$Q:$Q,0))","v":5},null,0,0,1,"change_eye01",{"$f":"INDEX(NO_참조테이블!H:H,MATCH(EquipItem!AK94,NO_참조테이블!I:I,0))","v":52},null,null,"2023-03-02T05:50:10 +09:00","2022-09-29",2]
["DEV",1000081,{"$f":"INDEX(NO_참조테이블!$F:$F,MATCH(B95,NO_참조테이블!$E:$E,0))","v":"부드러운 얼굴"},"얼굴",{"$f":"INDEX('NO_Table Parameter'!$G$3:$G$1048576,MATCH(EquipItem!D95,'NO_Table Parameter'!$H$3:$H$1048576,0))","v":2},"화장",{"$f":"INDEX('NO_Table Parameter'!$J:$J,MATCH(EquipItem!F95,'NO_Table Parameter'!$K:$K,0))","v":6},"makeup_1105","남녀 공용",{"$f":"INDEX('NO_Table Parameter'!S:S,MATCH(EquipItem!I95,'NO_Table Parameter'!T:T,0))","v":1},0,0,null,0,null,0,null,null,"심플",{"$f":"INDEX('NO_Table Parameter'!$P:$P,MATCH(S95,'NO_Table Parameter'!$Q:$Q,0))","v":2},"발랄",{"$f":"INDEX('NO_Table Parameter'!$P:$P,MATCH(U95,'NO_Table Parameter'!$Q:$Q,0))","v":7},"심플",{"$f":"INDEX('NO_Table Parameter'!$P:$P,MATCH(W95,'NO_Table Parameter'!$Q:$Q,0))","v":2},"청순",{"$f":"INDEX('NO_Table Parameter'!$P:$P,MATCH(Y95,'NO_Table Parameter'!$Q:$Q,0))","v":8},"발랄",{"$f":"INDEX('NO_Table Parameter'!$P:$P,MATCH(AA95,'NO_Table Parameter'!$Q:$Q,0))","v":7},"시원",{"$f":"INDEX('NO_Table Parameter'!$P:$P,MATCH(AC95,'NO_Table Parameter'!$Q:$Q,0))","v":4},"따뜻",{"$f":"INDEX('NO_Table Parameter'!$P:$P,MATCH(AE95,'NO_Table Parameter'!$Q:$Q,0))","v":5},null,0,0,1,"change_eye01",{"$f":"INDEX(NO_참조테이블!H:H,MATCH(EquipItem!AK95,NO_참조테이블!I:I,0))","v":52},null,null,"2023-03-02T05:50:10 +09:00","2022-09-29",2]
["DEV",1000082,{"$f":"INDEX(NO_참조테이블!$F:$F,MATCH(B96,NO_참조테이블!$E:$E,0))","v":"샤프한 얼굴"},"얼굴",{"$f":"INDEX('NO_Table Parameter'!$G$3:$G$1048576,MATCH(EquipItem!D96,'NO_Table Parameter'!$H$3:$H$1048576,0))","v":2},"화장",{"$f":"INDEX('NO_Table Parameter'!$J:$J,MATCH(EquipItem!F96,'NO_Table Parameter'!$K:$K,0))","v":6},"makeup_1106","남녀 공용",{"$f":"INDEX('NO_Table Parameter'!S:S,MATCH(EquipItem!I96,'NO_Table Parameter'!T:T,0))","v":1},0,0,null,0,null,0,null,null,"심플",{"$f":"INDEX('NO_Table Parameter'!$P:$P,MATCH(S96,'NO_Table Parameter'!$Q:$Q,0))","v":2},"발랄",{"$f":"INDEX('NO_Table Parameter'!$P:$P,MATCH(U96,'NO_Table Parameter'!$Q:$Q,0))","v":7},"심플",{"$f":"INDEX('NO_Table Parameter'!$P:$P,MATCH(W96,'NO_Table Parameter'!$Q:$Q,0))","v":2},"청순",{"$f":"INDEX('NO_Table Parameter'!$P:$P,MATCH(Y96,'NO_Table Parameter'!$Q:$Q,0))","v":8},"발랄",{"$f":"INDEX('NO_Table Parameter'!$P:$P,MATCH(AA96,'NO_Table Parameter'!$Q:$Q,0))","v":7},"시원",{"$f":"INDEX('NO_Table Parameter'!$P:$P,MATCH(AC96,'NO_Table Parameter'!$Q:$Q,0))","v":4},"따뜻",{"$f":"INDEX('NO_Table Parameter'!$P:$P,MATCH(AE96,'NO_Table Parameter'!$Q:$Q,0))","v":5},null,0,0,1,"change_eye01",{"$f":"INDEX(NO_참조테이블!H:H,MATCH(EquipItem!AK96,NO_참조테이블!I:I,0))","v":52},null,null,"2023-03-02T05:50:10 +09:00","2022-09-29",2]
["DEV",1000083,{"$f":"INDEX(NO_참조테이블!$F:$F,MATCH(B97,NO_참조테이블!$E:$E,0))","v":"엉뚱한 얼굴"},"얼굴",{"$f":"INDEX('NO_Table Parameter'!$G$3:$G$1048576,MATCH(EquipItem!D97,'NO_Table Parameter'!$H$3:$H$1048576,0))","v":2},"화장",{"$f":"INDEX('NO_Table Parameter'!$J:$J,MATCH(EquipItem!F97,'NO_Table Parameter'!$K:$K,0))","v":6},"makeup_1107","남녀 공용",{"$f":"INDEX('NO_Table Parameter'!S:S,MATCH(EquipItem!I97,'NO_Table Parameter'!T:T,0))","v":1},0,0,null,0,null,0,null,null,"심플",{"$f":"INDEX('NO_Table Parameter'!$P:$P,MATCH(S97,'NO_Table Parameter'!$Q:$Q,0))","v":2},"발랄",{"$f":"INDEX('NO_Table Parameter'!$P:$P,MATCH(U97,'NO_Table Parameter'!$Q:$Q,0))","v":7},"심플",{"$f":"INDEX('NO_Table Parameter'!$P:$P,MATCH(W97,'NO_Table Parameter'!$Q:$Q,0))","v":2},"청순",{"$f":"INDEX('NO_Table Parameter'!$P:$P,MATCH(Y97,'NO_Table Parameter'!$Q:$Q,0))","v":8},"발랄",{"$f":"INDEX('NO_Table Parameter'!$P:$P,MATCH(AA97,'NO_Table Parameter'!$Q:$Q,0))","v":7},"시원",{"$f":"INDEX('NO_Table Parameter'!$P:$P,MATCH(AC97,'NO_Table Parameter'!$Q:$Q,0))","v":4},"따뜻",{"$f":"INDEX('NO_Table Parameter'!$P:$P,MATCH(AE97,'NO_Table Parameter'!$Q:$Q,0))","v":5},null,0,0,1,"change_eye01",{"$f":"INDEX(NO_참조테이블!H:H,MATCH(EquipItem!AK97,NO_참조테이블!I:I,0))","v":52},null,null,"2023-03-02T05:50:10 +09:00","2022-09-29",2]
["DEV",1000084,{"$f":"INDEX(NO_참조테이블!$F:$F,MATCH(B98,NO_참조테이블!$E:$E,0))","v":"재밌는 얼굴"},"얼굴",{"$f":"INDEX('NO_Table Parameter'!$G$3:$G$1048576,MATCH(EquipItem!D98,'NO_Table Parameter'!$H$3:$H$1048576,0))","v":2},"화장",{"$f":"INDEX('NO_Table Parameter'!$J:$J,MATCH(EquipItem!F98,'NO_Table Parameter'!$K:$K,0))","v":6},"makeup_1108","남녀 공용",{"$f":"INDEX('NO_Table Parameter'!S:S,MATCH(EquipItem!I98,'NO_Table Parameter'!T:T,0))","v":1},0,0,null,0,null,0,null,null,"심플",{"$f":"INDEX('NO_Table Parameter'!$P:$P,MATCH(S98,'NO_Table Parameter'!$Q:$Q,0))","v":2},"발랄",{"$f":"INDEX('NO_Table Parameter'!$P:$P,MATCH(U98,'NO_Table Parameter'!$Q:$Q,0))","v":7},"심플",{"$f":"INDEX('NO_Table Parameter'!$P:$P,MATCH(W98,'NO_Table Parameter'!$Q:$Q,0))","v":2},"청순",{"$f":"INDEX('NO_Table Parameter'!$P:$P,MATCH(Y98,'NO_Table Parameter'!$Q:$Q,0))","v":8},"발랄",{"$f":"INDEX('NO_Table Parameter'!$P:$P,MATCH(AA98,'NO_Table Parameter'!$Q:$Q,0))","v":7},"시원",{"$f":"INDEX('NO_Table Parameter'!$P:$P,MATCH(AC98,'NO_Table Parameter'!$Q:$Q,0))","v":4},"따뜻",{"$f":"INDEX('NO_Table Parameter'!$P:$P,MATCH(AE98,'NO_Table Parameter'!$Q:$Q,0))","v":5},null,0,0,1,"change_eye01",{"$f":"INDEX(NO_참조테이블!H:H,MATCH(EquipItem!AK98,NO_참조테이블!I:I,0))","v":52},null,null,"2023-03-02T05:50:10 +09:00","2022-09-29",2]
["DEV",1000085,{"$f":"INDEX(NO_참조테이블!$F:$F,MATCH(B99,NO_참조테이블!$E:$E,0))","v":"차분한 얼굴"},"얼굴",{"$f":"INDEX('NO_Table Parameter'!$G$3:$G$1048576,MATCH(EquipItem!D99,'NO_Table Parameter'!$H$3:$H$1048576,0))","v":2},"화장",{"$f":"INDEX('NO_Table Parameter'!$J:$J,MATCH(EquipItem!F99,'NO_Table Parameter'!$K:$K,0))","v":6},"makeup_1109","남녀 공용",{"$f":"INDEX('NO_Table Parameter'!S:S,MATCH(EquipItem!I99,'NO_Table Parameter'!T:T,0))","v":1},0,0,null,0,null,0,null,null,"격식",{"$f":"INDEX('NO_Table Parameter'!$P:$P,MATCH(S99,'NO_Table Parameter'!$Q:$Q,0))","v":1},"심플",{"$f":"INDEX('NO_Table Parameter'!$P:$P,MATCH(U99,'NO_Table Parameter'!$Q:$Q,0))","v":2},"심플",{"$f":"INDEX('NO_Table Parameter'!$P:$P,MATCH(W99,'NO_Table Parameter'!$Q:$Q,0))","v":2},"청순",{"$f":"INDEX('NO_Table Parameter'!$P:$P,MATCH(Y99,'NO_Table Parameter'!$Q:$Q,0))","v":8},"발랄",{"$f":"INDEX('NO_Table Parameter'!$P:$P,MATCH(AA99,'NO_Table Parameter'!$Q:$Q,0))","v":7},"시원",{"$f":"INDEX('NO_Table Parameter'!$P:$P,MATCH(AC99,'NO_Table Parameter'!$Q:$Q,0))","v":4},"따뜻",{"$f":"INDEX('NO_Table Parameter'!$P:$P,MATCH(AE99,'NO_Table Parameter'!$Q:$Q,0))","v":5},null,0,0,1,"change_eye01",{"$f":"INDEX(NO_참조테이블!H:H,MATCH(EquipItem!AK99,NO_참조테이블!I:I,0))","v":52},null,null,"2023-03-02T05:50:10 +09:01","2022-09-30",2]
["DEV",1000086,{"$f":"INDEX(NO_참조테이블!$F:$F,MATCH(B100,NO_참조테이블!$E:$E,0))","v":"진지한 얼굴"},"얼굴",{"$f":"INDEX('NO_Table Parameter'!$G$3:$G$1048576,MATCH(EquipItem!D100,'NO_Table Parameter'!$H$3:$H$1048576,0))","v":2},"화장",{"$f":"INDEX('NO_Table Parameter'!$J:$J,MATCH(EquipItem!F100,'NO_Table Parameter'!$K:$K,0))","v":6},"makeup_1110","남녀 공용",{"$f":"INDEX('NO_Table Parameter'!S:S,MATCH(EquipItem!I100,'NO_Table Parameter'!T:T,0))","v":1},0,0,null,0,null,0,null,null,"격식",{"$f":"INDEX('NO_Table Parameter'!$P:$P,MATCH(S100,'NO_Table Parameter'!$Q:$Q,0))","v":1},"심플",{"$f":"INDEX('NO_Table Parameter'!$P:$P,MATCH(U100,'NO_Table Parameter'!$Q:$Q,0))","v":2},"심플",{"$f":"INDEX('NO_Table Parameter'!$P:$P,MATCH(W100,'NO_Table Parameter'!$Q:$Q,0))","v":2},"청순",{"$f":"INDEX('NO_Table Parameter'!$P:$P,MATCH(Y100,'NO_Table Parameter'!$Q:$Q,0))","v":8},"발랄",{"$f":"INDEX('NO_Table Parameter'!$P:$P,MATCH(AA100,'NO_Table Parameter'!$Q:$Q,0))","v":7},"시원",{"$f":"INDEX('NO_Table Parameter'!$P:$P,MATCH(AC100,'NO_Table Parameter'!$Q:$Q,0))","v":4},"따뜻",{"$f":"INDEX('NO_Table Parameter'!$P:$P,MATCH(AE100,'NO_Table Parameter'!$Q:$Q,0))","v":5},null,0,0,1,"change_eye01",{"$f":"INDEX(NO_참조테이블!H:H,MATCH(EquipItem!AK100,NO_참조테이블!I:I,0))","v":52},null,null,"2023-03-02T05:50:10 +09:01","2022-09-30",2]
["DEV",1000087,{"$f":"INDEX(NO_참조테이블!$F:$F,MATCH(B101,NO_참조테이블!$E:$E,0))","v":"소프트 어텀 펌 단발 헤어"},"머리",{"$f":"INDEX('NO_Table Parameter'!$G$3:$G$1048576,MATCH(EquipItem!D101,'NO_Table Parameter'!$H$3:$H$1048576,0))","v":1},"헤어",{"$f":"INDEX('NO_Table Parameter'!$J:$J,MATCH(EquipItem!F101,'NO_Table Parameter'!$K:$K,0))","v":1},"hair_1111","남녀 공용",{"$f":"INDEX('NO_Table Parameter'!S:S,MATCH(EquipItem!I101,'NO_Table Parameter'!T:T,0))","v":1},1,1,158,0,null,0,null,null,"심플",{"$f":"INDEX('NO_Table Parameter'!$P:$P,MATCH(S101,'NO_Table Parameter'!$Q:$Q,0))","v":2},"발랄",{"$f":"INDEX('NO_Table Parameter'!$P:$P,MATCH(U101,'NO_Table Parameter'!$Q:$Q,0))","v":7},"심플",{"$f":"INDEX('NO_Table Parameter'!$P:$P,MATCH(W101,'NO_Table Parameter'!$Q:$Q,0))","v":2},"청순",{"$f":"INDEX('NO_Table Parameter'!$P:$P,MATCH(Y101,'NO_Table Parameter'!$Q:$Q,0))","v":8},"발랄",{"$f":"INDEX('NO_Table Parameter'!$P:$P,MATCH(AA101,'NO_Table Parameter'!$Q:$Q,0))","v":7},"시원",{"$f":"INDEX('NO_Table Parameter'!$P:$P,MATCH(AC101,'NO_Table Parameter'!$Q:$Q,0))","v":4},"따뜻",{"$f":"INDEX('NO_Table Parameter'!$P:$P,MATCH(AE101,'NO_Table Parameter'!$Q:$Q,0))","v":5},null,0,0,1,"change_hair01",{"$f":"INDEX(NO_참조테이블!H:H,MATCH(EquipItem!AK101,NO_참조테이블!I:I,0))","v":51},null,null,"2023-03-02T05:50:10 +09:00","2022-09-29",1]
["DEV",1000088,{"$f":"INDEX(NO_참조테이블!$F:$F,MATCH(B102,NO_참조테이블!$E:$E,0))","v":"소프트 어텀 아가일 니트 원피스"},"몸",{"$f":"INDEX('NO_Table Parameter'!$G$3:$G$1048576,MATCH(EquipItem!D102,'NO_Table Parameter'!$H$3:$H$1048576,0))","v":6},"상의",{"$f":"INDEX('NO_Table Parameter'!$J:$J,MATCH(EquipItem!F102,'NO_Table Parameter'!$K:$K,0))","v":15},"top_217","남녀 공용",{"$f":"INDEX('NO_Table Parameter'!S:S,MATCH(EquipItem!I102,'NO_Table Parameter'!T:T,0))","v":1},1,1,177,1,178,0,null,"1|2","심플",{"$f":"INDEX('NO_Table Parameter'!$P:$P,MATCH(S102,'NO_Table Parameter'!$Q:$Q,0))","v":2},"발랄",{"$f":"INDEX('NO_Table Parameter'!$P:$P,MATCH(U102,'NO_Table Parameter'!$Q:$Q,0))","v":7},"심플",{"$f":"INDEX('NO_Table Parameter'!$P:$P,MATCH(W102,'NO_Table Parameter'!$Q:$Q,0))","v":2},"청순",{"$f":"INDEX('NO_Table Parameter'!$P:$P,MATCH(Y102,'NO_Table Parameter'!$Q:$Q,0))","v":8},"발랄",{"$f":"INDEX('NO_Table Parameter'!$P:$P,MATCH(AA102,'NO_Table Parameter'!$Q:$Q,0))","v":7},"시원",{"$f":"INDEX('NO_Table Parameter'!$P:$P,MATCH(AC102,'NO_Table Parameter'!$Q:$Q,0))","v":4},"따뜻",{"$f":"INDEX('NO_Table Parameter'!$P:$P,MATCH(AE102,'NO_Table Parameter'!$Q:$Q,0))","v":5},null,0,0,1,"change_cloth02",{"$f":"INDEX(NO_참조테이블!H:H,MATCH(EquipItem!AK102,NO_참조테이블!I:I,0))","v":102},null,null,"2023-03-02T05:50:10 +09:00","2022-09-29",1]
["DEV",1000089,{"$f":"INDEX(NO_참조테이블!$F:$F,MATCH(B103,NO_참조테이블!$E:$E,0))","v":"소프트 어텀 레더 부츠"},"발",{"$f":"INDEX('NO_Table Parameter'!$G$3:$G$1048576,MATCH(EquipItem!D103,'NO_Table Parameter'!$H$3:$H$1048576,0))","v":10},"신발",{"$f":"INDEX('NO_Table Parameter'!$J:$J,MATCH(EquipItem!F103,'NO_Table Parameter'!$K:$K,0))","v":28},"shoes_218","남녀 공용",{"$f":"INDEX('NO_Table Parameter'!S:S,MATCH(EquipItem!I103,'NO_Table Parameter'!T:T,0))","v":1},0,0,null,0,null,0,null,null,"심플",{"$f":"INDEX('NO_Table Parameter'!$P:$P,MATCH(S103,'NO_Table Parameter'!$Q:$Q,0))","v":2},"발랄",{"$f":"INDEX('NO_Table Parameter'!$P:$P,MATCH(U103,'NO_Table Parameter'!$Q:$Q,0))","v":7},"심플",{"$f":"INDEX('NO_Table Parameter'!$P:$P,MATCH(W103,'NO_Table Parameter'!$Q:$Q,0))","v":2},"청순",{"$f":"INDEX('NO_Table Parameter'!$P:$P,MATCH(Y103,'NO_Table Parameter'!$Q:$Q,0))","v":8},"발랄",{"$f":"INDEX('NO_Table Parameter'!$P:$P,MATCH(AA103,'NO_Table Parameter'!$Q:$Q,0))","v":7},"시원",{"$f":"INDEX('NO_Table Parameter'!$P:$P,MATCH(AC103,'NO_Table Parameter'!$Q:$Q,0))","v":4},"따뜻",{"$f":"INDEX('NO_Table Parameter'!$P:$P,MATCH(AE103,'NO_Table Parameter'!$Q:$Q,0))","v":5},null,0,0,1,"change_shoes01",{"$f":"INDEX(NO_참조테이블!H:H,MATCH(EquipItem!AK103,NO_참조테이블!I:I,0))","v":54},null,null,"2023-03-02T05:50:10 +09:00","2022-09-29",1]
["DEV",1000090,{"$f":"INDEX(NO_참조테이블!$F:$F,MATCH(B104,NO_참조테이블!$E:$E,0))","v":"소프트 어텀 가르마펌 헤어"},"머리",{"$f":"INDEX('NO_Table Parameter'!$G$3:$G$1048576,MATCH(EquipItem!D104,'NO_Table Parameter'!$H$3:$H$1048576,0))","v":1},"헤어",{"$f":"INDEX('NO_Table Parameter'!$J:$J,MATCH(EquipItem!F104,'NO_Table Parameter'!$K:$K,0))","v":1},"hair_1112","남녀 공용",{"$f":"INDEX('NO_Table Parameter'!S:S,MATCH(EquipItem!I104,'NO_Table Parameter'!T:T,0))","v":1},1,1,158,0,null,0,null,null,"시원",{"$f":"INDEX('NO_Table Parameter'!$P:$P,MATCH(S104,'NO_Table Parameter'!$Q:$Q,0))","v":4},"우아",{"$f":"INDEX('NO_Table Parameter'!$P:$P,MATCH(U104,'NO_Table Parameter'!$Q:$Q,0))","v":10},"발랄",{"$f":"INDEX('NO_Table Parameter'!$P:$P,MATCH(W104,'NO_Table Parameter'!$Q:$Q,0))","v":7},"청순",{"$f":"INDEX('NO_Table Parameter'!$P:$P,MATCH(Y104,'NO_Table Parameter'!$Q:$Q,0))","v":8},"화려",{"$f":"INDEX('NO_Table Parameter'!$P:$P,MATCH(AA104,'NO_Table Parameter'!$Q:$Q,0))","v":9},"시원",{"$f":"INDEX('NO_Table Parameter'!$P:$P,MATCH(AC104,'NO_Table Parameter'!$Q:$Q,0))","v":4},"따뜻",{"$f":"INDEX('NO_Table Parameter'!$P:$P,MATCH(AE104,'NO_Table Parameter'!$Q:$Q,0))","v":5},null,0,0,1,"change_hair01",{"$f":"INDEX(NO_참조테이블!H:H,MATCH(EquipItem!AK104,NO_참조테이블!I:I,0))","v":51},null,null,"2023-03-02T05:50:10 +09:03","2022-10-02",1]
["DEV",1000091,{"$f":"INDEX(NO_참조테이블!$F:$F,MATCH(B105,NO_참조테이블!$E:$E,0))","v":"소프트 어텀 캐주얼 블레이저"},"몸",{"$f":"INDEX('NO_Table Parameter'!$G$3:$G$1048576,MATCH(EquipItem!D105,'NO_Table Parameter'!$H$3:$H$1048576,0))","v":6},"상의",{"$f":"INDEX('NO_Table Parameter'!$J:$J,MATCH(EquipItem!F105,'NO_Table Parameter'!$K:$K,0))","v":15},"top_219","남녀 공용",{"$f":"INDEX('NO_Table Parameter'!S:S,MATCH(EquipItem!I105,'NO_Table Parameter'!T:T,0))","v":1},1,1,178,0,null,0,null,null,"심플",{"$f":"INDEX('NO_Table Parameter'!$P:$P,MATCH(S105,'NO_Table Parameter'!$Q:$Q,0))","v":2},"발랄",{"$f":"INDEX('NO_Table Parameter'!$P:$P,MATCH(U105,'NO_Table Parameter'!$Q:$Q,0))","v":7},"심플",{"$f":"INDEX('NO_Table Parameter'!$P:$P,MATCH(W105,'NO_Table Parameter'!$Q:$Q,0))","v":2},"청순",{"$f":"INDEX('NO_Table Parameter'!$P:$P,MATCH(Y105,'NO_Table Parameter'!$Q:$Q,0))","v":8},"발랄",{"$f":"INDEX('NO_Table Parameter'!$P:$P,MATCH(AA105,'NO_Table Parameter'!$Q:$Q,0))","v":7},"시원",{"$f":"INDEX('NO_Table Parameter'!$P:$P,MATCH(AC105,'NO_Table Parameter'!$Q:$Q,0))","v":4},"따뜻",{"$f":"INDEX('NO_Table Parameter'!$P:$P,MATCH(AE105,'NO_Table Parameter'!$Q:$Q,0))","v":5},null,0,0,1,"change_cloth02",{"$f":"INDEX(NO_참조테이블!H:H,MATCH(EquipItem!AK105,NO_참조테이블!I:I,0))","v":102},null,null,"2023-03-02T05:50:10 +09:00","2022-09-29",1]
["DEV",1000092,{"$f":"INDEX(NO_참조테이블!$F:$F,MATCH(B106,NO_참조테이블!$E:$E,0))","v":"소프트 어텀 슬랙스"},"몸",{"$f":"INDEX('NO_Table Parameter'!$G$3:$G$1048576,MATCH(EquipItem!D106,'NO_Table Parameter'!$H$3:$H$1048576,0))","v":6},"하의",{"$f":"INDEX('NO_Table Parameter'!$J:$J,MATCH(EquipItem!F106,'NO_Table Parameter'!$K:$K,0))","v":16},"bottom_220","남녀 공용",{"$f":"INDEX('NO_Table Parameter'!S:S,MATCH(EquipItem!I106,'NO_Table Parameter'!T:T,0))","v":1},1,1,179,0,null,0,null,null,"심플",{"$f":"INDEX('NO_Table Parameter'!$P:$P,MATCH(S106,'NO_Table Parameter'!$Q:$Q,0))","v":2},"발랄",{"$f":"INDEX('NO_Table Parameter'!$P:$P,MATCH(U106,'NO_Table Parameter'!$Q:$Q,0))","v":7},"심플",{"$f":"INDEX('NO_Table Parameter'!$P:$P,MATCH(W106,'NO_Table Parameter'!$Q:$Q,0))","v":2},"청순",{"$f":"INDEX('NO_Table Parameter'!$P:$P,MATCH(Y106,'NO_Table Parameter'!$Q:$Q,0))","v":8},"발랄",{"$f":"INDEX('NO_Table Parameter'!$P:$P,MATCH(AA106,'NO_Table Parameter'!$Q:$Q,0))","v":7},"시원",{"$f":"INDEX('NO_Table Parameter'!$P:$P,MATCH(AC106,'NO_Table Parameter'!$Q:$Q,0))","v":4},"따뜻",{"$f":"INDEX('NO_Table Parameter'!$P:$P,MATCH(AE106,'NO_Table Parameter'!$Q:$Q,0))","v":5},null,0,0,1,"change_cloth02",{"$f":"INDEX(NO_참조테이블!H:H,MATCH(EquipItem!AK106,NO_참조테이블!I:I,0))","v":102},null,null,"2023-03-02T05:50:10 +09:00","2022-09-29",1]
["DEV",1000093,{"$f":"INDEX(NO_참조테이블!$F:$F,MATCH(B107,NO_참조테이블!$E:$E,0))","v":"소프트 어텀 화이트 로퍼"},"발",{"$f":"INDEX('NO_Table Parameter'!$G$3:$G$1048576,MATCH(EquipItem!D107,'NO_Table Parameter'!$H$3:$H$1048576,0))","v":10},"신발",{"$f":"INDEX('NO_Table Parameter'!$J:$J,MATCH(EquipItem!F107,'NO_Table Parameter'!$K:$K,0))","v":28},"shoes_221","남녀 공용",{"$f":"INDEX('NO_Table Parameter'!S:S,MATCH(EquipItem!I107,'NO_Table Parameter'!T:T,0))","v":1},0,0,null,0,null,0,null,null,"심플",{"$f":"INDEX('NO_Table Parameter'!$P:$P,MATCH(S107,'NO_Table Parameter'!$Q:$Q,0))","v":2},"발랄",{"$f":"INDEX('NO_Table Parameter'!$P:$P,MATCH(U107,'NO_Table Parameter'!$Q:$Q,0))","v":7},"심플",{"$f":"INDEX('NO_Table Parameter'!$P:$P,MATCH(W107,'NO_Table Parameter'!$Q:$Q,0))","v":2},"청순",{"$f":"INDEX('NO_Table Parameter'!$P:$P,MATCH(Y107,'NO_Table Parameter'!$Q:$Q,0))","v":8},"발랄",{"$f":"INDEX('NO_Table Parameter'!$P:$P,MATCH(AA107,'NO_Table Parameter'!$Q:$Q,0))","v":7},"시원",{"$f":"INDEX('NO_Table Parameter'!$P:$P,MATCH(AC107,'NO_Table Parameter'!$Q:$Q,0))","v":4},"따뜻",{"$f":"INDEX('NO_Table Parameter'!$P:$P,MATCH(AE107,'NO_Table Parameter'!$Q:$Q,0))","v":5},null,0,0,1,"change_shoes01",{"$f":"INDEX(NO_참조테이블!H:H,MATCH(EquipItem!AK107,NO_참조테이블!I:I,0))","v":54},null,null,"2023-03-02T05:50:10 +09:00","2022-09-29",1]
["DEV",1000094,{"$f":"INDEX(NO_참조테이블!$F:$F,MATCH(B108,NO_참조테이블!$E:$E,0))","v":"소프트 어텀 니트 목도리"},"목",{"$f":"INDEX('NO_Table Parameter'!$G$3:$G$1048576,MATCH(EquipItem!D108,'NO_Table Parameter'!$H$3:$H$1048576,0))","v":5},"목",{"$f":"INDEX('NO_Table Parameter'!$J:$J,MATCH(EquipItem!F108,'NO_Table Parameter'!$K:$K,0))","v":12},"neck_1113","남녀 공용",{"$f":"INDEX('NO_Table Parameter'!S:S,MATCH(EquipItem!I108,'NO_Table Parameter'!T:T,0))","v":1},0,0,null,0,null,0,null,null,"심플",{"$f":"INDEX('NO_Table Parameter'!$P:$P,MATCH(S108,'NO_Table Parameter'!$Q:$Q,0))","v":2},"발랄",{"$f":"INDEX('NO_Table Parameter'!$P:$P,MATCH(U108,'NO_Table Parameter'!$Q:$Q,0))","v":7},"심플",{"$f":"INDEX('NO_Table Parameter'!$P:$P,MATCH(W108,'NO_Table Parameter'!$Q:$Q,0))","v":2},"청순",{"$f":"INDEX('NO_Table Parameter'!$P:$P,MATCH(Y108,'NO_Table Parameter'!$Q:$Q,0))","v":8},"발랄",{"$f":"INDEX('NO_Table Parameter'!$P:$P,MATCH(AA108,'NO_Table Parameter'!$Q:$Q,0))","v":7},"시원",{"$f":"INDEX('NO_Table Parameter'!$P:$P,MATCH(AC108,'NO_Table Parameter'!$Q:$Q,0))","v":4},"따뜻",{"$f":"INDEX('NO_Table Parameter'!$P:$P,MATCH(AE108,'NO_Table Parameter'!$Q:$Q,0))","v":5},null,0,0,1,"change_cloth01",{"$f":"INDEX(NO_참조테이블!H:H,MATCH(EquipItem!AK108,NO_참조테이블!I:I,0))","v":50},null,null,"2023-03-02T05:50:10 +09:00","2022-09-29",1]
["DEV",1000095,{"$f":"INDEX(NO_참조테이블!$F:$F,MATCH(B109,NO_참조테이블!$E:$E,0))","v":"포근 겨울 미디웨이브 헤어"},"머리",{"$f":"INDEX('NO_Table Parameter'!$G$3:$G$1048576,MATCH(EquipItem!D109,'NO_Table Parameter'!$H$3:$H$1048576,0))","v":1},"헤어",{"$f":"INDEX('NO_Table Parameter'!$J:$J,MATCH(EquipItem!F109,'NO_Table Parameter'!$K:$K,0))","v":1},"hair_1114","남녀 공용",{"$f":"INDEX('NO_Table Parameter'!S:S,MATCH(EquipItem!I109,'NO_Table Parameter'!T:T,0))","v":1},1,1,157,0,null,0,null,null,"심플",{"$f":"INDEX('NO_Table Parameter'!$P:$P,MATCH(S109,'NO_Table Parameter'!$Q:$Q,0))","v":2},"발랄",{"$f":"INDEX('NO_Table Parameter'!$P:$P,MATCH(U109,'NO_Table Parameter'!$Q:$Q,0))","v":7},"심플",{"$f":"INDEX('NO_Table Parameter'!$P:$P,MATCH(W109,'NO_Table Parameter'!$Q:$Q,0))","v":2},"청순",{"$f":"INDEX('NO_Table Parameter'!$P:$P,MATCH(Y109,'NO_Table Parameter'!$Q:$Q,0))","v":8},"발랄",{"$f":"INDEX('NO_Table Parameter'!$P:$P,MATCH(AA109,'NO_Table Parameter'!$Q:$Q,0))","v":7},"시원",{"$f":"INDEX('NO_Table Parameter'!$P:$P,MATCH(AC109,'NO_Table Parameter'!$Q:$Q,0))","v":4},"따뜻",{"$f":"INDEX('NO_Table Parameter'!$P:$P,MATCH(AE109,'NO_Table Parameter'!$Q:$Q,0))","v":5},null,0,0,1,"change_hair01",{"$f":"INDEX(NO_참조테이블!H:H,MATCH(EquipItem!AK109,NO_참조테이블!I:I,0))","v":51},null,null,"2023-03-02T05:50:10 +09:00","2022-09-29",1]
["DEV",1000096,{"$f":"INDEX(NO_참조테이블!$F:$F,MATCH(B110,NO_참조테이블!$E:$E,0))","v":"포근 겨울 케이프 숏코트"},"몸",{"$f":"INDEX('NO_Table Parameter'!$G$3:$G$1048576,MATCH(EquipItem!D110,'NO_Table Parameter'!$H$3:$H$1048576,0))","v":6},"상의",{"$f":"INDEX('NO_Table Parameter'!$J:$J,MATCH(EquipItem!F110,'NO_Table Parameter'!$K:$K,0))","v":15},"top_222","남녀 공용",{"$f":"INDEX('NO_Table Parameter'!S:S,MATCH(EquipItem!I110,'NO_Table Parameter'!T:T,0))","v":1},1,1,180,1,116,0,null,"1|2","심플",{"$f":"INDEX('NO_Table Parameter'!$P:$P,MATCH(S110,'NO_Table Parameter'!$Q:$Q,0))","v":2},"발랄",{"$f":"INDEX('NO_Table Parameter'!$P:$P,MATCH(U110,'NO_Table Parameter'!$Q:$Q,0))","v":7},"심플",{"$f":"INDEX('NO_Table Parameter'!$P:$P,MATCH(W110,'NO_Table Parameter'!$Q:$Q,0))","v":2},"청순",{"$f":"INDEX('NO_Table Parameter'!$P:$P,MATCH(Y110,'NO_Table Parameter'!$Q:$Q,0))","v":8},"발랄",{"$f":"INDEX('NO_Table Parameter'!$P:$P,MATCH(AA110,'NO_Table Parameter'!$Q:$Q,0))","v":7},"시원",{"$f":"INDEX('NO_Table Parameter'!$P:$P,MATCH(AC110,'NO_Table Parameter'!$Q:$Q,0))","v":4},"따뜻",{"$f":"INDEX('NO_Table Parameter'!$P:$P,MATCH(AE110,'NO_Table Parameter'!$Q:$Q,0))","v":5},null,0,0,1,"change_cloth02",{"$f":"INDEX(NO_참조테이블!H:H,MATCH(EquipItem!AK110,NO_참조테이블!I:I,0))","v":102},null,null,"2023-03-02T05:50:10 +09:00","2022-09-29",1]
["DEV",1000097,{"$f":"INDEX(NO_참조테이블!$F:$F,MATCH(B111,NO_참조테이블!$E:$E,0))","v":"포근 겨울 울 스커트"},"몸",{"$f":"INDEX('NO_Table Parameter'!$G$3:$G$1048576,MATCH(EquipItem!D111,'NO_Table Parameter'!$H$3:$H$1048576,0))","v":6},"하의",{"$f":"INDEX('NO_Table Parameter'!$J:$J,MATCH(EquipItem!F111,'NO_Table Parameter'!$K:$K,0))","v":16},"bottom_223","남녀 공용",{"$f":"INDEX('NO_Table Parameter'!S:S,MATCH(EquipItem!I111,'NO_Table Parameter'!T:T,0))","v":1},1,1,1,1,178,0,null,"1|2","심플",{"$f":"INDEX('NO_Table Parameter'!$P:$P,MATCH(S111,'NO_Table Parameter'!$Q:$Q,0))","v":2},"발랄",{"$f":"INDEX('NO_Table Parameter'!$P:$P,MATCH(U111,'NO_Table Parameter'!$Q:$Q,0))","v":7},"심플",{"$f":"INDEX('NO_Table Parameter'!$P:$P,MATCH(W111,'NO_Table Parameter'!$Q:$Q,0))","v":2},"청순",{"$f":"INDEX('NO_Table Parameter'!$P:$P,MATCH(Y111,'NO_Table Parameter'!$Q:$Q,0))","v":8},"발랄",{"$f":"INDEX('NO_Table Parameter'!$P:$P,MATCH(AA111,'NO_Table Parameter'!$Q:$Q,0))","v":7},"시원",{"$f":"INDEX('NO_Table Parameter'!$P:$P,MATCH(AC111,'NO_Table Parameter'!$Q:$Q,0))","v":4},"따뜻",{"$f":"INDEX('NO_Table Parameter'!$P:$P,MATCH(AE111,'NO_Table Parameter'!$Q:$Q,0))","v":5},null,0,0,1,"change_cloth02",{"$f":"INDEX(NO_참조테이블!H:H,MATCH(EquipItem!AK111,NO_참조테이블!I:I,0))","v":102},null,null,"2023-03-02T05:50:10 +09:00","2022-09-29",1]
["DEV",1000098,{"$f":"INDEX(NO_참조테이블!$F:$F,MATCH(B112,NO_참조테이블!$E:$E,0))","v":"포근 겨울 레더 워커"},"발",{"$f":"INDEX('NO_Table Parameter'!$G$3:$G$1048576,MATCH(EquipItem!D112,'NO_Table Parameter'!$H$3:$H$1048576,0))","v":10},"신발",{"$f":"INDEX('NO_Table Parameter'!$J:$J,MATCH(EquipItem!F112,'NO_Table Parameter'!$K:$K,0))","v":28},"shoes_224","남녀 공용",{"$f":"INDEX('NO_Table Parameter'!S:S,MATCH(EquipItem!I112,'NO_Table Parameter'!T:T,0))","v":1},0,0,null,0,null,0,null,null,"심플",{"$f":"INDEX('NO_Table Parameter'!$P:$P,MATCH(S112,'NO_Table Parameter'!$Q:$Q,0))","v":2},"발랄",{"$f":"INDEX('NO_Table Parameter'!$P:$P,MATCH(U112,'NO_Table Parameter'!$Q:$Q,0))","v":7},"심플",{"$f":"INDEX('NO_Table Parameter'!$P:$P,MATCH(W112,'NO_Table Parameter'!$Q:$Q,0))","v":2},"청순",{"$f":"INDEX('NO_Table Parameter'!$P:$P,MATCH(Y112,'NO_Table Parameter'!$Q:$Q,0))","v":8},"발랄",{"$f":"INDEX('NO_Table Parameter'!$P:$P,MATCH(AA112,'NO_Table Parameter'!$Q:$Q,0))","v":7},"시원",{"$f":"INDEX('NO_Table Parameter'!$P:$P,MATCH(AC112,'NO_Table Parameter'!$Q:$Q,0))","v":4},"따뜻",{"$f":"INDEX('NO_Table Parameter'!$P:$P,MATCH(AE112,'NO_Table Parameter'!$Q:$Q,0))","v":5},null,0,0,1,"change_shoes01",{"$f":"INDEX(NO_참조테이블!H:H,MATCH(EquipItem!AK112,NO_참조테이블!I:I,0))","v":54},null,null,"2023-03-02T05:50:10 +09:00","2022-09-29",1]
["DEV",1000099,{"$f":"INDEX(NO_참조테이블!$F:$F,MATCH(B113,NO_참조테이블!$E:$E,0))","v":"포근 겨울 댄디컷 헤어"},"머리",{"$f":"INDEX('NO_Table Parameter'!$G$3:$G$1048576,MATCH(EquipItem!D113,'NO_Table Parameter'!$H$3:$H$1048576,0))","v":1},"헤어",{"$f":"INDEX('NO_Table Parameter'!$J:$J,MATCH(EquipItem!F113,'NO_Table Parameter'!$K:$K,0))","v":1},"hair_1115","남녀 공용",{"$f":"INDEX('NO_Table Parameter'!S:S,MATCH(EquipItem!I113,'NO_Table Parameter'!T:T,0))","v":1},1,1,157,0,null,0,null,null,"심플",{"$f":"INDEX('NO_Table Parameter'!$P:$P,MATCH(S113,'NO_Table Parameter'!$Q:$Q,0))","v":2},"발랄",{"$f":"INDEX('NO_Table Parameter'!$P:$P,MATCH(U113,'NO_Table Parameter'!$Q:$Q,0))","v":7},"심플",{"$f":"INDEX('NO_Table Parameter'!$P:$P,MATCH(W113,'NO_Table Parameter'!$Q:$Q,0))","v":2},"청순",{"$f":"INDEX('NO_Table Parameter'!$P:$P,MATCH(Y113,'NO_Table Parameter'!$Q:$Q,0))","v":8},"발랄",{"$f":"INDEX('NO_Table Parameter'!$P:$P,MATCH(AA113,'NO_Table Parameter'!$Q:$Q,0))","v":7},"시원",{"$f":"INDEX('NO_Table Parameter'!$P:$P,MATCH(AC113,'NO_Table Parameter'!$Q:$Q,0))","v":4},"따뜻",{"$f":"INDEX('NO_Table Parameter'!$P:$P,MATCH(AE113,'NO_Table Parameter'!$Q:$Q,0))","v":5},null,0,0,1,"change_hair01",{"$f":"INDEX(NO_참조테이블!H:H,MATCH(EquipItem!AK113,NO_참조테이블!I:I,0))","v":51},null,null,"2023-03-02T05:50:10 +09:00","2022-09-29",1]
["DEV",1000100,{"$f":"INDEX(NO_참조테이블!$F:$F,MATCH(B114,NO_참조테이블!$E:$E,0))","v":"포근 겨울 롱코트"},"몸",{"$f":"INDEX('NO_Table Parameter'!$G$3:$G$1048576,MATCH(EquipItem!D114,'NO_Table Parameter'!$H$3:$H$1048576,0))","v":6},"상의",{"$f":"INDEX('NO_Table Parameter'!$J:$J,MATCH(EquipItem!F114,'NO_Table Parameter'!$K:$K,0))","v":15},"top_225","남녀 공용",{"$f":"INDEX('NO_Table Parameter'!S:S,MATCH(EquipItem!I114,'NO_Table Parameter'!T:T,0))","v":1},1,1,180,0,null,0,null,null,"심플",{"$f":"INDEX('NO_Table Parameter'!$P:$P,MATCH(S114,'NO_Table Parameter'!$Q:$Q,0))","v":2},"발랄",{"$f":"INDEX('NO_Table Parameter'!$P:$P,MATCH(U114,'NO_Table Parameter'!$Q:$Q,0))","v":7},"심플",{"$f":"INDEX('NO_Table Parameter'!$P:$P,MATCH(W114,'NO_Table Parameter'!$Q:$Q,0))","v":2},"청순",{"$f":"INDEX('NO_Table Parameter'!$P:$P,MATCH(Y114,'NO_Table Parameter'!$Q:$Q,0))","v":8},"발랄",{"$f":"INDEX('NO_Table Parameter'!$P:$P,MATCH(AA114,'NO_Table Parameter'!$Q:$Q,0))","v":7},"시원",{"$f":"INDEX('NO_Table Parameter'!$P:$P,MATCH(AC114,'NO_Table Parameter'!$Q:$Q,0))","v":4},"따뜻",{"$f":"INDEX('NO_Table Parameter'!$P:$P,MATCH(AE114,'NO_Table Parameter'!$Q:$Q,0))","v":5},null,0,0,1,"change_cloth02",{"$f":"INDEX(NO_참조테이블!H:H,MATCH(EquipItem!AK114,NO_참조테이블!I:I,0))","v":102},null,null,"2023-03-02T05:50:10 +09:00","2022-09-29",1]
["DEV",1000101,{"$f":"INDEX(NO_참조테이블!$F:$F,MATCH(B115,NO_참조테이블!$E:$E,0))","v":"포근 겨울 울 팬츠"},"몸",{"$f":"INDEX('NO_Table Parameter'!$G$3:$G$1048576,MATCH(EquipItem!D115,'NO_Table Parameter'!$H$3:$H$1048576,0))","v":6},"하의",{"$f":"INDEX('NO_Table Parameter'!$J:$J,MATCH(EquipItem!F115,'NO_Table Parameter'!$K:$K,0))","v":16},"bottom_226","남녀 공용",{"$f":"INDEX('NO_Table Parameter'!S:S,MATCH(EquipItem!I115,'NO_Table Parameter'!T:T,0))","v":1},1,1,1,1,178,0,null,"1|2","심플",{"$f":"INDEX('NO_Table Parameter'!$P:$P,MATCH(S115,'NO_Table Parameter'!$Q:$Q,0))","v":2},"발랄",{"$f":"INDEX('NO_Table Parameter'!$P:$P,MATCH(U115,'NO_Table Parameter'!$Q:$Q,0))","v":7},"심플",{"$f":"INDEX('NO_Table Parameter'!$P:$P,MATCH(W115,'NO_Table Parameter'!$Q:$Q,0))","v":2},"청순",{"$f":"INDEX('NO_Table Parameter'!$P:$P,MATCH(Y115,'NO_Table Parameter'!$Q:$Q,0))","v":8},"발랄",{"$f":"INDEX('NO_Table Parameter'!$P:$P,MATCH(AA115,'NO_Table Parameter'!$Q:$Q,0))","v":7},"시원",{"$f":"INDEX('NO_Table Parameter'!$P:$P,MATCH(AC115,'NO_Table Parameter'!$Q:$Q,0))","v":4},"따뜻",{"$f":"INDEX('NO_Table Parameter'!$P:$P,MATCH(AE115,'NO_Table Parameter'!$Q:$Q,0))","v":5},null,0,0,1,"change_cloth02",{"$f":"INDEX(NO_참조테이블!H:H,MATCH(EquipItem!AK115,NO_참조테이블!I:I,0))","v":102},null,null,"2023-03-02T05:50:10 +09:00","2022-09-29",1]
["DEV",1000102,{"$f":"INDEX(NO_참조테이블!$F:$F,MATCH(B116,NO_참조테이블!$E:$E,0))","v":"포근 겨울 귀마개"},"머리",{"$f":"INDEX('NO_Table Parameter'!$G$3:$G$1048576,MATCH(EquipItem!D116,'NO_Table Parameter'!$H$3:$H$1048576,0))","v":1},"머리 (후드)",{"$f":"INDEX('NO_Table Parameter'!$J:$J,MATCH(EquipItem!F116,'NO_Table Parameter'!$K:$K,0))","v":2},"headhood_227","남녀 공용",{"$f":"INDEX('NO_Table Parameter'!S:S,MATCH(EquipItem!I116,'NO_Table Parameter'!T:T,0))","v":1},0,0,null,0,null,0,null,null,"심플",{"$f":"INDEX('NO_Table Parameter'!$P:$P,MATCH(S116,'NO_Table Parameter'!$Q:$Q,0))","v":2},"발랄",{"$f":"INDEX('NO_Table Parameter'!$P:$P,MATCH(U116,'NO_Table Parameter'!$Q:$Q,0))","v":7},"심플",{"$f":"INDEX('NO_Table Parameter'!$P:$P,MATCH(W116,'NO_Table Parameter'!$Q:$Q,0))","v":2},"청순",{"$f":"INDEX('NO_Table Parameter'!$P:$P,MATCH(Y116,'NO_Table Parameter'!$Q:$Q,0))","v":8},"발랄",{"$f":"INDEX('NO_Table Parameter'!$P:$P,MATCH(AA116,'NO_Table Parameter'!$Q:$Q,0))","v":7},"시원",{"$f":"INDEX('NO_Table Parameter'!$P:$P,MATCH(AC116,'NO_Table Parameter'!$Q:$Q,0))","v":4},"따뜻",{"$f":"INDEX('NO_Table Parameter'!$P:$P,MATCH(AE116,'NO_Table Parameter'!$Q:$Q,0))","v":5},null,0,0,1,"change_hair01",{"$f":"INDEX(NO_참조테이블!H:H,MATCH(EquipItem!AK116,NO_참조테이블!I:I,0))","v":51},null,null,"2023-03-02T05:50:10 +09:00","2022-09-29",1]
["DEV",100051501,{"$f":"INDEX(NO_참조테이블!$F:$F,MATCH(B117,NO_참조테이블!$E:$E,0))","v":"러블리 스프링 원피스"},null,6,"상의",{"$f":"INDEX('NO_Table Parameter'!$J:$J,MATCH(EquipItem!F117,'NO_Table Parameter'!$K:$K,0))","v":15},"top_161_s","남녀 공용",{"$f":"INDEX('NO_Table Parameter'!S:S,MATCH(EquipItem!I117,'NO_Table Parameter'!T:T,0))","v":1},1,1,1012,1,1013,0,null,"1|2","소녀",{"$f":"INDEX('NO_Table Parameter'!$P:$P,MATCH(S117,'NO_Table Parameter'!$Q:$Q,0))","v":3},"따뜻",{"$f":"INDEX('NO_Table Parameter'!$P:$P,MATCH(U117,'NO_Table Parameter'!$Q:$Q,0))","v":5},"큐티",{"$f":"INDEX('NO_Table Parameter'!$P:$P,MATCH(W117,'NO_Table Parameter'!$Q:$Q,0))","v":6},"발랄",{"$f":"INDEX('NO_Table Parameter'!$P:$P,MATCH(Y117,'NO_Table Parameter'!$Q:$Q,0))","v":7},"청순",{"$f":"INDEX('NO_Table Parameter'!$P:$P,MATCH(AA117,'NO_Table Parameter'!$Q:$Q,0))","v":8},"화려",{"$f":"INDEX('NO_Table Parameter'!$P:$P,MATCH(AC117,'NO_Table Parameter'!$Q:$Q,0))","v":9},"심플",{"$f":"INDEX('NO_Table Parameter'!$P:$P,MATCH(AE117,'NO_Table Parameter'!$Q:$Q,0))","v":2},1,1,1,1,"change_cloth02",{"$f":"INDEX(NO_참조테이블!H:H,MATCH(EquipItem!AK117,NO_참조테이블!I:I,0))","v":102},null,null,"1999-01-01T00:00:00 +09:00","2024-12-18",1]
["DEV",100052802,{"$f":"INDEX(NO_참조테이블!$F:$F,MATCH(B118,NO_참조테이블!$E:$E,0))","v":"러블리 스프링 레이스 슈즈"},null,10,"신발",{"$f":"INDEX('NO_Table Parameter'!$J:$J,MATCH(EquipItem!F118,'NO_Table Parameter'!$K:$K,0))","v":28},"shoes_162_s","남녀 공용",{"$f":"INDEX('NO_Table Parameter'!S:S,MATCH(EquipItem!I118,'NO_Table Parameter'!T:T,0))","v":1},0,0,null,0,null,0,null,null,"소녀",{"$f":"INDEX('NO_Table Parameter'!$P:$P,MATCH(S118,'NO_Table Parameter'!$Q:$Q,0))","v":3},"따뜻",{"$f":"INDEX('NO_Table Parameter'!$P:$P,MATCH(U118,'NO_Table Parameter'!$Q:$Q,0))","v":5},"큐티",{"$f":"INDEX('NO_Table Parameter'!$P:$P,MATCH(W118,'NO_Table Parameter'!$Q:$Q,0))","v":6},"발랄",{"$f":"INDEX('NO_Table Parameter'!$P:$P,MATCH(Y118,'NO_Table Parameter'!$Q:$Q,0))","v":7},"청순",{"$f":"INDEX('NO_Table Parameter'!$P:$P,MATCH(AA118,'NO_Table Parameter'!$Q:$Q,0))","v":8},"화려",{"$f":"INDEX('NO_Table Parameter'!$P:$P,MATCH(AC118,'NO_Table Parameter'!$Q:$Q,0))","v":9},"심플",{"$f":"INDEX('NO_Table Parameter'!$P:$P,MATCH(AE118,'NO_Table Parameter'!$Q:$Q,0))","v":2},null,1,1,1,"change_shoes01",{"$f":"INDEX(NO_참조테이블!H:H,MATCH(EquipItem!AK118,NO_참조테이블!I:I,0))","v":54},null,null,"1999-01-01T00:00:00 +09:00","2024-12-18",1]
["DEV",100051503,{"$f":"INDEX(NO_참조테이블!$F:$F,MATCH(B119,NO_참조테이블!$E:$E,0))","v":"러블리 스프링 니트"},null,6,"상의",{"$f":"INDEX('NO_Table Parameter'!$J:$J,MATCH(EquipItem!F119,'NO_Table Parameter'!$K:$K,0))","v":15},"top_163_s","남녀 공용",{"$f":"INDEX('NO_Table Parameter'!S:S,MATCH(EquipItem!I119,'NO_Table Parameter'!T:T,0))","v":1},1,1,1012,1,1013,0,null,"1|2","소녀",{"$f":"INDEX('NO_Table Parameter'!$P:$P,MATCH(S119,'NO_Table Parameter'!$Q:$Q,0))","v":3},"따뜻",{"$f":"INDEX('NO_Table Parameter'!$P:$P,MATCH(U119,'NO_Table Parameter'!$Q:$Q,0))","v":5},"큐티",{"$f":"INDEX('NO_Table Parameter'!$P:$P,MATCH(W119,'NO_Table Parameter'!$Q:$Q,0))","v":6},"발랄",{"$f":"INDEX('NO_Table Parameter'!$P:$P,MATCH(Y119,'NO_Table Parameter'!$Q:$Q,0))","v":7},"청순",{"$f":"INDEX('NO_Table Parameter'!$P:$P,MATCH(AA119,'NO_Table Parameter'!$Q:$Q,0))","v":8},"화려",{"$f":"INDEX('NO_Table Parameter'!$P:$P,MATCH(AC119,'NO_Table Parameter'!$Q:$Q,0))","v":9},"심플",{"$f":"INDEX('NO_Table Parameter'!$P:$P,MATCH(AE119,'NO_Table Parameter'!$Q:$Q,0))","v":2},null,1,1,1,"change_cloth02",{"$f":"INDEX(NO_참조테이블!H:H,MATCH(EquipItem!AK119,NO_참조테이블!I:I,0))","v":102},null,null,"1999-01-01T00:00:00 +09:00","2024-12-18",1]
["DEV",100051604,{"$f":"INDEX(NO_참조테이블!$F:$F,MATCH(B120,NO_참조테이블!$E:$E,0))","v":"러블리 스프링 니트 반바지"},null,6,"하의",{"$f":"INDEX('NO_Table Parameter'!$J:$J,MATCH(EquipItem!F120,'NO_Table Parameter'!$K:$K,0))","v":16},"bottom_164_s","남녀 공용",{"$f":"INDEX('NO_Table Parameter'!S:S,MATCH(EquipItem!I120,'NO_Table Parameter'!T:T,0))","v":1},1,1,1012,0,null,0,null,null,"소녀",{"$f":"INDEX('NO_Table Parameter'!$P:$P,MATCH(S120,'NO_Table Parameter'!$Q:$Q,0))","v":3},"따뜻",{"$f":"INDEX('NO_Table Parameter'!$P:$P,MATCH(U120,'NO_Table Parameter'!$Q:$Q,0))","v":5},"큐티",{"$f":"INDEX('NO_Table Parameter'!$P:$P,MATCH(W120,'NO_Table Parameter'!$Q:$Q,0))","v":6},"발랄",{"$f":"INDEX('NO_Table Parameter'!$P:$P,MATCH(Y120,'NO_Table Parameter'!$Q:$Q,0))","v":7},"청순",{"$f":"INDEX('NO_Table Parameter'!$P:$P,MATCH(AA120,'NO_Table Parameter'!$Q:$Q,0))","v":8},"화려",{"$f":"INDEX('NO_Table Parameter'!$P:$P,MATCH(AC120,'NO_Table Parameter'!$Q:$Q,0))","v":9},"심플",{"$f":"INDEX('NO_Table Parameter'!$P:$P,MATCH(AE120,'NO_Table Parameter'!$Q:$Q,0))","v":2},null,1,1,1,"change_cloth02",{"$f":"INDEX(NO_참조테이블!H:H,MATCH(EquipItem!AK120,NO_참조테이블!I:I,0))","v":102},null,null,"1999-01-01T00:00:00 +09:00","2024-12-18",1]
["DEV",100052805,{"$f":"INDEX(NO_참조테이블!$F:$F,MATCH(B121,NO_참조테이블!$E:$E,0))","v":"러블리 스프링 단화"},null,10,"신발",{"$f":"INDEX('NO_Table Parameter'!$J:$J,MATCH(EquipItem!F121,'NO_Table Parameter'!$K:$K,0))","v":28},"shoes_165_s","남녀 공용",{"$f":"INDEX('NO_Table Parameter'!S:S,MATCH(EquipItem!I121,'NO_Table Parameter'!T:T,0))","v":1},0,0,null,0,null,0,null,null,"소녀",{"$f":"INDEX('NO_Table Parameter'!$P:$P,MATCH(S121,'NO_Table Parameter'!$Q:$Q,0))","v":3},"따뜻",{"$f":"INDEX('NO_Table Parameter'!$P:$P,MATCH(U121,'NO_Table Parameter'!$Q:$Q,0))","v":5},"큐티",{"$f":"INDEX('NO_Table Parameter'!$P:$P,MATCH(W121,'NO_Table Parameter'!$Q:$Q,0))","v":6},"발랄",{"$f":"INDEX('NO_Table Parameter'!$P:$P,MATCH(Y121,'NO_Table Parameter'!$Q:$Q,0))","v":7},"청순",{"$f":"INDEX('NO_Table Parameter'!$P:$P,MATCH(AA121,'NO_Table Parameter'!$Q:$Q,0))","v":8},"화려",{"$f":"INDEX('NO_Table Parameter'!$P:$P,MATCH(AC121,'NO_Table Parameter'!$Q:$Q,0))","v":9},"심플",{"$f":"INDEX('NO_Table Parameter'!$P:$P,MATCH(AE121,'NO_Table Parameter'!$Q:$Q,0))","v":2},null,1,1,1,"change_shoes01",{"$f":"INDEX(NO_참조테이블!H:H,MATCH(EquipItem!AK121,NO_참조테이블!I:I,0))","v":54},null,null,"1999-01-01T00:00:00 +09:00","2024-12-18",1]
["DEV",100050106,{"$f":"INDEX(NO_참조테이블!$F:$F,MATCH(B122,NO_참조테이블!$E:$E,0))","v":"러블리 스프링 웨이브 묶음 헤어"},null,1,"헤어",{"$f":"INDEX('NO_Table Parameter'!$J:$J,MATCH(EquipItem!F122,'NO_Table Parameter'!$K:$K,0))","v":1},"hair_1028_s","남녀 공용",{"$f":"INDEX('NO_Table Parameter'!S:S,MATCH(EquipItem!I122,'NO_Table Parameter'!T:T,0))","v":1},1,1,173,1,1013,0,null,"1|2","소녀",{"$f":"INDEX('NO_Table Parameter'!$P:$P,MATCH(S122,'NO_Table Parameter'!$Q:$Q,0))","v":3},"따뜻",{"$f":"INDEX('NO_Table Parameter'!$P:$P,MATCH(U122,'NO_Table Parameter'!$Q:$Q,0))","v":5},"큐티",{"$f":"INDEX('NO_Table Parameter'!$P:$P,MATCH(W122,'NO_Table Parameter'!$Q:$Q,0))","v":6},"발랄",{"$f":"INDEX('NO_Table Parameter'!$P:$P,MATCH(Y122,'NO_Table Parameter'!$Q:$Q,0))","v":7},"청순",{"$f":"INDEX('NO_Table Parameter'!$P:$P,MATCH(AA122,'NO_Table Parameter'!$Q:$Q,0))","v":8},"화려",{"$f":"INDEX('NO_Table Parameter'!$P:$P,MATCH(AC122,'NO_Table Parameter'!$Q:$Q,0))","v":9},"심플",{"$f":"INDEX('NO_Table Parameter'!$P:$P,MATCH(AE122,'NO_Table Parameter'!$Q:$Q,0))","v":2},null,1,1,1,"change_hair01",{"$f":"INDEX(NO_참조테이블!H:H,MATCH(EquipItem!AK122,NO_참조테이블!I:I,0))","v":51},null,null,"1999-01-01T00:00:00 +09:00","2024-12-18",1]
["DEV",100050107,{"$f":"INDEX(NO_참조테이블!$F:$F,MATCH(B123,NO_참조테이블!$E:$E,0))","v":"러블리 스프링 숏 헤어"},null,1,"헤어",{"$f":"INDEX('NO_Table Parameter'!$J:$J,MATCH(EquipItem!F123,'NO_Table Parameter'!$K:$K,0))","v":1},"hair_1029_s","남녀 공용",{"$f":"INDEX('NO_Table Parameter'!S:S,MATCH(EquipItem!I123,'NO_Table Parameter'!T:T,0))","v":1},1,1,155,0,null,0,null,null,"소녀",{"$f":"INDEX('NO_Table Parameter'!$P:$P,MATCH(S123,'NO_Table Parameter'!$Q:$Q,0))","v":3},"따뜻",{"$f":"INDEX('NO_Table Parameter'!$P:$P,MATCH(U123,'NO_Table Parameter'!$Q:$Q,0))","v":5},"큐티",{"$f":"INDEX('NO_Table Parameter'!$P:$P,MATCH(W123,'NO_Table Parameter'!$Q:$Q,0))","v":6},"발랄",{"$f":"INDEX('NO_Table Parameter'!$P:$P,MATCH(Y123,'NO_Table Parameter'!$Q:$Q,0))","v":7},"청순",{"$f":"INDEX('NO_Table Parameter'!$P:$P,MATCH(AA123,'NO_Table Parameter'!$Q:$Q,0))","v":8},"화려",{"$f":"INDEX('NO_Table Parameter'!$P:$P,MATCH(AC123,'NO_Table Parameter'!$Q:$Q,0))","v":9},"심플",{"$f":"INDEX('NO_Table Parameter'!$P:$P,MATCH(AE123,'NO_Table Parameter'!$Q:$Q,0))","v":2},null,1,1,1,"change_hair01",{"$f":"INDEX(NO_참조테이블!H:H,MATCH(EquipItem!AK123,NO_참조테이블!I:I,0))","v":51},null,null,"1999-01-01T00:00:00 +09:00","2024-12-18",1]
["DEV",100021501,{"$f":"INDEX(NO_참조테이블!$F:$F,MATCH(B124,NO_참조테이블!$E:$E,0))","v":"마쉬멜로우 세일러 원피스"},null,6,"상의",{"$f":"INDEX('NO_Table Parameter'!$J:$J,MATCH(EquipItem!F124,'NO_Table Parameter'!$K:$K,0))","v":15},"top_169_s","남녀 공용",{"$f":"INDEX('NO_Table Parameter'!S:S,MATCH(EquipItem!I124,'NO_Table Parameter'!T:T,0))","v":1},1,1,1004,1,1007,0,null,"1|2","큐티",{"$f":"INDEX('NO_Table Parameter'!$P:$P,MATCH(S124,'NO_Table Parameter'!$Q:$Q,0))","v":6},"발랄",{"$f":"INDEX('NO_Table Parameter'!$P:$P,MATCH(U124,'NO_Table Parameter'!$Q:$Q,0))","v":7},"소녀",{"$f":"INDEX('NO_Table Parameter'!$P:$P,MATCH(W124,'NO_Table Parameter'!$Q:$Q,0))","v":3},"시원",{"$f":"INDEX('NO_Table Parameter'!$P:$P,MATCH(Y124,'NO_Table Parameter'!$Q:$Q,0))","v":4},"청순",{"$f":"INDEX('NO_Table Parameter'!$P:$P,MATCH(AA124,'NO_Table Parameter'!$Q:$Q,0))","v":8},"화려",{"$f":"INDEX('NO_Table Parameter'!$P:$P,MATCH(AC124,'NO_Table Parameter'!$Q:$Q,0))","v":9},"심플",{"$f":"INDEX('NO_Table Parameter'!$P:$P,MATCH(AE124,'NO_Table Parameter'!$Q:$Q,0))","v":2},1,1,1,1,"change_cloth02",{"$f":"INDEX(NO_참조테이블!H:H,MATCH(EquipItem!AK124,NO_참조테이블!I:I,0))","v":102},null,null,"1999-01-01T00:00:00 +09:00","2024-12-18",1]
["DEV",100022802,{"$f":"INDEX(NO_참조테이블!$F:$F,MATCH(B125,NO_참조테이블!$E:$E,0))","v":"마쉬멜로우 세일러 리본 구두"},null,10,"신발",{"$f":"INDEX('NO_Table Parameter'!$J:$J,MATCH(EquipItem!F125,'NO_Table Parameter'!$K:$K,0))","v":28},"shoes_170_s","남녀 공용",{"$f":"INDEX('NO_Table Parameter'!S:S,MATCH(EquipItem!I125,'NO_Table Parameter'!T:T,0))","v":1},0,0,null,0,null,0,null,null,"큐티",{"$f":"INDEX('NO_Table Parameter'!$P:$P,MATCH(S125,'NO_Table Parameter'!$Q:$Q,0))","v":6},"발랄",{"$f":"INDEX('NO_Table Parameter'!$P:$P,MATCH(U125,'NO_Table Parameter'!$Q:$Q,0))","v":7},"소녀",{"$f":"INDEX('NO_Table Parameter'!$P:$P,MATCH(W125,'NO_Table Parameter'!$Q:$Q,0))","v":3},"시원",{"$f":"INDEX('NO_Table Parameter'!$P:$P,MATCH(Y125,'NO_Table Parameter'!$Q:$Q,0))","v":4},"청순",{"$f":"INDEX('NO_Table Parameter'!$P:$P,MATCH(AA125,'NO_Table Parameter'!$Q:$Q,0))","v":8},"화려",{"$f":"INDEX('NO_Table Parameter'!$P:$P,MATCH(AC125,'NO_Table Parameter'!$Q:$Q,0))","v":9},"심플",{"$f":"INDEX('NO_Table Parameter'!$P:$P,MATCH(AE125,'NO_Table Parameter'!$Q:$Q,0))","v":2},null,1,1,1,"change_shoes01",{"$f":"INDEX(NO_참조테이블!H:H,MATCH(EquipItem!AK125,NO_참조테이블!I:I,0))","v":54},null,null,"1999-01-01T00:00:00 +09:00","2024-12-18",1]
["DEV",100021503,{"$f":"INDEX(NO_참조테이블!$F:$F,MATCH(B126,NO_참조테이블!$E:$E,0))","v":"마쉬멜로우 세일러 리본 셔츠"},null,6,"상의",{"$f":"INDEX('NO_Table Parameter'!$J:$J,MATCH(EquipItem!F126,'NO_Table Parameter'!$K:$K,0))","v":15},"top_171_s","남녀 공용",{"$f":"INDEX('NO_Table Parameter'!S:S,MATCH(EquipItem!I126,'NO_Table Parameter'!T:T,0))","v":1},1,1,1004,1,1007,0,null,"1|2","큐티",{"$f":"INDEX('NO_Table Parameter'!$P:$P,MATCH(S126,'NO_Table Parameter'!$Q:$Q,0))","v":6},"발랄",{"$f":"INDEX('NO_Table Parameter'!$P:$P,MATCH(U126,'NO_Table Parameter'!$Q:$Q,0))","v":7},"소녀",{"$f":"INDEX('NO_Table Parameter'!$P:$P,MATCH(W126,'NO_Table Parameter'!$Q:$Q,0))","v":3},"시원",{"$f":"INDEX('NO_Table Parameter'!$P:$P,MATCH(Y126,'NO_Table Parameter'!$Q:$Q,0))","v":4},"청순",{"$f":"INDEX('NO_Table Parameter'!$P:$P,MATCH(AA126,'NO_Table Parameter'!$Q:$Q,0))","v":8},"화려",{"$f":"INDEX('NO_Table Parameter'!$P:$P,MATCH(AC126,'NO_Table Parameter'!$Q:$Q,0))","v":9},"심플",{"$f":"INDEX('NO_Table Parameter'!$P:$P,MATCH(AE126,'NO_Table Parameter'!$Q:$Q,0))","v":2},null,1,1,1,"change_cloth02",{"$f":"INDEX(NO_참조테이블!H:H,MATCH(EquipItem!AK126,NO_참조테이블!I:I,0))","v":102},null,null,"1999-01-01T00:00:00 +09:00","2024-12-18",1]
["DEV",100021604,{"$f":"INDEX(NO_참조테이블!$F:$F,MATCH(B127,NO_참조테이블!$E:$E,0))","v":"마쉬멜로우 세일러 리본 반바지"},null,6,"하의",{"$f":"INDEX('NO_Table Parameter'!$J:$J,MATCH(EquipItem!F127,'NO_Table Parameter'!$K:$K,0))","v":16},"bottom_172_s","남녀 공용",{"$f":"INDEX('NO_Table Parameter'!S:S,MATCH(EquipItem!I127,'NO_Table Parameter'!T:T,0))","v":1},1,1,1004,1,1007,0,null,"1|2","큐티",{"$f":"INDEX('NO_Table Parameter'!$P:$P,MATCH(S127,'NO_Table Parameter'!$Q:$Q,0))","v":6},"발랄",{"$f":"INDEX('NO_Table Parameter'!$P:$P,MATCH(U127,'NO_Table Parameter'!$Q:$Q,0))","v":7},"소녀",{"$f":"INDEX('NO_Table Parameter'!$P:$P,MATCH(W127,'NO_Table Parameter'!$Q:$Q,0))","v":3},"시원",{"$f":"INDEX('NO_Table Parameter'!$P:$P,MATCH(Y127,'NO_Table Parameter'!$Q:$Q,0))","v":4},"청순",{"$f":"INDEX('NO_Table Parameter'!$P:$P,MATCH(AA127,'NO_Table Parameter'!$Q:$Q,0))","v":8},"화려",{"$f":"INDEX('NO_Table Parameter'!$P:$P,MATCH(AC127,'NO_Table Parameter'!$Q:$Q,0))","v":9},"심플",{"$f":"INDEX('NO_Table Parameter'!$P:$P,MATCH(AE127,'NO_Table Parameter'!$Q:$Q,0))","v":2},null,1,1,1,"change_cloth02",{"$f":"INDEX(NO_참조테이블!H:H,MATCH(EquipItem!AK127,NO_참조테이블!I:I,0))","v":102},null,null,"1999-01-01T00:00:00 +09:00","2024-12-18",1]
["DEV",100022805,{"$f":"INDEX(NO_참조테이블!$F:$F,MATCH(B128,NO_참조테이블!$E:$E,0))","v":"마쉬멜로우 세일러 블랙 슈즈"},null,10,"신발",{"$f":"INDEX('NO_Table Parameter'!$J:$J,MATCH(EquipItem!F128,'NO_Table Parameter'!$K:$K,0))","v":28},"shoes_173_s","남녀 공용",{"$f":"INDEX('NO_Table Parameter'!S:S,MATCH(EquipItem!I128,'NO_Table Parameter'!T:T,0))","v":1},0,0,null,0,null,0,null,null,"큐티",{"$f":"INDEX('NO_Table Parameter'!$P:$P,MATCH(S128,'NO_Table Parameter'!$Q:$Q,0))","v":6},"발랄",{"$f":"INDEX('NO_Table Parameter'!$P:$P,MATCH(U128,'NO_Table Parameter'!$Q:$Q,0))","v":7},"소녀",{"$f":"INDEX('NO_Table Parameter'!$P:$P,MATCH(W128,'NO_Table Parameter'!$Q:$Q,0))","v":3},"시원",{"$f":"INDEX('NO_Table Parameter'!$P:$P,MATCH(Y128,'NO_Table Parameter'!$Q:$Q,0))","v":4},"청순",{"$f":"INDEX('NO_Table Parameter'!$P:$P,MATCH(AA128,'NO_Table Parameter'!$Q:$Q,0))","v":8},"화려",{"$f":"INDEX('NO_Table Parameter'!$P:$P,MATCH(AC128,'NO_Table Parameter'!$Q:$Q,0))","v":9},"심플",{"$f":"INDEX('NO_Table Parameter'!$P:$P,MATCH(AE128,'NO_Table Parameter'!$Q:$Q,0))","v":2},null,1,1,1,"change_shoes01",{"$f":"INDEX(NO_참조테이블!H:H,MATCH(EquipItem!AK128,NO_참조테이블!I:I,0))","v":54},null,null,"1999-01-01T00:00:00 +09:00","2024-12-18",1]
["DEV",100020106,{"$f":"INDEX(NO_참조테이블!$F:$F,MATCH(B129,NO_참조테이블!$E:$E,0))","v":"마쉬멜로우 세일러 트윈 테일 헤어"},null,1,"헤어",{"$f":"INDEX('NO_Table Parameter'!$J:$J,MATCH(EquipItem!F129,'NO_Table Parameter'!$K:$K,0))","v":1},"hair_1031_s","남녀 공용",{"$f":"INDEX('NO_Table Parameter'!S:S,MATCH(EquipItem!I129,'NO_Table Parameter'!T:T,0))","v":1},1,1,1005,1,1004,0,null,"1|2","큐티",{"$f":"INDEX('NO_Table Parameter'!$P:$P,MATCH(S129,'NO_Table Parameter'!$Q:$Q,0))","v":6},"발랄",{"$f":"INDEX('NO_Table Parameter'!$P:$P,MATCH(U129,'NO_Table Parameter'!$Q:$Q,0))","v":7},"소녀",{"$f":"INDEX('NO_Table Parameter'!$P:$P,MATCH(W129,'NO_Table Parameter'!$Q:$Q,0))","v":3},"시원",{"$f":"INDEX('NO_Table Parameter'!$P:$P,MATCH(Y129,'NO_Table Parameter'!$Q:$Q,0))","v":4},"청순",{"$f":"INDEX('NO_Table Parameter'!$P:$P,MATCH(AA129,'NO_Table Parameter'!$Q:$Q,0))","v":8},"화려",{"$f":"INDEX('NO_Table Parameter'!$P:$P,MATCH(AC129,'NO_Table Parameter'!$Q:$Q,0))","v":9},"심플",{"$f":"INDEX('NO_Table Parameter'!$P:$P,MATCH(AE129,'NO_Table Parameter'!$Q:$Q,0))","v":2},null,1,1,1,"change_hair01",{"$f":"INDEX(NO_참조테이블!H:H,MATCH(EquipItem!AK129,NO_참조테이블!I:I,0))","v":51},null,null,"1999-01-01T00:00:00 +09:00","2024-12-18",1]
["DEV",100020107,{"$f":"INDEX(NO_참조테이블!$F:$F,MATCH(B130,NO_참조테이블!$E:$E,0))","v":"마쉬멜로우 세일러 숏 펌 헤어"},null,1,"헤어",{"$f":"INDEX('NO_Table Parameter'!$J:$J,MATCH(EquipItem!F130,'NO_Table Parameter'!$K:$K,0))","v":1},"hair_1032_s","남녀 공용",{"$f":"INDEX('NO_Table Parameter'!S:S,MATCH(EquipItem!I130,'NO_Table Parameter'!T:T,0))","v":1},1,1,1006,0,null,0,null,null,"큐티",{"$f":"INDEX('NO_Table Parameter'!$P:$P,MATCH(S130,'NO_Table Parameter'!$Q:$Q,0))","v":6},"발랄",{"$f":"INDEX('NO_Table Parameter'!$P:$P,MATCH(U130,'NO_Table Parameter'!$Q:$Q,0))","v":7},"소녀",{"$f":"INDEX('NO_Table Parameter'!$P:$P,MATCH(W130,'NO_Table Parameter'!$Q:$Q,0))","v":3},"시원",{"$f":"INDEX('NO_Table Parameter'!$P:$P,MATCH(Y130,'NO_Table Parameter'!$Q:$Q,0))","v":4},"청순",{"$f":"INDEX('NO_Table Parameter'!$P:$P,MATCH(AA130,'NO_Table Parameter'!$Q:$Q,0))","v":8},"화려",{"$f":"INDEX('NO_Table Parameter'!$P:$P,MATCH(AC130,'NO_Table Parameter'!$Q:$Q,0))","v":9},"심플",{"$f":"INDEX('NO_Table Parameter'!$P:$P,MATCH(AE130,'NO_Table Parameter'!$Q:$Q,0))","v":2},null,1,1,1,"change_hair01",{"$f":"INDEX(NO_참조테이블!H:H,MATCH(EquipItem!AK130,NO_참조테이블!I:I,0))","v":51},null,null,"1999-01-01T00:00:00 +09:00","2024-12-18",1]
["DEV",100020308,{"$f":"INDEX(NO_참조테이블!$F:$F,MATCH(B131,NO_참조테이블!$E:$E,0))","v":"마쉬멜로우 세일러 리본 모자"},null,1,"머리 (위)",{"$f":"INDEX('NO_Table Parameter'!$J:$J,MATCH(EquipItem!F131,'NO_Table Parameter'!$K:$K,0))","v":3},"headtop_1033_s","남녀 공용",{"$f":"INDEX('NO_Table Parameter'!S:S,MATCH(EquipItem!I131,'NO_Table Parameter'!T:T,0))","v":1},0,0,null,0,null,0,null,null,"큐티",{"$f":"INDEX('NO_Table Parameter'!$P:$P,MATCH(S131,'NO_Table Parameter'!$Q:$Q,0))","v":6},"발랄",{"$f":"INDEX('NO_Table Parameter'!$P:$P,MATCH(U131,'NO_Table Parameter'!$Q:$Q,0))","v":7},"소녀",{"$f":"INDEX('NO_Table Parameter'!$P:$P,MATCH(W131,'NO_Table Parameter'!$Q:$Q,0))","v":3},"시원",{"$f":"INDEX('NO_Table Parameter'!$P:$P,MATCH(Y131,'NO_Table Parameter'!$Q:$Q,0))","v":4},"청순",{"$f":"INDEX('NO_Table Parameter'!$P:$P,MATCH(AA131,'NO_Table Parameter'!$Q:$Q,0))","v":8},"화려",{"$f":"INDEX('NO_Table Parameter'!$P:$P,MATCH(AC131,'NO_Table Parameter'!$Q:$Q,0))","v":9},"심플",{"$f":"INDEX('NO_Table Parameter'!$P:$P,MATCH(AE131,'NO_Table Parameter'!$Q:$Q,0))","v":2},null,1,1,1,"change_hair01",{"$f":"INDEX(NO_참조테이블!H:H,MATCH(EquipItem!AK131,NO_참조테이블!I:I,0))","v":51},null,null,"1999-01-01T00:00:00 +09:00","2024-12-18",1]
["DEV",100021409,{"$f":"INDEX(NO_참조테이블!$F:$F,MATCH(B132,NO_참조테이블!$E:$E,0))","v":"마쉬멜로우 세일러 블루 리본 이어링"},null,2,"귀걸이",{"$f":"INDEX('NO_Table Parameter'!$J:$J,MATCH(EquipItem!F132,'NO_Table Parameter'!$K:$K,0))","v":14},"earings_1034_s","남녀 공용",{"$f":"INDEX('NO_Table Parameter'!S:S,MATCH(EquipItem!I132,'NO_Table Parameter'!T:T,0))","v":1},0,0,null,0,null,0,null,null,"큐티",{"$f":"INDEX('NO_Table Parameter'!$P:$P,MATCH(S132,'NO_Table Parameter'!$Q:$Q,0))","v":6},"발랄",{"$f":"INDEX('NO_Table Parameter'!$P:$P,MATCH(U132,'NO_Table Parameter'!$Q:$Q,0))","v":7},"소녀",{"$f":"INDEX('NO_Table Parameter'!$P:$P,MATCH(W132,'NO_Table Parameter'!$Q:$Q,0))","v":3},"시원",{"$f":"INDEX('NO_Table Parameter'!$P:$P,MATCH(Y132,'NO_Table Parameter'!$Q:$Q,0))","v":4},"청순",{"$f":"INDEX('NO_Table Parameter'!$P:$P,MATCH(AA132,'NO_Table Parameter'!$Q:$Q,0))","v":8},"화려",{"$f":"INDEX('NO_Table Parameter'!$P:$P,MATCH(AC132,'NO_Table Parameter'!$Q:$Q,0))","v":9},"심플",{"$f":"INDEX('NO_Table Parameter'!$P:$P,MATCH(AE132,'NO_Table Parameter'!$Q:$Q,0))","v":2},null,1,1,1,"change_hair01",{"$f":"INDEX(NO_참조테이블!H:H,MATCH(EquipItem!AK132,NO_참조테이블!I:I,0))","v":51},null,null,"1999-01-01T00:00:00 +09:00","2024-12-18",1]
["DEV",100021410,{"$f":"INDEX(NO_참조테이블!$F:$F,MATCH(B133,NO_참조테이블!$E:$E,0))","v":"마쉬멜로우 세일러 옐로 리본 이어링"},null,2,"귀걸이",{"$f":"INDEX('NO_Table Parameter'!$J:$J,MATCH(EquipItem!F133,'NO_Table Parameter'!$K:$K,0))","v":14},"earings_1035_s","남녀 공용",{"$f":"INDEX('NO_Table Parameter'!S:S,MATCH(EquipItem!I133,'NO_Table Parameter'!T:T,0))","v":1},0,0,null,0,null,0,null,null,"큐티",{"$f":"INDEX('NO_Table Parameter'!$P:$P,MATCH(S133,'NO_Table Parameter'!$Q:$Q,0))","v":6},"발랄",{"$f":"INDEX('NO_Table Parameter'!$P:$P,MATCH(U133,'NO_Table Parameter'!$Q:$Q,0))","v":7},"소녀",{"$f":"INDEX('NO_Table Parameter'!$P:$P,MATCH(W133,'NO_Table Parameter'!$Q:$Q,0))","v":3},"시원",{"$f":"INDEX('NO_Table Parameter'!$P:$P,MATCH(Y133,'NO_Table Parameter'!$Q:$Q,0))","v":4},"청순",{"$f":"INDEX('NO_Table Parameter'!$P:$P,MATCH(AA133,'NO_Table Parameter'!$Q:$Q,0))","v":8},"화려",{"$f":"INDEX('NO_Table Parameter'!$P:$P,MATCH(AC133,'NO_Table Parameter'!$Q:$Q,0))","v":9},"심플",{"$f":"INDEX('NO_Table Parameter'!$P:$P,MATCH(AE133,'NO_Table Parameter'!$Q:$Q,0))","v":2},null,1,1,1,"change_hair01",{"$f":"INDEX(NO_참조테이블!H:H,MATCH(EquipItem!AK133,NO_참조테이블!I:I,0))","v":51},null,null,"1999-01-01T00:00:00 +09:00","2024-12-18",1]
["DEV",100022411,{"$f":"INDEX(NO_참조테이블!$F:$F,MATCH(B134,NO_참조테이블!$E:$E,0))","v":"마쉬멜로우 세일러 리본 가방"},null,8,"어깨 (오)",{"$f":"INDEX('NO_Table Parameter'!$J:$J,MATCH(EquipItem!F134,'NO_Table Parameter'!$K:$K,0))","v":24},"shoulder_r_1036_s","남녀 공용",{"$f":"INDEX('NO_Table Parameter'!S:S,MATCH(EquipItem!I134,'NO_Table Parameter'!T:T,0))","v":1},0,0,null,0,null,0,null,null,"큐티",{"$f":"INDEX('NO_Table Parameter'!$P:$P,MATCH(S134,'NO_Table Parameter'!$Q:$Q,0))","v":6},"발랄",{"$f":"INDEX('NO_Table Parameter'!$P:$P,MATCH(U134,'NO_Table Parameter'!$Q:$Q,0))","v":7},"소녀",{"$f":"INDEX('NO_Table Parameter'!$P:$P,MATCH(W134,'NO_Table Parameter'!$Q:$Q,0))","v":3},"시원",{"$f":"INDEX('NO_Table Parameter'!$P:$P,MATCH(Y134,'NO_Table Parameter'!$Q:$Q,0))","v":4},"청순",{"$f":"INDEX('NO_Table Parameter'!$P:$P,MATCH(AA134,'NO_Table Parameter'!$Q:$Q,0))","v":8},"화려",{"$f":"INDEX('NO_Table Parameter'!$P:$P,MATCH(AC134,'NO_Table Parameter'!$Q:$Q,0))","v":9},"심플",{"$f":"INDEX('NO_Table Parameter'!$P:$P,MATCH(AE134,'NO_Table Parameter'!$Q:$Q,0))","v":2},null,1,1,1,"change_accessories01",{"$f":"INDEX(NO_참조테이블!H:H,MATCH(EquipItem!AK134,NO_참조테이블!I:I,0))","v":53},null,null,"1999-01-01T00:00:00 +09:00","2024-12-18",1]
["DEV",100020312,{"$f":"INDEX(NO_참조테이블!$F:$F,MATCH(B135,NO_참조테이블!$E:$E,0))","v":"마쉬멜로우 세일러 블루 컵"},null,1,"머리 (위)",{"$f":"INDEX('NO_Table Parameter'!$J:$J,MATCH(EquipItem!F135,'NO_Table Parameter'!$K:$K,0))","v":3},"headtop_1037_s","남녀 공용",{"$f":"INDEX('NO_Table Parameter'!S:S,MATCH(EquipItem!I135,'NO_Table Parameter'!T:T,0))","v":1},0,0,null,0,null,0,null,null,"큐티",{"$f":"INDEX('NO_Table Parameter'!$P:$P,MATCH(S135,'NO_Table Parameter'!$Q:$Q,0))","v":6},"발랄",{"$f":"INDEX('NO_Table Parameter'!$P:$P,MATCH(U135,'NO_Table Parameter'!$Q:$Q,0))","v":7},"소녀",{"$f":"INDEX('NO_Table Parameter'!$P:$P,MATCH(W135,'NO_Table Parameter'!$Q:$Q,0))","v":3},"시원",{"$f":"INDEX('NO_Table Parameter'!$P:$P,MATCH(Y135,'NO_Table Parameter'!$Q:$Q,0))","v":4},"청순",{"$f":"INDEX('NO_Table Parameter'!$P:$P,MATCH(AA135,'NO_Table Parameter'!$Q:$Q,0))","v":8},"화려",{"$f":"INDEX('NO_Table Parameter'!$P:$P,MATCH(AC135,'NO_Table Parameter'!$Q:$Q,0))","v":9},"심플",{"$f":"INDEX('NO_Table Parameter'!$P:$P,MATCH(AE135,'NO_Table Parameter'!$Q:$Q,0))","v":2},null,1,1,1,"change_hair01",{"$f":"INDEX(NO_참조테이블!H:H,MATCH(EquipItem!AK135,NO_참조테이블!I:I,0))","v":51},null,null,"1999-01-01T00:00:00 +09:00","2024-12-18",1]
["DEV",100020313,{"$f":"INDEX(NO_참조테이블!$F:$F,MATCH(B136,NO_참조테이블!$E:$E,0))","v":"마쉬멜로우 세일러 옐로 컵"},null,1,"머리 (위)",{"$f":"INDEX('NO_Table Parameter'!$J:$J,MATCH(EquipItem!F136,'NO_Table Parameter'!$K:$K,0))","v":3},"headtop_1038_s","남녀 공용",{"$f":"INDEX('NO_Table Parameter'!S:S,MATCH(EquipItem!I136,'NO_Table Parameter'!T:T,0))","v":1},0,0,null,0,null,0,null,null,"큐티",{"$f":"INDEX('NO_Table Parameter'!$P:$P,MATCH(S136,'NO_Table Parameter'!$Q:$Q,0))","v":6},"발랄",{"$f":"INDEX('NO_Table Parameter'!$P:$P,MATCH(U136,'NO_Table Parameter'!$Q:$Q,0))","v":7},"소녀",{"$f":"INDEX('NO_Table Parameter'!$P:$P,MATCH(W136,'NO_Table Parameter'!$Q:$Q,0))","v":3},"시원",{"$f":"INDEX('NO_Table Parameter'!$P:$P,MATCH(Y136,'NO_Table Parameter'!$Q:$Q,0))","v":4},"청순",{"$f":"INDEX('NO_Table Parameter'!$P:$P,MATCH(AA136,'NO_Table Parameter'!$Q:$Q,0))","v":8},"화려",{"$f":"INDEX('NO_Table Parameter'!$P:$P,MATCH(AC136,'NO_Table Parameter'!$Q:$Q,0))","v":9},"심플",{"$f":"INDEX('NO_Table Parameter'!$P:$P,MATCH(AE136,'NO_Table Parameter'!$Q:$Q,0))","v":2},null,1,1,1,"change_hair01",{"$f":"INDEX(NO_참조테이블!H:H,MATCH(EquipItem!AK136,NO_참조테이블!I:I,0))","v":51},null,null,"1999-01-01T00:00:00 +09:00","2024-12-18",1]
["DEV",100022614,{"$f":"INDEX(NO_참조테이블!$F:$F,MATCH(B137,NO_참조테이블!$E:$E,0))","v":"마쉬멜로우 세일러 소풍 바구니"},null,9,"손 (오)",{"$f":"INDEX('NO_Table Parameter'!$J:$J,MATCH(EquipItem!F137,'NO_Table Parameter'!$K:$K,0))","v":26},"hand_r_1039_s","남녀 공용",{"$f":"INDEX('NO_Table Parameter'!S:S,MATCH(EquipItem!I137,'NO_Table Parameter'!T:T,0))","v":1},0,0,null,0,null,0,null,null,"큐티",{"$f":"INDEX('NO_Table Parameter'!$P:$P,MATCH(S137,'NO_Table Parameter'!$Q:$Q,0))","v":6},"발랄",{"$f":"INDEX('NO_Table Parameter'!$P:$P,MATCH(U137,'NO_Table Parameter'!$Q:$Q,0))","v":7},"소녀",{"$f":"INDEX('NO_Table Parameter'!$P:$P,MATCH(W137,'NO_Table Parameter'!$Q:$Q,0))","v":3},"시원",{"$f":"INDEX('NO_Table Parameter'!$P:$P,MATCH(Y137,'NO_Table Parameter'!$Q:$Q,0))","v":4},"청순",{"$f":"INDEX('NO_Table Parameter'!$P:$P,MATCH(AA137,'NO_Table Parameter'!$Q:$Q,0))","v":8},"화려",{"$f":"INDEX('NO_Table Parameter'!$P:$P,MATCH(AC137,'NO_Table Parameter'!$Q:$Q,0))","v":9},"심플",{"$f":"INDEX('NO_Table Parameter'!$P:$P,MATCH(AE137,'NO_Table Parameter'!$Q:$Q,0))","v":2},null,1,1,1,"change_accessories01",{"$f":"INDEX(NO_참조테이블!H:H,MATCH(EquipItem!AK137,NO_참조테이블!I:I,0))","v":53},null,null,"1999-01-01T00:00:00 +09:00","2024-12-18",1]
["DEV",100022615,{"$f":"INDEX(NO_참조테이블!$F:$F,MATCH(B138,NO_참조테이블!$E:$E,0))","v":"마쉬멜로우 세일러 구름 쿠션"},null,9,"손 (오)",{"$f":"INDEX('NO_Table Parameter'!$J:$J,MATCH(EquipItem!F138,'NO_Table Parameter'!$K:$K,0))","v":26},"hand_r_1040_s","남녀 공용",{"$f":"INDEX('NO_Table Parameter'!S:S,MATCH(EquipItem!I138,'NO_Table Parameter'!T:T,0))","v":1},0,0,null,0,null,0,null,null,"큐티",{"$f":"INDEX('NO_Table Parameter'!$P:$P,MATCH(S138,'NO_Table Parameter'!$Q:$Q,0))","v":6},"발랄",{"$f":"INDEX('NO_Table Parameter'!$P:$P,MATCH(U138,'NO_Table Parameter'!$Q:$Q,0))","v":7},"소녀",{"$f":"INDEX('NO_Table Parameter'!$P:$P,MATCH(W138,'NO_Table Parameter'!$Q:$Q,0))","v":3},"시원",{"$f":"INDEX('NO_Table Parameter'!$P:$P,MATCH(Y138,'NO_Table Parameter'!$Q:$Q,0))","v":4},"청순",{"$f":"INDEX('NO_Table Parameter'!$P:$P,MATCH(AA138,'NO_Table Parameter'!$Q:$Q,0))","v":8},"화려",{"$f":"INDEX('NO_Table Parameter'!$P:$P,MATCH(AC138,'NO_Table Parameter'!$Q:$Q,0))","v":9},"심플",{"$f":"INDEX('NO_Table Parameter'!$P:$P,MATCH(AE138,'NO_Table Parameter'!$Q:$Q,0))","v":2},null,1,1,1,"change_accessories01",{"$f":"INDEX(NO_참조테이블!H:H,MATCH(EquipItem!AK138,NO_참조테이블!I:I,0))","v":53},null,null,"1999-01-01T00:00:00 +09:00","2024-12-18",1]
["DEV",100022616,{"$f":"INDEX(NO_참조테이블!$F:$F,MATCH(B139,NO_참조테이블!$E:$E,0))","v":"마쉬멜로우 세일러 2단 아이스크림"},null,9,"손 (오)",{"$f":"INDEX('NO_Table Parameter'!$J:$J,MATCH(EquipItem!F139,'NO_Table Parameter'!$K:$K,0))","v":26},"hand_r_1041_s","남녀 공용",{"$f":"INDEX('NO_Table Parameter'!S:S,MATCH(EquipItem!I139,'NO_Table Parameter'!T:T,0))","v":1},0,0,null,0,null,0,null,null,"큐티",{"$f":"INDEX('NO_Table Parameter'!$P:$P,MATCH(S139,'NO_Table Parameter'!$Q:$Q,0))","v":6},"발랄",{"$f":"INDEX('NO_Table Parameter'!$P:$P,MATCH(U139,'NO_Table Parameter'!$Q:$Q,0))","v":7},"소녀",{"$f":"INDEX('NO_Table Parameter'!$P:$P,MATCH(W139,'NO_Table Parameter'!$Q:$Q,0))","v":3},"시원",{"$f":"INDEX('NO_Table Parameter'!$P:$P,MATCH(Y139,'NO_Table Parameter'!$Q:$Q,0))","v":4},"청순",{"$f":"INDEX('NO_Table Parameter'!$P:$P,MATCH(AA139,'NO_Table Parameter'!$Q:$Q,0))","v":8},"화려",{"$f":"INDEX('NO_Table Parameter'!$P:$P,MATCH(AC139,'NO_Table Parameter'!$Q:$Q,0))","v":9},"심플",{"$f":"INDEX('NO_Table Parameter'!$P:$P,MATCH(AE139,'NO_Table Parameter'!$Q:$Q,0))","v":2},null,1,1,1,"change_accessories01",{"$f":"INDEX(NO_참조테이블!H:H,MATCH(EquipItem!AK139,NO_참조테이블!I:I,0))","v":53},null,null,"1999-01-01T00:00:00 +09:00","2024-12-18",1]

{"sheet":"EquipTabSort","index":4,"n_rows":14,"n_cols":4,"rows_kept":14,"cut":false,"hidden":false,"merged":[]}
["ServiceType","Key","#EquipItemCategory","Sortindex"]
["string","int","none","int"]
["All","All","Client","Client"]
["서비스 타입","아이템 카테고리","#아이템 카테고리","아이템 순서"]
["DEV",{"$f":"INDEX('NO_Table Parameter'!$G:$G,MATCH(C5,'NO_Table Parameter'!$H:$H,0))","v":1},"머리",1]
["DEV",{"$f":"INDEX('NO_Table Parameter'!$G:$G,MATCH(C6,'NO_Table Parameter'!$H:$H,0))","v":2},"얼굴",3]
["DEV",{"$f":"INDEX('NO_Table Parameter'!$G:$G,MATCH(C7,'NO_Table Parameter'!$H:$H,0))","v":3},"눈",4]
["DEV",{"$f":"INDEX('NO_Table Parameter'!$G:$G,MATCH(C8,'NO_Table Parameter'!$H:$H,0))","v":4},"귀",5]
["DEV",{"$f":"INDEX('NO_Table Parameter'!$G:$G,MATCH(C9,'NO_Table Parameter'!$H:$H,0))","v":5},"목",6]
["DEV",{"$f":"INDEX('NO_Table Parameter'!$G:$G,MATCH(C10,'NO_Table Parameter'!$H:$H,0))","v":6},"몸",2]
["DEV",{"$f":"INDEX('NO_Table Parameter'!$G:$G,MATCH(C11,'NO_Table Parameter'!$H:$H,0))","v":7},"등",7]
["DEV",{"$f":"INDEX('NO_Table Parameter'!$G:$G,MATCH(C12,'NO_Table Parameter'!$H:$H,0))","v":8},"어깨",8]
["DEV",{"$f":"INDEX('NO_Table Parameter'!$G:$G,MATCH(C13,'NO_Table Parameter'!$H:$H,0))","v":9},"손",9]
["DEV",{"$f":"INDEX('NO_Table Parameter'!$G:$G,MATCH(C14,'NO_Table Parameter'!$H:$H,0))","v":10},"발",10]

{"sheet":"CharacterPartsLimit","index":5,"n_rows":6,"n_cols":5,"rows_kept":6,"cut":false,"hidden":false,"merged":[]}
["ServiceType","Key","PartsGroupID","#PartsName","CharacterPartsType"]
["string","int","int","none","EEquipItemType"]
["All","All","All","Client","All"]
["서비스 타입","파츠 제한 ID","파츠 제한 그룹 ID","파츠명","캐릭터 파츠 종류 ID"]
["DEV",1,1,"하의",{"$f":"INDEX('NO_Table Parameter'!J:J,MATCH(D5,'NO_Table Parameter'!$K:$K,0))","v":16}]
["DEV",2,2,"머리 (후드)",{"$f":"INDEX('NO_Table Parameter'!J:J,MATCH(D6,'NO_Table Parameter'!$K:$K,0))","v":2}]

{"sheet":"Feature","index":6,"n_rows":14,"n_cols":6,"rows_kept":14,"cut":false,"hidden":false,"merged":[]}
["ServiceType","Key","#FeatureName","FeatureName","FeatureColor","#FeatureColor"]
["string","int","none","stringkey","string","none"]
["All","All","Client","All","All","All"]
["서비스 타입","속성 타입 ID","속성명","속성명","속성 컬러 코드","속성 컬러"]
["DEV",{"$f":"INDEX('NO_Table Parameter'!P:P,MATCH(Feature!C5,'NO_Table Parameter'!Q:Q,0))","v":1},"격식",{"$f":"INDEX([1]KOR_StringTable!$B:$B,MATCH(C5,[1]KOR_StringTable!$C:$C,0))","v":"Feature_1"},"#14004E"]
["DEV",{"$f":"INDEX('NO_Table Parameter'!P:P,MATCH(Feature!C6,'NO_Table Parameter'!Q:Q,0))","v":2},"심플",{"$f":"INDEX([1]KOR_StringTable!$B:$B,MATCH(C6,[1]KOR_StringTable!$C:$C,0))","v":"Feature_2"},"#FFFFFF"]
["DEV",{"$f":"INDEX('NO_Table Parameter'!P:P,MATCH(Feature!C7,'NO_Table Parameter'!Q:Q,0))","v":3},"소녀",{"$f":"INDEX([1]KOR_StringTable!$B:$B,MATCH(C7,[1]KOR_StringTable!$C:$C,0))","v":"Feature_3"},"#C00000"]
["DEV",{"$f":"INDEX('NO_Table Parameter'!P:P,MATCH(Feature!C8,'NO_Table Parameter'!Q:Q,0))","v":4},"시원",{"$f":"INDEX([1]KOR_StringTable!$B:$B,MATCH(C8,[1]KOR_StringTable!$C:$C,0))","v":"Feature_4"},"#485BED"]
["DEV",{"$f":"INDEX('NO_Table Parameter'!P:P,MATCH(Feature!C9,'NO_Table Parameter'!Q:Q,0))","v":5},"따뜻",{"$f":"INDEX([1]KOR_StringTable!$B:$B,MATCH(C9,[1]KOR_StringTable!$C:$C,0))","v":"Feature_5"},"#B76A5D"]
["DEV",{"$f":"INDEX('NO_Table Parameter'!P:P,MATCH(Feature!C10,'NO_Table Parameter'!Q:Q,0))","v":6},"큐티",{"$f":"INDEX([1]KOR_StringTable!$B:$B,MATCH(C10,[1]KOR_StringTable!$C:$C,0))","v":"Feature_6"},"#FF84D8"]
["DEV",{"$f":"INDEX('NO_Table Parameter'!P:P,MATCH(Feature!C11,'NO_Table Parameter'!Q:Q,0))","v":7},"발랄",{"$f":"INDEX([1]KOR_StringTable!$B:$B,MATCH(C11,[1]KOR_StringTable!$C:$C,0))","v":"Feature_7"},"#FFA11B"]
["DEV",{"$f":"INDEX('NO_Table Parameter'!P:P,MATCH(Feature!C12,'NO_Table Parameter'!Q:Q,0))","v":8},"청순",{"$f":"INDEX([1]KOR_StringTable!$B:$B,MATCH(C12,[1]KOR_StringTable!$C:$C,0))","v":"Feature_8"},"#70A23F"]
["DEV",{"$f":"INDEX('NO_Table Parameter'!P:P,MATCH(Feature!C13,'NO_Table Parameter'!Q:Q,0))","v":9},"화려",{"$f":"INDEX([1]KOR_StringTable!$B:$B,MATCH(C13,[1]KOR_StringTable!$C:$C,0))","v":"Feature_9"},"#D6326C"]
["DEV",{"$f":"INDEX('NO_Table Parameter'!P:P,MATCH(Feature!C14,'NO_Table Parameter'!Q:Q,0))","v":10},"우아",{"$f":"INDEX([1]KOR_StringTable!$B:$B,MATCH(C14,[1]KOR_StringTable!$C:$C,0))","v":"Feature_10"},"#572590"]

{"sheet":"EquipItemString","index":7,"n_rows":32,"n_cols":5,"rows_kept":32,"cut":false,"hidden":false,"merged":[]}
["ServiceType","Key","#EquipItemType","#EquipItemName","EquipItemName"]
["string","int","none","none","stringkey"]
["All","All","Client","Client","All"]
["서비스 타입","장착 아이템 타입 ID","장착 부위명","장착 부위명","장착 부위명"]
["DEV",1,{"$f":"INDEX('NO_Table Parameter'!K:K,MATCH(EquipItemString!B5,'NO_Table Parameter'!J:J,0))","v":"헤어"},"헤어",{"$f":"INDEX([1]KOR_StringTable!$B:$B,MATCH(D5,[1]KOR_StringTable!$C:$C,0))","v":"EquipItemType_1"}]
["DEV",2,{"$f":"INDEX('NO_Table Parameter'!K:K,MATCH(EquipItemString!B6,'NO_Table Parameter'!J:J,0))","v":"머리 (후드)"},"머리(후드)",{"$f":"INDEX([1]KOR_StringTable!$B:$B,MATCH(D6,[1]KOR_StringTable!$C:$C,0))","v":"EquipItemType_2"}]
["DEV",3,{"$f":"INDEX('NO_Table Parameter'!K:K,MATCH(EquipItemString!B7,'NO_Table Parameter'!J:J,0))","v":"머리 (위)"},"머리(위)",{"$f":"INDEX([1]KOR_StringTable!$B:$B,MATCH(D7,[1]KOR_StringTable!$C:$C,0))","v":"EquipItemType_3"}]
["DEV",4,{"$f":"INDEX('NO_Table Parameter'!K:K,MATCH(EquipItemString!B8,'NO_Table Parameter'!J:J,0))","v":"머리 (뒤)"},"머리(뒤)",{"$f":"INDEX([1]KOR_StringTable!$B:$B,MATCH(D8,[1]KOR_StringTable!$C:$C,0))","v":"EquipItemType_4"}]
["DEV",5,{"$f":"INDEX('NO_Table Parameter'!K:K,MATCH(EquipItemString!B9,'NO_Table Parameter'!J:J,0))","v":"머리 (공중)"},"머리(공중)",{"$f":"INDEX([1]KOR_StringTable!$B:$B,MATCH(D9,[1]KOR_StringTable!$C:$C,0))","v":"EquipItemType_5"}]
["DEV",6,{"$f":"INDEX('NO_Table Parameter'!K:K,MATCH(EquipItemString!B10,'NO_Table Parameter'!J:J,0))","v":"화장"},"얼굴",{"$f":"INDEX([1]KOR_StringTable!$B:$B,MATCH(D10,[1]KOR_StringTable!$C:$C,0))","v":"Makeup"}]
["DEV",7,{"$f":"INDEX('NO_Table Parameter'!K:K,MATCH(EquipItemString!B11,'NO_Table Parameter'!J:J,0))","v":"얼굴 장식"},"얼굴 장식",{"$f":"INDEX([1]KOR_StringTable!$B:$B,MATCH(D11,[1]KOR_StringTable!$C:$C,0))","v":"EquipItemType_7"}]
["DEV",8,{"$f":"INDEX('NO_Table Parameter'!K:K,MATCH(EquipItemString!B12,'NO_Table Parameter'!J:J,0))","v":"피부 장식"},"피부 장식",{"$f":"INDEX([1]KOR_StringTable!$B:$B,MATCH(D12,[1]KOR_StringTable!$C:$C,0))","v":"EquipItemType_8"}]
["DEV",9,{"$f":"INDEX('NO_Table Parameter'!K:K,MATCH(EquipItemString!B13,'NO_Table Parameter'!J:J,0))","v":"이마 장식"},"이마 장식",{"$f":"INDEX([1]KOR_StringTable!$B:$B,MATCH(D13,[1]KOR_StringTable!$C:$C,0))","v":"EquipItemType_9"}]
["DEV",10,{"$f":"INDEX('NO_Table Parameter'!K:K,MATCH(EquipItemString!B14,'NO_Table Parameter'!J:J,0))","v":"렌즈"},"렌즈",{"$f":"INDEX([1]KOR_StringTable!$B:$B,MATCH(D14,[1]KOR_StringTable!$C:$C,0))","v":"EquipItemType_10"}]
["DEV",11,{"$f":"INDEX('NO_Table Parameter'!K:K,MATCH(EquipItemString!B15,'NO_Table Parameter'!J:J,0))","v":"눈 장식"},"눈 장식",{"$f":"INDEX([1]KOR_StringTable!$B:$B,MATCH(D15,[1]KOR_StringTable!$C:$C,0))","v":"EquipItemType_11"}]
["DEV",12,{"$f":"INDEX('NO_Table Parameter'!K:K,MATCH(EquipItemString!B16,'NO_Table Parameter'!J:J,0))","v":"목"},"목",{"$f":"INDEX([1]KOR_StringTable!$B:$B,MATCH(D16,[1]KOR_StringTable!$C:$C,0))","v":"EquipItemType_12"}]
["DEV",13,{"$f":"INDEX('NO_Table Parameter'!K:K,MATCH(EquipItemString!B17,'NO_Table Parameter'!J:J,0))","v":"귀모양"},"귀모양",{"$f":"INDEX([1]KOR_StringTable!$B:$B,MATCH(D17,[1]KOR_StringTable!$C:$C,0))","v":"EquipItemType_13"}]
["DEV",14,{"$f":"INDEX('NO_Table Parameter'!K:K,MATCH(EquipItemString!B18,'NO_Table Parameter'!J:J,0))","v":"귀걸이"},"귀걸이",{"$f":"INDEX([1]KOR_StringTable!$B:$B,MATCH(D18,[1]KOR_StringTable!$C:$C,0))","v":"EquipItemType_14"}]
["DEV",15,{"$f":"INDEX('NO_Table Parameter'!K:K,MATCH(EquipItemString!B19,'NO_Table Parameter'!J:J,0))","v":"상의"},"상의",{"$f":"INDEX([1]KOR_StringTable!$B:$B,MATCH(D19,[1]KOR_StringTable!$C:$C,0))","v":"EquipItemType_15"}]
["DEV",16,{"$f":"INDEX('NO_Table Parameter'!K:K,MATCH(EquipItemString!B20,'NO_Table Parameter'!J:J,0))","v":"하의"},"하의",{"$f":"INDEX([1]KOR_StringTable!$B:$B,MATCH(D20,[1]KOR_StringTable!$C:$C,0))","v":"EquipItemType_16"}]
["DEV",17,{"$f":"INDEX('NO_Table Parameter'!K:K,MATCH(EquipItemString!B21,'NO_Table Parameter'!J:J,0))","v":"태닝"},"태닝",{"$f":"INDEX([1]KOR_StringTable!$B:$B,MATCH(D21,[1]KOR_StringTable!$C:$C,0))","v":"EquipItemType_17"}]
["DEV",18,{"$f":"INDEX('NO_Table Parameter'!K:K,MATCH(EquipItemString!B22,'NO_Table Parameter'!J:J,0))","v":"꼬리"},"꼬리",{"$f":"INDEX([1]KOR_StringTable!$B:$B,MATCH(D22,[1]KOR_StringTable!$C:$C,0))","v":"EquipItemType_18"}]
["DEV",19,{"$f":"INDEX('NO_Table Parameter'!K:K,MATCH(EquipItemString!B23,'NO_Table Parameter'!J:J,0))","v":"등"},"등",{"$f":"INDEX([1]KOR_StringTable!$B:$B,MATCH(D23,[1]KOR_StringTable!$C:$C,0))","v":"EquipItemType_19"}]
["DEV",20,{"$f":"INDEX('NO_Table Parameter'!K:K,MATCH(EquipItemString!B24,'NO_Table Parameter'!J:J,0))","v":"배경"},"배경",{"$f":"INDEX([1]KOR_StringTable!$B:$B,MATCH(D24,[1]KOR_StringTable!$C:$C,0))","v":"EquipItemType_20"}]
["DEV",21,{"$f":"INDEX('NO_Table Parameter'!K:K,MATCH(EquipItemString!B25,'NO_Table Parameter'!J:J,0))","v":"골반 (왼)"},"골반(좌측)",{"$f":"INDEX([1]KOR_StringTable!$B:$B,MATCH(D25,[1]KOR_StringTable!$C:$C,0))","v":"EquipItemType_21"}]
["DEV",22,{"$f":"INDEX('NO_Table Parameter'!K:K,MATCH(EquipItemString!B26,'NO_Table Parameter'!J:J,0))","v":"골반 (오)"},"골반(우측)",{"$f":"INDEX([1]KOR_StringTable!$B:$B,MATCH(D26,[1]KOR_StringTable!$C:$C,0))","v":"EquipItemType_22"}]
["DEV",23,{"$f":"INDEX('NO_Table Parameter'!K:K,MATCH(EquipItemString!B27,'NO_Table Parameter'!J:J,0))","v":"어깨 (왼)"},"어깨(좌측)",{"$f":"INDEX([1]KOR_StringTable!$B:$B,MATCH(D27,[1]KOR_StringTable!$C:$C,0))","v":"EquipItemType_23"}]
["DEV",24,{"$f":"INDEX('NO_Table Parameter'!K:K,MATCH(EquipItemString!B28,'NO_Table Parameter'!J:J,0))","v":"어깨 (오)"},"어깨(우측)",{"$f":"INDEX([1]KOR_StringTable!$B:$B,MATCH(D28,[1]KOR_StringTable!$C:$C,0))","v":"EquipItemType_24"}]
["DEV",25,{"$f":"INDEX('NO_Table Parameter'!K:K,MATCH(EquipItemString!B29,'NO_Table Parameter'!J:J,0))","v":"손 (왼)"},"손(좌측)",{"$f":"INDEX([1]KOR_StringTable!$B:$B,MATCH(D29,[1]KOR_StringTable!$C:$C,0))","v":"EquipItemType_25"}]
["DEV",26,{"$f":"INDEX('NO_Table Parameter'!K:K,MATCH(EquipItemString!B30,'NO_Table Parameter'!J:J,0))","v":"손 (오)"},"손(우측)",{"$f":"INDEX([1]KOR_StringTable!$B:$B,MATCH(D30,[1]KOR_StringTable!$C:$C,0))","v":"EquipItemType_26"}]
["DEV",27,{"$f":"INDEX('NO_Table Parameter'!K:K,MATCH(EquipItemString!B31,'NO_Table Parameter'!J:J,0))","v":"바닥"},"바닥",{"$f":"INDEX([1]KOR_StringTable!$B:$B,MATCH(D31,[1]KOR_StringTable!$C:$C,0))","v":"EquipItemType_27"}]
["DEV",28,{"$f":"INDEX('NO_Table Parameter'!K:K,MATCH(EquipItemString!B32,'NO_Table Parameter'!J:J,0))","v":"신발"},"신발",{"$f":"INDEX([1]KOR_StringTable!$B:$B,MATCH(D32,[1]KOR_StringTable!$C:$C,0))","v":"EquipItemType_28"}]